Workbook

Sheet CALCULADORA
B1: Exclusión de responsabilidad | H1: Valor nominal negociado
H2: TIV V-2 A
H3: TIV V-3 A
H4: TIV V-4 A
H5: TIV V-5 A
H6: TIV V-6 A
B7: Calculadora Emisiones TIV en Pesos
B9: Emisión | C9: TIV V-6 A | E9: Seleccionar la Emisión a Calcular
B11: Características
B12: Identificación titulo (Nemotécnico) | C12: =+HLOOKUP(C9,Características!B1:J7,2,FALSE) -> TIVAV6281128 | F12: 100.528
B13: Fecha de Emisión | C13: =+HLOOKUP(C9,Características!B1:J7,4,FALSE) -> 2023-11-28 | F13: 97.997
B14: Fecha de Vencimiento Contractual | C14: =+HLOOKUP(C9,Características!B1:J7,5,FALSE) -> 2028-11-28
B15: Fecha estimada para el pago del 100% del título | C15: =+VLOOKUP(0,Flujos!D2:J182,6,FALSE) -> 2025-08-28
B16: Tasa Facial Efectiva Anual | C16: =+HLOOKUP(C9,Características!B1:J7,6,FALSE) -> 0.15
B17: Tasa Facial Nominal Anual | C17: =+ROUND(((1+C16)^(1/12)-1)*12,6) -> 0.140579
B18: Duración Macaulay | C18: =+SUMPRODUCT(Flujos!B2:B182,Flujos!H2:H182)/Flujos!H183/365 -> 0.6238294616
B19: Nominal Inicial (Nominal del título al momento de la emisión) | C19: =Flujos!L2 -> 3.26929e+10
B22: Datos de Compra | D22: Fecha de Compra y Valor de Compra son datos opcionales deben incluirse solo para calcular la TIR de Tenencia
B23: Fecha de Compra | C23: 2023-11-29
B24: Valor de Compra (COP) | C24: 32705650231
B26: Datos de Venta
B27: Fecha de Venta | C27: 2024-02-13 | E27: Incluir los datos de las celdas grises
B28: Valor nominal a negociar (COP) | C28: 2.970234345e+10
B29: Tasa de negociación / tasa de valoración | C29: 0.1415
B30: Precio Limpio (sin incluir intereses causados)
B31: Precio sucio (incluyendo intereses causados) | C31: 101.114
A32: =+Flujos!C183*100 -> 90.852581 | B32: Porcentaje del nominal inicial que falta por pagar del capital | C32: =+Flujos!C183*100/100 -> 0.90852581
B33: Valor de Giro (COP) | C33: =+Características!B32 -> 30033227560
B35: TIR de Tenencia en COP* | C35: =+'TIR de Tenencia'!K2 -> 0.1462837398
B37: Oficina de Atención a Inversionistas al 601 618 3030 ext 258 - 239, o al correo smoreno@titularizadora.com - josorio@titularizadora.com
C43: 1

Sheet Características (hidden)
A1: Serie | B1: TIV V-2 A | C1: TIV V-3 A | D1: TIV V-4 A | E1: TIV V-5 A | F1: TIV V-6 A
A2: Nemo MEC | B2: TIVAV2260226 | C2: TIVAV3140327 | D2: TIVAV4251127 | E2: TIVAV5231128 | F2: TIVAV6281128
A3: ISIN
A4: Emisión | B4: 2021-02-26 | C4: 2022-03-14 | D4: 2022-11-25 | E4: 2023-11-23 | F4: 2023-11-28
A5: Vencimiento contractual | B5: 2026-02-26 | C5: 2027-03-14 | D5: 2027-11-25 | E5: 2028-11-23 | F5: 2028-11-28
A6: Cupón EA | B6: 0.049 | C6: 0.0855 | D6: 0.161 | E6: 0.158 | F6: 0.15
A7: Moneda | B7: COP | C7: COP | D7: COP | E7: COP | F7: COP
A9: Cálculo de tasa y precio sucio a partir del limpio
A10: Fecha de liquidación | B10: =+CALCULADORA!C27 -> 2024-02-13
A11: Fecha último pago cupón | B11: =+VLOOKUP(B10,Flujos!$A$2:$A$182,1) -> 2024-01-28
A12: Valor Par | B12: =+VLOOKUP(B11,Flujos!$A$2:$D$182,4) -> 90.852581
A13: Próximo pago de interés | B13: =+VLOOKUP(EDATE(B10,1),Flujos!$A$2:$F$182,6) -> 1.064338
A14: Días corridos | B14: =+DAYS360(B11,B10,TRUE) -> 15
A15: Días entre flujos | B15: 30
A16: Cupón corrido | B16: =ROUND(B13/B12*B14/B15*100,4) -> 0.5858
A17: Precio limpio | B17: =+TRUNC(Flujos!H183/VLOOKUP(CALCULADORA!C27,Flujos!A:D,4)*100,3) -> 101.114
A18: Nominal | B18: =+CALCULADORA!C28 -> 2.970234345e+10
A19: Moneda | B19: 1
A20: Contravalor | B20: =ROUND(B18*B19*(B17+B16)/100,0) -> 30207223888
A21: Precio unitario | B21: =TRUNC(B20/B18,5) -> 1.01699
A22: Precio sucio MEC | B22: =TRUNC(B21/B19*100,3) -> 101.699
A23: Precio sucio modelo | B23: =+B22 -> 101.699
A24: Diferencia | B24: =+B22-B23 -> 0
A25: Tasa de descuento equivalente | B25: =TRUNC(CALCULADORA!C29,5) -> 0.1415
A27: Cálculo de precio limpio y sucio a partir de tasa
A28: Tasa de descuento | B28: =TRUNC(CALCULADORA!C29,5) -> 0.1415
A29: Precio sucio modelo | B29: =TRUNC(Flujos!H183/VLOOKUP(CALCULADORA!C27,Flujos!A2:D182,4)*100,3) -> 101.114
A30: Moneda | B30: =+CALCULADORA!$C$43 -> 1
A31: Nominal | B31: =+CALCULADORA!C28 -> 2.970234345e+10
A32: Contravalor | B32: =+ROUND(B29/100*B31*B30,0) -> 30033227560
A33: Valor Par | B33: =+VLOOKUP(B11,Flujos!$A$2:$D$182,4) -> 90.852581
A34: Próximo pago de interés | B34: =+VLOOKUP(EDATE(B10,1),Flujos!$A$2:$F$182,6) -> 1.064338
A35: Días corridos | B35: =+DAYS360(B11,B10,TRUE) -> 15
A36: Días entre flujos | B36: 30
A37: Precio unitario | B37: =TRUNC(B32/(B30*B31),5) -> 1.01114
A38: Cupón corrido | B38: =ROUND(B34/B33*B35/B36,6)*100 -> 0.5858
A39: Precio limpio | B39: =ROUND((B37-(B38/100))*100,3) -> 100.528

Sheet Flujos (hidden)
A1: Fecha | B1: Días 365 / Days 365 | C1: Amortización / Amortization | D1: Factor Saldo | E1: Factor Capital | F1: Factor Intereses | G1: Factor Total | H1: VPN | I1: Control | J1: Mes inicial | K1: Días iniciales | L1: Saldo / Balance | M1: Pago de Capital | N1: Pago de Intereses | O1: Pago Total
A2: =+CALCULADORA!C13 -> 2023-11-28 | B2: =IF(DIAS365(CALCULADORA!$C$27,A2)<0,0,DIAS365(CALCULADORA!$C$27,A2)) -> 0 | C2: 0 | D2: =+CALCULADORA!A32/Flujos!C183 -> 100 | E2: 0 | F2: 0 | G2: =F2+E2 -> 0 | H2: =IF($B2<0,0,G2/POWER(1+CALCULADORA!$C$29,Flujos!$B2/365)) -> 0 | I2: =+A2 -> 2023-11-28 | J2: 0 | K2: 0 | L2: =+Características!B18/Flujos!C183 -> 3.26929e+10 | M2: 0 | N2: 0 | O2: =+N2+M2 -> 0
A3: =EDATE(A2,1) -> 2023-12-28 | B3: =IF(DIAS365(CALCULADORA!$C$27,A3)<0,0,DIAS365(CALCULADORA!$C$27,A3)) -> 0 | C3: =+HLOOKUP(CALCULADORA!$C$9,Tablas!B:B,Flujos!J3+1,FALSE) -> 0.03975884 | D3: =+ROUND(D2-E3,6) -> 96.024116 | E3: =ROUND(C3*$D$2,6) -> 3.975884 | F3: =ROUND(D2*ROUND(((1+CALCULADORA!$C$16)^(1/12)-1),6),6) -> 1.1715 | G3: =F3+E3 -> 5.147384 | H3: =IF($B3=0,0,G3/POWER(1+CALCULADORA!$C$29,Flujos!$B3/365)) -> 0 | I3: =+A3 -> 2023-12-28 | J3: 1 | K3: =+DIAS365($A$2,A3) -> 30 | L3: =+L2-M3 -> 3.139306822e+10 | M3: =+$L$2*C3 -> 1299831780 | N3: =+L2*$F$3% -> 382997323.5 | O3: =+N3+M3 -> 1682829104
A4: =EDATE(A3,1) -> 2024-01-28 | B4: =IF(DIAS365(CALCULADORA!$C$27,A4)<0,0,DIAS365(CALCULADORA!$C$27,A4)) -> 0 | C4: =+HLOOKUP(CALCULADORA!$C$9,Tablas!B:B,Flujos!J4+1,FALSE) -> 0.05171535 | D4: =+ROUND(D3-E4,6) -> 90.852581 | E4: =ROUND(C4*$D$2,6) -> 5.171535 | F4: =ROUND(D3*ROUND(((1+CALCULADORA!$C$16)^(1/12)-1),6),6) -> 1.124923 | G4: =F4+E4 -> 6.296458 | H4: =IF($B4=0,0,G4/POWER(1+CALCULADORA!$C$29,Flujos!$B4/365)) -> 0 | I4: 2024-01-28 | J4: 2 | K4: =+DIAS365($A$2,A4) -> 61 | L4: =+L3-M4 -> 2.970234345e+10 | M4: =+$L$2*C4 -> 1690724766 | N4: =+L3*$F$3% -> 367769794.2 | O4: =+N4+M4 -> 2058494560
A5: 2024-02-28 | B5: =IF(DIAS365(CALCULADORA!$C$27,A5)<0,0,DIAS365(CALCULADORA!$C$27,A5)) -> 15 | C5: =+HLOOKUP(CALCULADORA!$C$9,Tablas!B:B,Flujos!J5+1,FALSE) -> 0.065 | D5: =+ROUND(D4-E5,6) -> 84.352581 | E5: 6.5 | F5: =ROUND(D4*ROUND(((1+CALCULADORA!$C$16)^(1/12)-1),6),6) -> 1.064338 | G5: 7.564338 | H5: =IF($B5=0,0,G5/POWER(1+CALCULADORA!$C$29,Flujos!$B5/365)) -> 7.523309047 | I5: 2024-02-28 | J5: 3 | K5: =+DIAS365($A$2,A5) -> 92 | L5: 2.757730495e+10 | M5: 2125038500 | N5: 347962953.6 | O5: 2473001454
A6: 2024-03-28 | B6: =IF(DIAS365(CALCULADORA!$C$27,A6)<0,0,DIAS365(CALCULADORA!$C$27,A6)) -> 43 | C6: =+HLOOKUP(CALCULADORA!$C$9,Tablas!B:B,Flujos!J6+1,FALSE) -> 0.065 | D6: 77.852581 | E6: 6.5 | F6: =ROUND(D5*ROUND(((1+CALCULADORA!$C$16)^(1/12)-1),6),6) -> 0.98819 | G6: 7.48819 | H6: =IF($B6=0,0,G6/POWER(1+CALCULADORA!$C$29,Flujos!$B6/365)) -> 7.372346181 | I6: 2024-03-28 | J6: 4 | K6: =+DIAS365($A$2,A6) -> 120 | L6: 2.545226645e+10 | M6: 2125038500 | N6: 323068127.5 | O6: 2448106628
A7: 2024-04-28 | B7: =IF(DIAS365(CALCULADORA!$C$27,A7)<0,0,DIAS365(CALCULADORA!$C$27,A7)) -> 74 | C7: =+HLOOKUP(CALCULADORA!$C$9,Tablas!B:B,Flujos!J7+1,FALSE) -> 0.06 | D7: 71.852581 | E7: 6 | F7: =ROUND(D6*ROUND(((1+CALCULADORA!$C$16)^(1/12)-1),6),6) -> 0.912043 | G7: 6.912043 | H7: =IF($B7=0,0,G7/POWER(1+CALCULADORA!$C$29,Flujos!$B7/365)) -> 6.729050379 | I7: 2024-04-28 | J7: 5 | K7: =+DIAS365($A$2,A7) -> 151 | L7: 2.349069245e+10 | M7: 1961574000 | N7: 298173301.5 | O7: 2259747302
A8: 2024-05-28 | B8: =IF(DIAS365(CALCULADORA!$C$27,A8)<0,0,DIAS365(CALCULADORA!$C$27,A8)) -> 104 | C8: =+HLOOKUP(CALCULADORA!$C$9,Tablas!B:B,Flujos!J8+1,FALSE) -> 0.06 | D8: 65.852581 | E8: 6 | F8: =ROUND(D7*ROUND(((1+CALCULADORA!$C$16)^(1/12)-1),6),6) -> 0.841753 | G8: 6.841753 | H8: =IF($B8=0,0,G8/POWER(1+CALCULADORA!$C$29,Flujos!$B8/365)) -> 6.588562833 | I8: 2024-05-28 | J8: 6 | K8: =+DIAS365($A$2,A8) -> 181 | L8: 2.152911845e+10 | M8: 1961574000 | N8: 275193462.1 | O8: 2236767462
A9: 2024-06-28 | B9: =IF(DIAS365(CALCULADORA!$C$27,A9)<0,0,DIAS365(CALCULADORA!$C$27,A9)) -> 135 | C9: =+HLOOKUP(CALCULADORA!$C$9,Tablas!B:B,Flujos!J9+1,FALSE) -> 0.06 | D9: 59.852581 | E9: 6 | F9: =ROUND(D8*ROUND(((1+CALCULADORA!$C$16)^(1/12)-1),6),6) -> 0.771463 | G9: 6.771463 | H9: =IF($B9=0,0,G9/POWER(1+CALCULADORA!$C$29,Flujos!$B9/365)) -> 6.447989095 | I9: 2024-06-28 | J9: 7 | K9: =+DIAS365($A$2,A9) -> 212 | L9: 1.956754445e+10 | M9: 1961574000 | N9: 252213622.7 | O9: 2213787623
A10: 2024-07-28 | B10: =IF(DIAS365(CALCULADORA!$C$27,A10)<0,0,DIAS365(CALCULADORA!$C$27,A10)) -> 165 | C10: =+HLOOKUP(CALCULADORA!$C$9,Tablas!B:B,Flujos!J10+1,FALSE) -> 0.06 | D10: 53.852581 | E10: 6 | F10: =ROUND(D9*ROUND(((1+CALCULADORA!$C$16)^(1/12)-1),6),6) -> 0.701173 | G10: 6.701173 | H10: =IF($B10=0,0,G10/POWER(1+CALCULADORA!$C$29,Flujos!$B10/365)) -> 6.312022912 | I10: 2024-07-28 | J10: 8 | K10: =+DIAS365($A$2,A10) -> 242 | L10: 1.760597045e+10 | M10: 1961574000 | N10: 229233783.3 | O10: 2190807783
A11: 2024-08-28 | B11: =IF(DIAS365(CALCULADORA!$C$27,A11)<0,0,DIAS365(CALCULADORA!$C$27,A11)) -> 196 | C11: =+HLOOKUP(CALCULADORA!$C$9,Tablas!B:B,Flujos!J11+1,FALSE) -> 0.0576913 | D11: 48.083451 | E11: 5.76913 | F11: =ROUND(D10*ROUND(((1+CALCULADORA!$C$16)^(1/12)-1),6),6) -> 0.630883 | G11: 6.400013 | H11: =IF($B11=0,0,G11/POWER(1+CALCULADORA!$C$29,Flujos!$B11/365)) -> 5.960971929 | I11: 2024-08-28 | J11: 9 | K11: =+DIAS365($A$2,A11) -> 273 | L11: 1.571987455e+10 | M11: 1886095902 | N11: 206253943.9 | O11: 2092349846
A12: 2024-09-28 | B12: =IF(DIAS365(CALCULADORA!$C$27,A12)<0,0,DIAS365(CALCULADORA!$C$27,A12)) -> 227 | C12: =+HLOOKUP(CALCULADORA!$C$9,Tablas!B:B,Flujos!J12+1,FALSE) -> 0.05 | D12: 43.083451 | E12: 5 | F12: =ROUND(D11*ROUND(((1+CALCULADORA!$C$16)^(1/12)-1),6),6) -> 0.563298 | G12: 5.563298 | H12: =IF($B12=0,0,G12/POWER(1+CALCULADORA!$C$29,Flujos!$B12/365)) -> 5.123739344 | I12: 2024-09-28 | J12: 10 | K12: =+DIAS365($A$2,A12) -> 304 | L12: 1.408522955e+10 | M12: 1634645000 | N12: 184158330.4 | O12: 1818803330
A13: 2024-10-28 | B13: =IF(DIAS365(CALCULADORA!$C$27,A13)<0,0,DIAS365(CALCULADORA!$C$27,A13)) -> 257 | C13: =+HLOOKUP(CALCULADORA!$C$9,Tablas!B:B,Flujos!J13+1,FALSE) -> 0.04939581 | D13: 38.14387 | E13: 4.939581 | F13: =ROUND(D12*ROUND(((1+CALCULADORA!$C$16)^(1/12)-1),6),6) -> 0.504723 | G13: 5.444304 | H13: =IF($B13=0,0,G13/POWER(1+CALCULADORA!$C$29,Flujos!$B13/365)) -> 4.959901182 | I13: 2024-10-28 | J13: 11 | K13: =+DIAS365($A$2,A13) -> 334 | L13: 1.247033728e+10 | M13: 1614892277 | N13: 165008464.2 | O13: 1779900741
A14: 2024-11-28 | B14: =IF(DIAS365(CALCULADORA!$C$27,A14)<0,0,DIAS365(CALCULADORA!$C$27,A14)) -> 288 | C14: =+HLOOKUP(CALCULADORA!$C$9,Tablas!B:B,Flujos!J14+1,FALSE) -> 0.04707646 | D14: 33.436224 | E14: 4.707646 | F14: =ROUND(D13*ROUND(((1+CALCULADORA!$C$16)^(1/12)-1),6),6) -> 0.446855 | G14: 5.154501 | H14: =IF($B14=0,0,G14/POWER(1+CALCULADORA!$C$29,Flujos!$B14/365)) -> 4.643396488 | I14: 2024-11-28 | J14: 12 | K14: =+DIAS365($A$2,A14) -> 365 | L14: 1.093127128e+10 | M14: 1539065999 | N14: 146090001.2 | O14: 1685156000
A15: 2024-12-28 | B15: =IF(DIAS365(CALCULADORA!$C$27,A15)<0,0,DIAS365(CALCULADORA!$C$27,A15)) -> 318 | C15: =+HLOOKUP(CALCULADORA!$C$9,Tablas!B:B,Flujos!J15+1,FALSE) -> 0.05 | D15: 28.436224 | E15: 5 | F15: =ROUND(D14*ROUND(((1+CALCULADORA!$C$16)^(1/12)-1),6),6) -> 0.391705 | G15: 5.391705 | H15: =IF($B15=0,0,G15/POWER(1+CALCULADORA!$C$29,Flujos!$B15/365)) -> 4.804533378 | I15: 2024-12-28 | J15: 13 | K15: =+DIAS365($A$2,A15) -> 395 | L15: 9296626276 | M15: 1634645000 | N15: 128059843 | O15: 1762704843
A16: 2025-01-28 | B16: =IF(DIAS365(CALCULADORA!$C$27,A16)<0,0,DIAS365(CALCULADORA!$C$27,A16)) -> 349 | C16: =+HLOOKUP(CALCULADORA!$C$9,Tablas!B:B,Flujos!J16+1,FALSE) -> 0.04946154 | D16: 23.49007 | E16: 4.946154 | F16: =ROUND(D15*ROUND(((1+CALCULADORA!$C$16)^(1/12)-1),6),6) -> 0.33313 | G16: 5.279284 | H16: =IF($B16=0,0,G16/POWER(1+CALCULADORA!$C$29,Flujos!$B16/365)) -> 4.651773946 | I16: 2025-01-28 | J16: 14 | K16: =+DIAS365($A$2,A16) -> 426 | L16: 7679585095 | M16: 1617041181 | N16: 108909976.8 | O16: 1725951158
A17: 2025-02-28 | B17: =IF(DIAS365(CALCULADORA!$C$27,A17)<0,0,DIAS365(CALCULADORA!$C$27,A17)) -> 380 | C17: =+HLOOKUP(CALCULADORA!$C$9,Tablas!B:B,Flujos!J17+1,FALSE) -> 0.04773024 | D17: 18.717046 | E17: 4.773024 | F17: =ROUND(D16*ROUND(((1+CALCULADORA!$C$16)^(1/12)-1),6),6) -> 0.275186 | G17: 5.04821 | H17: =IF($B17=0,0,G17/POWER(1+CALCULADORA!$C$29,Flujos!$B17/365)) -> 4.398448112 | I17: 2025-02-28 | J17: 15 | K17: =+DIAS365($A$2,A17) -> 457 | L17: 6119145132 | M17: 1560439963 | N17: 89966339.39 | O17: 1650406303
A18: 2025-03-28 | B18: =IF(DIAS365(CALCULADORA!$C$27,A18)<0,0,DIAS365(CALCULADORA!$C$27,A18)) -> 408 | C18: =+HLOOKUP(CALCULADORA!$C$9,Tablas!B:B,Flujos!J18+1,FALSE) -> 0.04 | D18: 14.717046 | E18: 4 | F18: =ROUND(D17*ROUND(((1+CALCULADORA!$C$16)^(1/12)-1),6),6) -> 0.21927 | G18: 4.21927 | H18: =IF($B18=0,0,G18/POWER(1+CALCULADORA!$C$29,Flujos!$B18/365)) -> 3.639068801 | I18: 2025-03-28 | J18: 16 | K18: =+DIAS365($A$2,A18) -> 485 | L18: 4811429132 | M18: 1307716000 | N18: 71685785.22 | O18: 1379401785
A19: 2025-04-28 | B19: =IF(DIAS365(CALCULADORA!$C$27,A19)<0,0,DIAS365(CALCULADORA!$C$27,A19)) -> 439 | C19: =+HLOOKUP(CALCULADORA!$C$9,Tablas!B:B,Flujos!J19+1,FALSE) -> 0.04 | D19: 10.717046 | E19: 4 | F19: =ROUND(D18*ROUND(((1+CALCULADORA!$C$16)^(1/12)-1),6),6) -> 0.17241 | G19: 4.17241 | H19: =IF($B19=0,0,G19/POWER(1+CALCULADORA!$C$29,Flujos!$B19/365)) -> 3.558429864 | I19: 2025-04-28 | J19: 17 | K19: =+DIAS365($A$2,A19) -> 516 | L19: 3503713132 | M19: 1307716000 | N19: 56365892.28 | O19: 1364081892
A20: 2025-05-28 | B20: =IF(DIAS365(CALCULADORA!$C$27,A20)<0,0,DIAS365(CALCULADORA!$C$27,A20)) -> 469 | C20: =+HLOOKUP(CALCULADORA!$C$9,Tablas!B:B,Flujos!J20+1,FALSE) -> 0.04 | D20: 6.717046 | E20: 4 | F20: =ROUND(D19*ROUND(((1+CALCULADORA!$C$16)^(1/12)-1),6),6) -> 0.12555 | G20: 4.12555 | H20: =IF($B20=0,0,G20/POWER(1+CALCULADORA!$C$29,Flujos!$B20/365)) -> 3.48040064 | I20: 2025-05-28 | J20: 18 | K20: =+DIAS365($A$2,A20) -> 546 | L20: 2195997132 | M20: 1307716000 | N20: 41045999.34 | O20: 1348761999
A21: 2025-06-28 | B21: =IF(DIAS365(CALCULADORA!$C$27,A21)<0,0,DIAS365(CALCULADORA!$C$27,A21)) -> 500 | C21: =+HLOOKUP(CALCULADORA!$C$9,Tablas!B:B,Flujos!J21+1,FALSE) -> 0.03 | D21: 3.717046 | E21: 3 | F21: =ROUND(D20*ROUND(((1+CALCULADORA!$C$16)^(1/12)-1),6),6) -> 0.07869 | G21: 3.07869 | H21: =IF($B21=0,0,G21/POWER(1+CALCULADORA!$C$29,Flujos!$B21/365)) -> 2.56821767 | I21: 2025-06-28 | J21: 19 | K21: =+DIAS365($A$2,A21) -> 577 | L21: 1215210132 | M21: 980787000 | N21: 25726106.4 | O21: 1006513106
A22: 2025-07-28 | B22: =IF(DIAS365(CALCULADORA!$C$27,A22)<0,0,DIAS365(CALCULADORA!$C$27,A22)) -> 530 | C22: =+HLOOKUP(CALCULADORA!$C$9,Tablas!B:B,Flujos!J22+1,FALSE) -> 0.03 | D22: =+ROUND(D21-E22,6) -> 0.717046 | E22: 3 | F22: =ROUND(D21*ROUND(((1+CALCULADORA!$C$16)^(1/12)-1),6),6) -> 0.043545 | G22: 3.043545 | H22: =IF($B22=0,0,G22/POWER(1+CALCULADORA!$C$29,Flujos!$B22/365)) -> 2.51143272 | I22: 2025-07-28 | J22: 20 | K22: =+DIAS365($A$2,A22) -> 607 | L22: 234423131.7 | M22: 980787000 | N22: 14236186.69 | O22: 995023186.7
A23: 2025-08-28 | B23: =IF(DIAS365(CALCULADORA!$C$27,A23)<0,0,DIAS365(CALCULADORA!$C$27,A23)) -> 561 | C23: =+HLOOKUP(CALCULADORA!$C$9,Tablas!B:B,Flujos!J23+1,FALSE) -> 0.00717046 | D23: 0 | E23: 0.717046 | F23: =ROUND(D22*ROUND(((1+CALCULADORA!$C$16)^(1/12)-1),6),6) -> 0.0084 | G23: 0.725446 | H23: =IF($B23=0,0,G23/POWER(1+CALCULADORA!$C$29,Flujos!$B23/365)) -> 0.5919232449 | I23: 2025-08-28 | J23: 21 | K23: =+DIAS365($A$2,A23) -> 638 | L23: -5.930662155e-06 | M23: 234423131.7 | N23: 2746266.988 | O23: 237169398.7
A24: 2025-09-28 | B24: =IF(DIAS365(CALCULADORA!$C$27,A24)<0,0,DIAS365(CALCULADORA!$C$27,A24)) -> 592 | C24: =+HLOOKUP(CALCULADORA!$C$9,Tablas!B:B,Flujos!J24+1,FALSE) -> 0 | D24: 0 | E24: 0 | F24: =ROUND(D23*ROUND(((1+CALCULADORA!$C$16)^(1/12)-1),6),6) -> 0 | G24: 0 | H24: =IF($B24=0,0,G24/POWER(1+CALCULADORA!$C$29,Flujos!$B24/365)) -> 0 | I24: 2025-09-28 | J24: 22 | K24: =+DIAS365($A$2,A24) -> 669 | L24: -5.930662155e-06 | M24: 0 | N24: -6.947770715e-08 | O24: -6.947770715e-08
A25: 2025-10-28 | B25: =IF(DIAS365(CALCULADORA!$C$27,A25)<0,0,DIAS365(CALCULADORA!$C$27,A25)) -> 622 | C25: =+HLOOKUP(CALCULADORA!$C$9,Tablas!B:B,Flujos!J25+1,FALSE) -> 0 | D25: 0 | E25: 0 | F25: =ROUND(D24*ROUND(((1+CALCULADORA!$C$16)^(1/12)-1),6),6) -> 0 | G25: 0 | H25: =IF($B25=0,0,G25/POWER(1+CALCULADORA!$C$29,Flujos!$B25/365)) -> 0 | I25: 2025-10-28 | J25: 23 | K25: =+DIAS365($A$2,A25) -> 699 | L25: -5.930662155e-06 | M25: 0 | N25: -6.947770715e-08 | O25: -6.947770715e-08
A26: 2025-11-28 | B26: =IF(DIAS365(CALCULADORA!$C$27,A26)<0,0,DIAS365(CALCULADORA!$C$27,A26)) -> 653 | C26: =+HLOOKUP(CALCULADORA!$C$9,Tablas!B:B,Flujos!J26+1,FALSE) -> 0 | D26: 0 | E26: 0 | F26: =ROUND(D25*ROUND(((1+CALCULADORA!$C$16)^(1/12)-1),6),6) -> 0 | G26: 0 | H26: =IF($B26=0,0,G26/POWER(1+CALCULADORA!$C$29,Flujos!$B26/365)) -> 0 | I26: 2025-11-28 | J26: 24 | K26: =+DIAS365($A$2,A26) -> 730 | L26: -5.930662155e-06 | M26: 0 | N26: -6.947770715e-08 | O26: -6.947770715e-08
A27: 2025-12-28 | B27: =IF(DIAS365(CALCULADORA!$C$27,A27)<0,0,DIAS365(CALCULADORA!$C$27,A27)) -> 683 | C27: =+HLOOKUP(CALCULADORA!$C$9,Tablas!B:B,Flujos!J27+1,FALSE) -> 0 | D27: 0 | E27: 0 | F27: =ROUND(D26*ROUND(((1+CALCULADORA!$C$16)^(1/12)-1),6),6) -> 0 | G27: 0 | H27: =IF($B27=0,0,G27/POWER(1+CALCULADORA!$C$29,Flujos!$B27/365)) -> 0 | I27: 2025-12-28 | J27: 25 | K27: =+DIAS365($A$2,A27) -> 760 | L27: -5.930662155e-06 | M27: 0 | N27: -6.947770715e-08 | O27: -6.947770715e-08
A28: 2026-01-28 | B28: =IF(DIAS365(CALCULADORA!$C$27,A28)<0,0,DIAS365(CALCULADORA!$C$27,A28)) -> 714 | C28: =+HLOOKUP(CALCULADORA!$C$9,Tablas!B:B,Flujos!J28+1,FALSE) -> 0 | D28: 0 | E28: 0 | F28: =ROUND(D27*ROUND(((1+CALCULADORA!$C$16)^(1/12)-1),6),6) -> 0 | G28: 0 | H28: =IF($B28=0,0,G28/POWER(1+CALCULADORA!$C$29,Flujos!$B28/365)) -> 0 | I28: 2026-01-28 | J28: 26 | K28: =+DIAS365($A$2,A28) -> 791 | L28: -5.930662155e-06 | M28: 0 | N28: -6.947770715e-08 | O28: -6.947770715e-08
A29: 2026-02-28 | B29: =IF(DIAS365(CALCULADORA!$C$27,A29)<0,0,DIAS365(CALCULADORA!$C$27,A29)) -> 745 | C29: =+HLOOKUP(CALCULADORA!$C$9,Tablas!B:B,Flujos!J29+1,FALSE) -> 0 | D29: 0 | E29: 0 | F29: =ROUND(D28*ROUND(((1+CALCULADORA!$C$16)^(1/12)-1),6),6) -> 0 | G29: 0 | H29: =IF($B29=0,0,G29/POWER(1+CALCULADORA!$C$29,Flujos!$B29/365)) -> 0 | I29: 2026-02-28 | J29: 27 | K29: =+DIAS365($A$2,A29) -> 822 | L29: -5.930662155e-06 | M29: 0 | N29: -6.947770715e-08 | O29: -6.947770715e-08
A30: 2026-03-28 | B30: =IF(DIAS365(CALCULADORA!$C$27,A30)<0,0,DIAS365(CALCULADORA!$C$27,A30)) -> 773 | C30: =+HLOOKUP(CALCULADORA!$C$9,Tablas!B:B,Flujos!J30+1,FALSE) -> 0 | D30: 0 | E30: 0 | F30: =ROUND(D29*ROUND(((1+CALCULADORA!$C$16)^(1/12)-1),6),6) -> 0 | G30: 0 | H30: =IF($B30=0,0,G30/POWER(1+CALCULADORA!$C$29,Flujos!$B30/365)) -> 0 | I30: 2026-03-28 | J30: 28 | K30: =+DIAS365($A$2,A30) -> 850 | L30: -5.930662155e-06 | M30: 0 | N30: -6.947770715e-08 | O30: -6.947770715e-08
A31: 2026-04-28 | B31: =IF(DIAS365(CALCULADORA!$C$27,A31)<0,0,DIAS365(CALCULADORA!$C$27,A31)) -> 804 | C31: =+HLOOKUP(CALCULADORA!$C$9,Tablas!B:B,Flujos!J31+1,FALSE) -> 0 | D31: 0 | E31: 0 | F31: =ROUND(D30*ROUND(((1+CALCULADORA!$C$16)^(1/12)-1),6),6) -> 0 | G31: 0 | H31: =IF($B31=0,0,G31/POWER(1+CALCULADORA!$C$29,Flujos!$B31/365)) -> 0 | I31: 2026-04-28 | J31: 29 | K31: =+DIAS365($A$2,A31) -> 881 | L31: -5.930662155e-06 | M31: 0 | N31: -6.947770715e-08 | O31: -6.947770715e-08
A32: 2026-05-28 | B32: =IF(DIAS365(CALCULADORA!$C$27,A32)<0,0,DIAS365(CALCULADORA!$C$27,A32)) -> 834 | C32: =+HLOOKUP(CALCULADORA!$C$9,Tablas!B:B,Flujos!J32+1,FALSE) -> 0 | D32: 0 | E32: 0 | F32: =ROUND(D31*ROUND(((1+CALCULADORA!$C$16)^(1/12)-1),6),6) -> 0 | G32: 0 | H32: =IF($B32=0,0,G32/POWER(1+CALCULADORA!$C$29,Flujos!$B32/365)) -> 0 | I32: 2026-05-28 | J32: 30 | K32: =+DIAS365($A$2,A32) -> 911 | L32: -5.930662155e-06 | M32: 0 | N32: -6.947770715e-08 | O32: -6.947770715e-08
A33: 2026-06-28 | B33: =IF(DIAS365(CALCULADORA!$C$27,A33)<0,0,DIAS365(CALCULADORA!$C$27,A33)) -> 865 | C33: =+HLOOKUP(CALCULADORA!$C$9,Tablas!B:B,Flujos!J33+1,FALSE) -> 0 | D33: 0 | E33: 0 | F33: =ROUND(D32*ROUND(((1+CALCULADORA!$C$16)^(1/12)-1),6),6) -> 0 | G33: 0 | H33: =IF($B33=0,0,G33/POWER(1+CALCULADORA!$C$29,Flujos!$B33/365)) -> 0 | I33: 2026-06-28 | J33: 31 | K33: =+DIAS365($A$2,A33) -> 942 | L33: -5.930662155e-06 | M33: 0 | N33: -6.947770715e-08 | O33: -6.947770715e-08
A34: 2026-07-28 | B34: =IF(DIAS365(CALCULADORA!$C$27,A34)<0,0,DIAS365(CALCULADORA!$C$27,A34)) -> 895 | C34: =+HLOOKUP(CALCULADORA!$C$9,Tablas!B:B,Flujos!J34+1,FALSE) -> 0 | D34: 0 | E34: 0 | F34: =ROUND(D33*ROUND(((1+CALCULADORA!$C$16)^(1/12)-1),6),6) -> 0 | G34: 0 | H34: =IF($B34=0,0,G34/POWER(1+CALCULADORA!$C$29,Flujos!$B34/365)) -> 0 | I34: 2026-07-28 | J34: 32 | K34: =+DIAS365($A$2,A34) -> 972 | L34: -5.930662155e-06 | M34: 0 | N34: -6.947770715e-08 | O34: -6.947770715e-08
A35: =EDATE(A34,1) -> 2026-08-28 | B35: =IF(DIAS365(CALCULADORA!$C$27,A35)<0,0,DIAS365(CALCULADORA!$C$27,A35)) -> 926 | C35: =+HLOOKUP(CALCULADORA!$C$9,Tablas!B:B,Flujos!J35+1,FALSE) -> 0 | D35: 0 | E35: 0 | F35: =ROUND(D34*ROUND(((1+CALCULADORA!$C$16)^(1/12)-1),6),6) -> 0 | G35: 0 | H35: =IF($B35=0,0,G35/POWER(1+CALCULADORA!$C$29,Flujos!$B35/365)) -> 0 | I35: 2026-08-28 | J35: 33 | K35: =+DIAS365($A$2,A35) -> 1003 | L35: -5.930662155e-06 | M35: 0 | N35: -6.947770715e-08 | O35: -6.947770715e-08
A36: 2026-09-28 | B36: =IF(DIAS365(CALCULADORA!$C$27,A36)<0,0,DIAS365(CALCULADORA!$C$27,A36)) -> 957 | C36: =+HLOOKUP(CALCULADORA!$C$9,Tablas!B:B,Flujos!J36+1,FALSE) -> 0 | D36: 0 | E36: 0 | F36: =ROUND(D35*ROUND(((1+CALCULADORA!$C$16)^(1/12)-1),6),6) -> 0 | G36: 0 | H36: =IF($B36=0,0,G36/POWER(1+CALCULADORA!$C$29,Flujos!$B36/365)) -> 0 | I36: 2026-09-28 | J36: 34 | K36: =+DIAS365($A$2,A36) -> 1034 | L36: -5.930662155e-06 | M36: 0 | N36: -6.947770715e-08 | O36: -6.947770715e-08
A37: 2026-10-28 | B37: =IF(DIAS365(CALCULADORA!$C$27,A37)<0,0,DIAS365(CALCULADORA!$C$27,A37)) -> 987 | C37: =+HLOOKUP(CALCULADORA!$C$9,Tablas!B:B,Flujos!J37+1,FALSE) -> 0 | D37: 0 | E37: 0 | F37: =ROUND(D36*ROUND(((1+CALCULADORA!$C$16)^(1/12)-1),6),6) -> 0 | G37: 0 | H37: =IF($B37=0,0,G37/POWER(1+CALCULADORA!$C$29,Flujos!$B37/365)) -> 0 | I37: 2026-10-28 | J37: 35 | K37: =+DIAS365($A$2,A37) -> 1064 | L37: -5.930662155e-06 | M37: 0 | N37: -6.947770715e-08 | O37: -6.947770715e-08
A38: 2026-11-28 | B38: =IF(DIAS365(CALCULADORA!$C$27,A38)<0,0,DIAS365(CALCULADORA!$C$27,A38)) -> 1018 | C38: =+HLOOKUP(CALCULADORA!$C$9,Tablas!B:B,Flujos!J38+1,FALSE) -> 0 | D38: 0 | E38: 0 | F38: =ROUND(D37*ROUND(((1+CALCULADORA!$C$16)^(1/12)-1),6),6) -> 0 | G38: 0 | H38: =IF($B38=0,0,G38/POWER(1+CALCULADORA!$C$29,Flujos!$B38/365)) -> 0 | I38: 2026-11-28 | J38: 36 | K38: =+DIAS365($A$2,A38) -> 1095 | L38: -5.930662155e-06 | M38: 0 | N38: -6.947770715e-08 | O38: -6.947770715e-08
A39: 2026-12-28 | B39: =IF(DIAS365(CALCULADORA!$C$27,A39)<0,0,DIAS365(CALCULADORA!$C$27,A39)) -> 1048 | C39: =+HLOOKUP(CALCULADORA!$C$9,Tablas!B:B,Flujos!J39+1,FALSE) -> 0 | D39: 0 | E39: 0 | F39: =ROUND(D38*ROUND(((1+CALCULADORA!$C$16)^(1/12)-1),6),6) -> 0 | G39: 0 | H39: =IF($B39=0,0,G39/POWER(1+CALCULADORA!$C$29,Flujos!$B39/365)) -> 0 | I39: 2026-12-28 | J39: 37 | K39: =+DIAS365($A$2,A39) -> 1125 | L39: -5.930662155e-06 | M39: 0 | N39: -6.947770715e-08 | O39: -6.947770715e-08
A40: 2027-01-28 | B40: =IF(DIAS365(CALCULADORA!$C$27,A40)<0,0,DIAS365(CALCULADORA!$C$27,A40)) -> 1079 | C40: =+HLOOKUP(CALCULADORA!$C$9,Tablas!B:B,Flujos!J40+1,FALSE) -> 0 | D40: =+ROUND(D39-E40,6) -> 0 | E40: =ROUND(C40*$D$2,6) -> 0 | F40: =ROUND(D39*ROUND(((1+CALCULADORA!$C$16)^(1/12)-1),6),6) -> 0 | G40: =F40+E40 -> 0 | H40: =IF($B40=0,0,G40/POWER(1+CALCULADORA!$C$29,Flujos!$B40/365)) -> 0 | I40: =+A40 -> 2027-01-28 | J40: 38 | K40: =+DIAS365($A$2,A40) -> 1156 | L40: -5.930662155e-06 | M40: 0 | N40: -6.947770715e-08 | O40: -6.947770715e-08
A41: 2027-02-28 | B41: =IF(DIAS365(CALCULADORA!$C$27,A41)<0,0,DIAS365(CALCULADORA!$C$27,A41)) -> 1110 | C41: =+HLOOKUP(CALCULADORA!$C$9,Tablas!B:B,Flujos!J41+1,FALSE) -> 0 | D41: 0 | E41: 0 | F41: =ROUND(D40*ROUND(((1+CALCULADORA!$C$16)^(1/12)-1),6),6) -> 0 | G41: 0 | H41: =IF($B41=0,0,G41/POWER(1+CALCULADORA!$C$29,Flujos!$B41/365)) -> 0 | I41: 2027-02-28 | J41: 39 | K41: =+DIAS365($A$2,A41) -> 1187 | L41: -5.930662155e-06 | M41: 0 | N41: -6.947770715e-08 | O41: -6.947770715e-08
A42: 2027-03-28 | B42: =IF(DIAS365(CALCULADORA!$C$27,A42)<0,0,DIAS365(CALCULADORA!$C$27,A42)) -> 1138 | C42: =+HLOOKUP(CALCULADORA!$C$9,Tablas!B:B,Flujos!J42+1,FALSE) -> 0 | D42: 0 | E42: 0 | F42: =ROUND(D41*ROUND(((1+CALCULADORA!$C$16)^(1/12)-1),6),6) -> 0 | G42: 0 | H42: =IF($B42=0,0,G42/POWER(1+CALCULADORA!$C$29,Flujos!$B42/365)) -> 0 | I42: 2027-03-28 | J42: 40 | K42: =+DIAS365($A$2,A42) -> 1215 | L42: -5.930662155e-06 | M42: 0 | N42: -6.947770715e-08 | O42: -6.947770715e-08
A43: 2027-04-28 | B43: =IF(DIAS365(CALCULADORA!$C$27,A43)<0,0,DIAS365(CALCULADORA!$C$27,A43)) -> 1169 | C43: =+HLOOKUP(CALCULADORA!$C$9,Tablas!B:B,Flujos!J43+1,FALSE) -> 0 | D43: 0 | E43: 0 | F43: =ROUND(D42*ROUND(((1+CALCULADORA!$C$16)^(1/12)-1),6),6) -> 0 | G43: 0 | H43: =IF($B43=0,0,G43/POWER(1+CALCULADORA!$C$29,Flujos!$B43/365)) -> 0 | I43: 2027-04-28 | J43: 41 | K43: =+DIAS365($A$2,A43) -> 1246 | L43: -5.930662155e-06 | M43: 0 | N43: -6.947770715e-08 | O43: -6.947770715e-08
A44: 2027-05-28 | B44: =IF(DIAS365(CALCULADORA!$C$27,A44)<0,0,DIAS365(CALCULADORA!$C$27,A44)) -> 1199 | C44: =+HLOOKUP(CALCULADORA!$C$9,Tablas!B:B,Flujos!J44+1,FALSE) -> 0 | D44: 0 | E44: 0 | F44: =ROUND(D43*ROUND(((1+CALCULADORA!$C$16)^(1/12)-1),6),6) -> 0 | G44: 0 | H44: =IF($B44=0,0,G44/POWER(1+CALCULADORA!$C$29,Flujos!$B44/365)) -> 0 | I44: 2027-05-28 | J44: 42 | K44: =+DIAS365($A$2,A44) -> 1276 | L44: -5.930662155e-06 | M44: 0 | N44: -6.947770715e-08 | O44: -6.947770715e-08
A45: 2027-06-28 | B45: =IF(DIAS365(CALCULADORA!$C$27,A45)<0,0,DIAS365(CALCULADORA!$C$27,A45)) -> 1230 | C45: =+HLOOKUP(CALCULADORA!$C$9,Tablas!B:B,Flujos!J45+1,FALSE) -> 0 | D45: 0 | E45: 0 | F45: =ROUND(D44*ROUND(((1+CALCULADORA!$C$16)^(1/12)-1),6),6) -> 0 | G45: 0 | H45: =IF($B45=0,0,G45/POWER(1+CALCULADORA!$C$29,Flujos!$B45/365)) -> 0 | I45: 2027-06-28 | J45: 43 | K45: =+DIAS365($A$2,A45) -> 1307 | L45: -5.930662155e-06 | M45: 0 | N45: -6.947770715e-08 | O45: -6.947770715e-08
A46: 2027-07-28 | B46: =IF(DIAS365(CALCULADORA!$C$27,A46)<0,0,DIAS365(CALCULADORA!$C$27,A46)) -> 1260 | C46: =+HLOOKUP(CALCULADORA!$C$9,Tablas!B:B,Flujos!J46+1,FALSE) -> 0 | D46: 0 | E46: 0 | F46: =ROUND(D45*ROUND(((1+CALCULADORA!$C$16)^(1/12)-1),6),6) -> 0 | G46: 0 | H46: =IF($B46=0,0,G46/POWER(1+CALCULADORA!$C$29,Flujos!$B46/365)) -> 0 | I46: 2027-07-28 | J46: 44 | K46: =+DIAS365($A$2,A46) -> 1337 | L46: -5.930662155e-06 | M46: 0 | N46: -6.947770715e-08 | O46: -6.947770715e-08
A47: 2027-08-28 | B47: =IF(DIAS365(CALCULADORA!$C$27,A47)<0,0,DIAS365(CALCULADORA!$C$27,A47)) -> 1291 | C47: =+HLOOKUP(CALCULADORA!$C$9,Tablas!B:B,Flujos!J47+1,FALSE) -> 0 | D47: 0 | E47: 0 | F47: =ROUND(D46*ROUND(((1+CALCULADORA!$C$16)^(1/12)-1),6),6) -> 0 | G47: 0 | H47: =IF($B47=0,0,G47/POWER(1+CALCULADORA!$C$29,Flujos!$B47/365)) -> 0 | I47: 2027-08-28 | J47: 45 | K47: =+DIAS365($A$2,A47) -> 1368 | L47: -5.930662155e-06 | M47: 0 | N47: -6.947770715e-08 | O47: -6.947770715e-08
A48: 2027-09-28 | B48: =IF(DIAS365(CALCULADORA!$C$27,A48)<0,0,DIAS365(CALCULADORA!$C$27,A48)) -> 1322 | C48: =+HLOOKUP(CALCULADORA!$C$9,Tablas!B:B,Flujos!J48+1,FALSE) -> 0 | D48: 0 | E48: 0 | F48: =ROUND(D47*ROUND(((1+CALCULADORA!$C$16)^(1/12)-1),6),6) -> 0 | G48: 0 | H48: =IF($B48=0,0,G48/POWER(1+CALCULADORA!$C$29,Flujos!$B48/365)) -> 0 | I48: 2027-09-28 | J48: 46 | K48: =+DIAS365($A$2,A48) -> 1399 | L48: -5.930662155e-06 | M48: 0 | N48: -6.947770715e-08 | O48: -6.947770715e-08
A49: 2027-10-28 | B49: =IF(DIAS365(CALCULADORA!$C$27,A49)<0,0,DIAS365(CALCULADORA!$C$27,A49)) -> 1352 | C49: =+HLOOKUP(CALCULADORA!$C$9,Tablas!B:B,Flujos!J49+1,FALSE) -> 0 | D49: 0 | E49: 0 | F49: =ROUND(D48*ROUND(((1+CALCULADORA!$C$16)^(1/12)-1),6),6) -> 0 | G49: 0 | H49: =IF($B49=0,0,G49/POWER(1+CALCULADORA!$C$29,Flujos!$B49/365)) -> 0 | I49: 2027-10-28 | J49: 47 | K49: =+DIAS365($A$2,A49) -> 1429 | L49: -5.930662155e-06 | M49: 0 | N49: -6.947770715e-08 | O49: -6.947770715e-08
A50: 2027-11-28 | B50: =IF(DIAS365(CALCULADORA!$C$27,A50)<0,0,DIAS365(CALCULADORA!$C$27,A50)) -> 1383 | C50: =+HLOOKUP(CALCULADORA!$C$9,Tablas!B:B,Flujos!J50+1,FALSE) -> 0 | D50: 0 | E50: 0 | F50: =ROUND(D49*ROUND(((1+CALCULADORA!$C$16)^(1/12)-1),6),6) -> 0 | G50: 0 | H50: =IF($B50=0,0,G50/POWER(1+CALCULADORA!$C$29,Flujos!$B50/365)) -> 0 | I50: 2027-11-28 | J50: 48 | K50: =+DIAS365($A$2,A50) -> 1460 | L50: -5.930662155e-06 | M50: 0 | N50: -6.947770715e-08 | O50: -6.947770715e-08
A51: 2027-12-28 | B51: =IF(DIAS365(CALCULADORA!$C$27,A51)<0,0,DIAS365(CALCULADORA!$C$27,A51)) -> 1413 | C51: =+HLOOKUP(CALCULADORA!$C$9,Tablas!B:B,Flujos!J51+1,FALSE) -> 0 | D51: 0 | E51: 0 | F51: =ROUND(D50*ROUND(((1+CALCULADORA!$C$16)^(1/12)-1),6),6) -> 0 | G51: 0 | H51: =IF($B51=0,0,G51/POWER(1+CALCULADORA!$C$29,Flujos!$B51/365)) -> 0 | I51: 2027-12-28 | J51: 49 | K51: =+DIAS365($A$2,A51) -> 1490 | L51: -5.930662155e-06 | M51: 0 | N51: -6.947770715e-08 | O51: -6.947770715e-08
A52: 2028-01-28 | B52: =IF(DIAS365(CALCULADORA!$C$27,A52)<0,0,DIAS365(CALCULADORA!$C$27,A52)) -> 1444 | C52: =+HLOOKUP(CALCULADORA!$C$9,Tablas!B:B,Flujos!J52+1,FALSE) -> 0 | D52: 0 | E52: 0 | F52: =ROUND(D51*ROUND(((1+CALCULADORA!$C$16)^(1/12)-1),6),6) -> 0 | G52: 0 | H52: =IF($B52=0,0,G52/POWER(1+CALCULADORA!$C$29,Flujos!$B52/365)) -> 0 | I52: 2028-01-28 | J52: 50 | K52: =+DIAS365($A$2,A52) -> 1521 | L52: -5.930662155e-06 | M52: 0 | N52: -6.947770715e-08 | O52: -6.947770715e-08
A53: 2028-02-28 | B53: =IF(DIAS365(CALCULADORA!$C$27,A53)<0,0,DIAS365(CALCULADORA!$C$27,A53)) -> 1475 | C53: =+HLOOKUP(CALCULADORA!$C$9,Tablas!B:B,Flujos!J53+1,FALSE) -> 0 | D53: 0 | E53: 0 | F53: =ROUND(D52*ROUND(((1+CALCULADORA!$C$16)^(1/12)-1),6),6) -> 0 | G53: 0 | H53: =IF($B53=0,0,G53/POWER(1+CALCULADORA!$C$29,Flujos!$B53/365)) -> 0 | I53: 2028-02-28 | J53: 51 | K53: =+DIAS365($A$2,A53) -> 1552 | L53: -5.930662155e-06 | M53: 0 | N53: -6.947770715e-08 | O53: -6.947770715e-08
A54: 2028-03-28 | B54: =IF(DIAS365(CALCULADORA!$C$27,A54)<0,0,DIAS365(CALCULADORA!$C$27,A54)) -> 1503 | C54: =+HLOOKUP(CALCULADORA!$C$9,Tablas!B:B,Flujos!J54+1,FALSE) -> 0 | D54: 0 | E54: 0 | F54: =ROUND(D53*ROUND(((1+CALCULADORA!$C$16)^(1/12)-1),6),6) -> 0 | G54: 0 | H54: =IF($B54=0,0,G54/POWER(1+CALCULADORA!$C$29,Flujos!$B54/365)) -> 0 | I54: 2028-03-28 | J54: 52 | K54: =+DIAS365($A$2,A54) -> 1580 | L54: -5.930662155e-06 | M54: 0 | N54: -6.947770715e-08 | O54: -6.947770715e-08
A55: 2028-04-28 | B55: =IF(DIAS365(CALCULADORA!$C$27,A55)<0,0,DIAS365(CALCULADORA!$C$27,A55)) -> 1534 | C55: =+HLOOKUP(CALCULADORA!$C$9,Tablas!B:B,Flujos!J55+1,FALSE) -> 0 | D55: 0 | E55: 0 | F55: =ROUND(D54*ROUND(((1+CALCULADORA!$C$16)^(1/12)-1),6),6) -> 0 | G55: 0 | H55: =IF($B55=0,0,G55/POWER(1+CALCULADORA!$C$29,Flujos!$B55/365)) -> 0 | I55: 2028-04-28 | J55: 53 | K55: =+DIAS365($A$2,A55) -> 1611 | L55: -5.930662155e-06 | M55: 0 | N55: -6.947770715e-08 | O55: -6.947770715e-08
A56: 2028-05-28 | B56: =IF(DIAS365(CALCULADORA!$C$27,A56)<0,0,DIAS365(CALCULADORA!$C$27,A56)) -> 1564 | C56: =+HLOOKUP(CALCULADORA!$C$9,Tablas!B:B,Flujos!J56+1,FALSE) -> 0 | D56: 0 | E56: 0 | F56: =ROUND(D55*ROUND(((1+CALCULADORA!$C$16)^(1/12)-1),6),6) -> 0 | G56: 0 | H56: =IF($B56=0,0,G56/POWER(1+CALCULADORA!$C$29,Flujos!$B56/365)) -> 0 | I56: 2028-05-28 | J56: 54 | K56: =+DIAS365($A$2,A56) -> 1641 | L56: -5.930662155e-06 | M56: 0 | N56: -6.947770715e-08 | O56: -6.947770715e-08
A57: 2028-06-28 | B57: =IF(DIAS365(CALCULADORA!$C$27,A57)<0,0,DIAS365(CALCULADORA!$C$27,A57)) -> 1595 | C57: =+HLOOKUP(CALCULADORA!$C$9,Tablas!B:B,Flujos!J57+1,FALSE) -> 0 | D57: 0 | E57: 0 | F57: =ROUND(D56*ROUND(((1+CALCULADORA!$C$16)^(1/12)-1),6),6) -> 0 | G57: 0 | H57: =IF($B57=0,0,G57/POWER(1+CALCULADORA!$C$29,Flujos!$B57/365)) -> 0 | I57: 2028-06-28 | J57: 55 | K57: =+DIAS365($A$2,A57) -> 1672 | L57: -5.930662155e-06 | M57: 0 | N57: -6.947770715e-08 | O57: -6.947770715e-08
A58: 2028-07-28 | B58: =IF(DIAS365(CALCULADORA!$C$27,A58)<0,0,DIAS365(CALCULADORA!$C$27,A58)) -> 1625 | C58: =+HLOOKUP(CALCULADORA!$C$9,Tablas!B:B,Flujos!J58+1,FALSE) -> 0 | D58: 0 | E58: 0 | F58: =ROUND(D57*ROUND(((1+CALCULADORA!$C$16)^(1/12)-1),6),6) -> 0 | G58: 0 | H58: =IF($B58=0,0,G58/POWER(1+CALCULADORA!$C$29,Flujos!$B58/365)) -> 0 | I58: 2028-07-28 | J58: 56 | K58: =+DIAS365($A$2,A58) -> 1702 | L58: -5.930662155e-06 | M58: 0 | N58: -6.947770715e-08 | O58: -6.947770715e-08
A59: 2028-08-28 | B59: =IF(DIAS365(CALCULADORA!$C$27,A59)<0,0,DIAS365(CALCULADORA!$C$27,A59)) -> 1656 | C59: =+HLOOKUP(CALCULADORA!$C$9,Tablas!B:B,Flujos!J59+1,FALSE) -> 0 | D59: 0 | E59: 0 | F59: =ROUND(D58*ROUND(((1+CALCULADORA!$C$16)^(1/12)-1),6),6) -> 0 | G59: 0 | H59: =IF($B59=0,0,G59/POWER(1+CALCULADORA!$C$29,Flujos!$B59/365)) -> 0 | I59: 2028-08-28 | J59: 57 | K59: =+DIAS365($A$2,A59) -> 1733 | L59: -5.930662155e-06 | M59: 0 | N59: -6.947770715e-08 | O59: -6.947770715e-08
A60: 2028-09-28 | B60: =IF(DIAS365(CALCULADORA!$C$27,A60)<0,0,DIAS365(CALCULADORA!$C$27,A60)) -> 1687 | C60: =+HLOOKUP(CALCULADORA!$C$9,Tablas!B:B,Flujos!J60+1,FALSE) -> 0 | D60: 0 | E60: 0 | F60: =ROUND(D59*ROUND(((1+CALCULADORA!$C$16)^(1/12)-1),6),6) -> 0 | G60: 0 | H60: =IF($B60=0,0,G60/POWER(1+CALCULADORA!$C$29,Flujos!$B60/365)) -> 0 | I60: 2028-09-28 | J60: 58 | K60: =+DIAS365($A$2,A60) -> 1764 | L60: -5.930662155e-06 | M60: 0 | N60: -6.947770715e-08 | O60: -6.947770715e-08
A61: 2028-10-28 | B61: =IF(DIAS365(CALCULADORA!$C$27,A61)<0,0,DIAS365(CALCULADORA!$C$27,A61)) -> 1717 | C61: =+HLOOKUP(CALCULADORA!$C$9,Tablas!B:B,Flujos!J61+1,FALSE) -> 0 | D61: 0 | E61: 0 | F61: =ROUND(D60*ROUND(((1+CALCULADORA!$C$16)^(1/12)-1),6),6) -> 0 | G61: 0 | H61: =IF($B61=0,0,G61/POWER(1+CALCULADORA!$C$29,Flujos!$B61/365)) -> 0 | I61: 2028-10-28 | J61: 59 | K61: =+DIAS365($A$2,A61) -> 1794 | L61: -5.930662155e-06 | M61: 0 | N61: -6.947770715e-08 | O61: -6.947770715e-08
A62: 2028-11-28 | B62: =IF(DIAS365(CALCULADORA!$C$27,A62)<0,0,DIAS365(CALCULADORA!$C$27,A62)) -> 1748 | C62: =+HLOOKUP(CALCULADORA!$C$9,Tablas!B:B,Flujos!J62+1,FALSE) -> 0 | D62: 0 | E62: 0 | F62: =ROUND(D61*ROUND(((1+CALCULADORA!$C$16)^(1/12)-1),6),6) -> 0 | G62: 0 | H62: =IF($B62=0,0,G62/POWER(1+CALCULADORA!$C$29,Flujos!$B62/365)) -> 0 | I62: 2028-11-28 | J62: 60 | K62: =+DIAS365($A$2,A62) -> 1825 | L62: -5.930662155e-06 | M62: 0 | N62: -6.947770715e-08 | O62: -6.947770715e-08
A63: 2028-12-28 | B63: =IF(DIAS365(CALCULADORA!$C$27,A63)<0,0,DIAS365(CALCULADORA!$C$27,A63)) -> 1778 | C63: =+HLOOKUP(CALCULADORA!$C$9,Tablas!B:B,Flujos!J63+1,FALSE) -> 0 | D63: 0 | E63: 0 | F63: =ROUND(D62*ROUND(((1+CALCULADORA!$C$16)^(1/12)-1),6),6) -> 0 | G63: 0 | H63: =IF($B63=0,0,G63/POWER(1+CALCULADORA!$C$29,Flujos!$B63/365)) -> 0 | I63: 2028-12-28 | J63: 61 | K63: =+DIAS365($A$2,A63) -> 1855 | L63: -5.930662155e-06 | M63: 0 | N63: -6.947770715e-08 | O63: -6.947770715e-08
A64: 2029-01-28 | B64: =IF(DIAS365(CALCULADORA!$C$27,A64)<0,0,DIAS365(CALCULADORA!$C$27,A64)) -> 1809 | C64: =+HLOOKUP(CALCULADORA!$C$9,Tablas!B:B,Flujos!J64+1,FALSE) -> 0 | D64: 0 | E64: 0 | F64: =ROUND(D63*ROUND(((1+CALCULADORA!$C$16)^(1/12)-1),6),6) -> 0 | G64: 0 | H64: =IF($B64=0,0,G64/POWER(1+CALCULADORA!$C$29,Flujos!$B64/365)) -> 0 | I64: 2029-01-28 | J64: 62 | K64: =+DIAS365($A$2,A64) -> 1886 | L64: -5.930662155e-06 | M64: 0 | N64: -6.947770715e-08 | O64: -6.947770715e-08
A65: 2029-02-28 | B65: =IF(DIAS365(CALCULADORA!$C$27,A65)<0,0,DIAS365(CALCULADORA!$C$27,A65)) -> 1840 | C65: =+HLOOKUP(CALCULADORA!$C$9,Tablas!B:B,Flujos!J65+1,FALSE) -> 0 | D65: 0 | E65: 0 | F65: =ROUND(D64*ROUND(((1+CALCULADORA!$C$16)^(1/12)-1),6),6) -> 0 | G65: 0 | H65: =IF($B65=0,0,G65/POWER(1+CALCULADORA!$C$29,Flujos!$B65/365)) -> 0 | I65: 2029-02-28 | J65: 63 | K65: =+DIAS365($A$2,A65) -> 1917 | L65: -5.930662155e-06 | M65: 0 | N65: -6.947770715e-08 | O65: -6.947770715e-08
A66: 2029-03-28 | B66: =IF(DIAS365(CALCULADORA!$C$27,A66)<0,0,DIAS365(CALCULADORA!$C$27,A66)) -> 1868 | C66: =+HLOOKUP(CALCULADORA!$C$9,Tablas!B:B,Flujos!J66+1,FALSE) -> 0 | D66: 0 | E66: 0 | F66: =ROUND(D65*ROUND(((1+CALCULADORA!$C$16)^(1/12)-1),6),6) -> 0 | G66: 0 | H66: =IF($B66=0,0,G66/POWER(1+CALCULADORA!$C$29,Flujos!$B66/365)) -> 0 | I66: 2029-03-28 | J66: 64 | K66: =+DIAS365($A$2,A66) -> 1945 | L66: -5.930662155e-06 | M66: 0 | N66: -6.947770715e-08 | O66: -6.947770715e-08
A67: =EDATE(A66,1) -> 2029-04-28 | B67: =IF(DIAS365(CALCULADORA!$C$27,A67)<0,0,DIAS365(CALCULADORA!$C$27,A67)) -> 1899 | C67: =+HLOOKUP(CALCULADORA!$C$9,Tablas!B:B,Flujos!J67+1,FALSE) -> 0 | D67: 0 | E67: 0 | F67: =ROUND(D66*ROUND(((1+CALCULADORA!$C$16)^(1/12)-1),6),6) -> 0 | G67: 0 | H67: =IF($B67=0,0,G67/POWER(1+CALCULADORA!$C$29,Flujos!$B67/365)) -> 0 | I67: =+A67 -> 2029-04-28 | J67: 65 | K67: =+DIAS365($A$2,A67) -> 1976 | L67: -5.930662155e-06 | M67: 0 | N67: -6.947770715e-08 | O67: -6.947770715e-08
A68: 2029-05-28 | B68: =IF(DIAS365(CALCULADORA!$C$27,A68)<0,0,DIAS365(CALCULADORA!$C$27,A68)) -> 1929 | C68: =+HLOOKUP(CALCULADORA!$C$9,Tablas!B:B,Flujos!J68+1,FALSE) -> 0 | D68: =+ROUND(D67-E68,6) -> 0 | E68: =ROUND(C68*$D$2,6) -> 0 | F68: =ROUND(D67*ROUND(((1+CALCULADORA!$C$16)^(1/12)-1),6),6) -> 0 | G68: =F68+E68 -> 0 | H68: =IF($B68=0,0,G68/POWER(1+CALCULADORA!$C$29,Flujos!$B68/365)) -> 0 | I68: 2029-05-28 | J68: 66 | K68: =+DIAS365($A$2,A68) -> 2006 | L68: =+L67-M68 -> -5.930662155e-06 | M68: =+$L$2*C68 -> 0 | N68: =+L67*$F$3% -> -6.947770715e-08 | O68: =+N68+M68 -> -6.947770715e-08
A69: 2029-06-28 | B69: =IF(DIAS365(CALCULADORA!$C$27,A69)<0,0,DIAS365(CALCULADORA!$C$27,A69)) -> 1960 | C69: =+HLOOKUP(CALCULADORA!$C$9,Tablas!B:B,Flujos!J69+1,FALSE) -> 0 | D69: 0 | E69: 0 | F69: =ROUND(D68*ROUND(((1+CALCULADORA!$C$16)^(1/12)-1),6),6) -> 0 | G69: 0 | H69: =IF($B69=0,0,G69/POWER(1+CALCULADORA!$C$29,Flujos!$B69/365)) -> 0 | I69: 2029-06-28 | J69: 67 | K69: =+DIAS365($A$2,A69) -> 2037 | L69: -5.930662155e-06 | M69: 0 | N69: -6.947770715e-08 | O69: -6.947770715e-08
A70: 2029-07-28 | B70: =IF(DIAS365(CALCULADORA!$C$27,A70)<0,0,DIAS365(CALCULADORA!$C$27,A70)) -> 1990 | C70: =+HLOOKUP(CALCULADORA!$C$9,Tablas!B:B,Flujos!J70+1,FALSE) -> 0 | D70: 0 | E70: 0 | F70: =ROUND(D69*ROUND(((1+CALCULADORA!$C$16)^(1/12)-1),6),6) -> 0 | G70: 0 | H70: =IF($B70=0,0,G70/POWER(1+CALCULADORA!$C$29,Flujos!$B70/365)) -> 0 | I70: 2029-07-28 | J70: 68 | K70: =+DIAS365($A$2,A70) -> 2067 | L70: -5.930662155e-06 | M70: 0 | N70: -6.947770715e-08 | O70: -6.947770715e-08
A71: 2029-08-28 | B71: =IF(DIAS365(CALCULADORA!$C$27,A71)<0,0,DIAS365(CALCULADORA!$C$27,A71)) -> 2021 | C71: =+HLOOKUP(CALCULADORA!$C$9,Tablas!B:B,Flujos!J71+1,FALSE) -> 0 | D71: 0 | E71: 0 | F71: =ROUND(D70*ROUND(((1+CALCULADORA!$C$16)^(1/12)-1),6),6) -> 0 | G71: 0 | H71: =IF($B71=0,0,G71/POWER(1+CALCULADORA!$C$29,Flujos!$B71/365)) -> 0 | I71: 2029-08-28 | J71: 69 | K71: =+DIAS365($A$2,A71) -> 2098 | L71: -5.930662155e-06 | M71: 0 | N71: -6.947770715e-08 | O71: -6.947770715e-08
A72: 2029-09-28 | B72: =IF(DIAS365(CALCULADORA!$C$27,A72)<0,0,DIAS365(CALCULADORA!$C$27,A72)) -> 2052 | C72: =+HLOOKUP(CALCULADORA!$C$9,Tablas!B:B,Flujos!J72+1,FALSE) -> 0 | D72: 0 | E72: 0 | F72: =ROUND(D71*ROUND(((1+CALCULADORA!$C$16)^(1/12)-1),6),6) -> 0 | G72: 0 | H72: =IF($B72=0,0,G72/POWER(1+CALCULADORA!$C$29,Flujos!$B72/365)) -> 0 | I72: 2029-09-28 | J72: 70 | K72: =+DIAS365($A$2,A72) -> 2129 | L72: -5.930662155e-06 | M72: 0 | N72: -6.947770715e-08 | O72: -6.947770715e-08
A73: 2029-10-28 | B73: =IF(DIAS365(CALCULADORA!$C$27,A73)<0,0,DIAS365(CALCULADORA!$C$27,A73)) -> 2082 | C73: =+HLOOKUP(CALCULADORA!$C$9,Tablas!B:B,Flujos!J73+1,FALSE) -> 0 | D73: 0 | E73: 0 | F73: =ROUND(D72*ROUND(((1+CALCULADORA!$C$16)^(1/12)-1),6),6) -> 0 | G73: 0 | H73: =IF($B73=0,0,G73/POWER(1+CALCULADORA!$C$29,Flujos!$B73/365)) -> 0 | I73: 2029-10-28 | J73: 71 | K73: =+DIAS365($A$2,A73) -> 2159 | L73: -5.930662155e-06 | M73: 0 | N73: -6.947770715e-08 | O73: -6.947770715e-08
A74: 2029-11-28 | B74: =IF(DIAS365(CALCULADORA!$C$27,A74)<0,0,DIAS365(CALCULADORA!$C$27,A74)) -> 2113 | C74: =+HLOOKUP(CALCULADORA!$C$9,Tablas!B:B,Flujos!J74+1,FALSE) -> 0 | D74: 0 | E74: 0 | F74: =ROUND(D73*ROUND(((1+CALCULADORA!$C$16)^(1/12)-1),6),6) -> 0 | G74: 0 | H74: =IF($B74=0,0,G74/POWER(1+CALCULADORA!$C$29,Flujos!$B74/365)) -> 0 | I74: 2029-11-28 | J74: 72 | K74: =+DIAS365($A$2,A74) -> 2190 | L74: -5.930662155e-06 | M74: 0 | N74: -6.947770715e-08 | O74: -6.947770715e-08
A75: 2029-12-28 | B75: =IF(DIAS365(CALCULADORA!$C$27,A75)<0,0,DIAS365(CALCULADORA!$C$27,A75)) -> 2143 | C75: =+HLOOKUP(CALCULADORA!$C$9,Tablas!B:B,Flujos!J75+1,FALSE) -> 0 | D75: 0 | E75: 0 | F75: =ROUND(D74*ROUND(((1+CALCULADORA!$C$16)^(1/12)-1),6),6) -> 0 | G75: 0 | H75: =IF($B75=0,0,G75/POWER(1+CALCULADORA!$C$29,Flujos!$B75/365)) -> 0 | I75: 2029-12-28 | J75: 73 | K75: =+DIAS365($A$2,A75) -> 2220 | L75: -5.930662155e-06 | M75: 0 | N75: -6.947770715e-08 | O75: -6.947770715e-08
A76: 2030-01-28 | B76: =IF(DIAS365(CALCULADORA!$C$27,A76)<0,0,DIAS365(CALCULADORA!$C$27,A76)) -> 2174 | C76: =+HLOOKUP(CALCULADORA!$C$9,Tablas!B:B,Flujos!J76+1,FALSE) -> 0 | D76: 0 | E76: 0 | F76: =ROUND(D75*ROUND(((1+CALCULADORA!$C$16)^(1/12)-1),6),6) -> 0 | G76: 0 | H76: =IF($B76=0,0,G76/POWER(1+CALCULADORA!$C$29,Flujos!$B76/365)) -> 0 | I76: 2030-01-28 | J76: 74 | K76: =+DIAS365($A$2,A76) -> 2251 | L76: -5.930662155e-06 | M76: 0 | N76: -6.947770715e-08 | O76: -6.947770715e-08
A77: 2030-02-28 | B77: =IF(DIAS365(CALCULADORA!$C$27,A77)<0,0,DIAS365(CALCULADORA!$C$27,A77)) -> 2205 | C77: =+HLOOKUP(CALCULADORA!$C$9,Tablas!B:B,Flujos!J77+1,FALSE) -> 0 | D77: 0 | E77: 0 | F77: =ROUND(D76*ROUND(((1+CALCULADORA!$C$16)^(1/12)-1),6),6) -> 0 | G77: 0 | H77: =IF($B77=0,0,G77/POWER(1+CALCULADORA!$C$29,Flujos!$B77/365)) -> 0 | I77: 2030-02-28 | J77: 75 | K77: =+DIAS365($A$2,A77) -> 2282 | L77: -5.930662155e-06 | M77: 0 | N77: -6.947770715e-08 | O77: -6.947770715e-08
A78: 2030-03-28 | B78: =IF(DIAS365(CALCULADORA!$C$27,A78)<0,0,DIAS365(CALCULADORA!$C$27,A78)) -> 2233 | C78: =+HLOOKUP(CALCULADORA!$C$9,Tablas!B:B,Flujos!J78+1,FALSE) -> 0 | D78: 0 | E78: 0 | F78: =ROUND(D77*ROUND(((1+CALCULADORA!$C$16)^(1/12)-1),6),6) -> 0 | G78: 0 | H78: =IF($B78=0,0,G78/POWER(1+CALCULADORA!$C$29,Flujos!$B78/365)) -> 0 | I78: 2030-03-28 | J78: 76 | K78: =+DIAS365($A$2,A78) -> 2310 | L78: -5.930662155e-06 | M78: 0 | N78: -6.947770715e-08 | O78: -6.947770715e-08
A79: 2030-04-28 | B79: =IF(DIAS365(CALCULADORA!$C$27,A79)<0,0,DIAS365(CALCULADORA!$C$27,A79)) -> 2264 | C79: =+HLOOKUP(CALCULADORA!$C$9,Tablas!B:B,Flujos!J79+1,FALSE) -> 0 | D79: 0 | E79: 0 | F79: =ROUND(D78*ROUND(((1+CALCULADORA!$C$16)^(1/12)-1),6),6) -> 0 | G79: 0 | H79: =IF($B79=0,0,G79/POWER(1+CALCULADORA!$C$29,Flujos!$B79/365)) -> 0 | I79: 2030-04-28 | J79: 77 | K79: =+DIAS365($A$2,A79) -> 2341 | L79: -5.930662155e-06 | M79: 0 | N79: -6.947770715e-08 | O79: -6.947770715e-08
A80: 2030-05-28 | B80: =IF(DIAS365(CALCULADORA!$C$27,A80)<0,0,DIAS365(CALCULADORA!$C$27,A80)) -> 2294 | C80: =+HLOOKUP(CALCULADORA!$C$9,Tablas!B:B,Flujos!J80+1,FALSE) -> 0 | D80: 0 | E80: 0 | F80: =ROUND(D79*ROUND(((1+CALCULADORA!$C$16)^(1/12)-1),6),6) -> 0 | G80: 0 | H80: =IF($B80=0,0,G80/POWER(1+CALCULADORA!$C$29,Flujos!$B80/365)) -> 0 | I80: 2030-05-28 | J80: 78 | K80: =+DIAS365($A$2,A80) -> 2371 | L80: -5.930662155e-06 | M80: 0 | N80: -6.947770715e-08 | O80: -6.947770715e-08
A81: 2030-06-28 | B81: =IF(DIAS365(CALCULADORA!$C$27,A81)<0,0,DIAS365(CALCULADORA!$C$27,A81)) -> 2325 | C81: =+HLOOKUP(CALCULADORA!$C$9,Tablas!B:B,Flujos!J81+1,FALSE) -> 0 | D81: 0 | E81: 0 | F81: =ROUND(D80*ROUND(((1+CALCULADORA!$C$16)^(1/12)-1),6),6) -> 0 | G81: 0 | H81: =IF($B81=0,0,G81/POWER(1+CALCULADORA!$C$29,Flujos!$B81/365)) -> 0 | I81: 2030-06-28 | J81: 79 | K81: =+DIAS365($A$2,A81) -> 2402 | L81: -5.930662155e-06 | M81: 0 | N81: -6.947770715e-08 | O81: -6.947770715e-08
A82: 2030-07-28 | B82: =IF(DIAS365(CALCULADORA!$C$27,A82)<0,0,DIAS365(CALCULADORA!$C$27,A82)) -> 2355 | C82: =+HLOOKUP(CALCULADORA!$C$9,Tablas!B:B,Flujos!J82+1,FALSE) -> 0 | D82: 0 | E82: 0 | F82: =ROUND(D81*ROUND(((1+CALCULADORA!$C$16)^(1/12)-1),6),6) -> 0 | G82: 0 | H82: =IF($B82=0,0,G82/POWER(1+CALCULADORA!$C$29,Flujos!$B82/365)) -> 0 | I82: 2030-07-28 | J82: 80 | K82: =+DIAS365($A$2,A82) -> 2432 | L82: -5.930662155e-06 | M82: 0 | N82: -6.947770715e-08 | O82: -6.947770715e-08
A83: 2030-08-28 | B83: =IF(DIAS365(CALCULADORA!$C$27,A83)<0,0,DIAS365(CALCULADORA!$C$27,A83)) -> 2386 | C83: =+HLOOKUP(CALCULADORA!$C$9,Tablas!B:B,Flujos!J83+1,FALSE) -> 0 | D83: 0 | E83: 0 | F83: =ROUND(D82*ROUND(((1+CALCULADORA!$C$16)^(1/12)-1),6),6) -> 0 | G83: 0 | H83: =IF($B83=0,0,G83/POWER(1+CALCULADORA!$C$29,Flujos!$B83/365)) -> 0 | I83: 2030-08-28 | J83: 81 | K83: =+DIAS365($A$2,A83) -> 2463 | L83: -5.930662155e-06 | M83: 0 | N83: -6.947770715e-08 | O83: -6.947770715e-08
A84: 2030-09-28 | B84: =IF(DIAS365(CALCULADORA!$C$27,A84)<0,0,DIAS365(CALCULADORA!$C$27,A84)) -> 2417 | C84: =+HLOOKUP(CALCULADORA!$C$9,Tablas!B:B,Flujos!J84+1,FALSE) -> 0 | D84: 0 | E84: 0 | F84: =ROUND(D83*ROUND(((1+CALCULADORA!$C$16)^(1/12)-1),6),6) -> 0 | G84: 0 | H84: =IF($B84=0,0,G84/POWER(1+CALCULADORA!$C$29,Flujos!$B84/365)) -> 0 | I84: 2030-09-28 | J84: 82 | K84: =+DIAS365($A$2,A84) -> 2494 | L84: -5.930662155e-06 | M84: 0 | N84: -6.947770715e-08 | O84: -6.947770715e-08
A85: 2030-10-28 | B85: =IF(DIAS365(CALCULADORA!$C$27,A85)<0,0,DIAS365(CALCULADORA!$C$27,A85)) -> 2447 | C85: =+HLOOKUP(CALCULADORA!$C$9,Tablas!B:B,Flujos!J85+1,FALSE) -> 0 | D85: 0 | E85: 0 | F85: =ROUND(D84*ROUND(((1+CALCULADORA!$C$16)^(1/12)-1),6),6) -> 0 | G85: 0 | H85: =IF($B85=0,0,G85/POWER(1+CALCULADORA!$C$29,Flujos!$B85/365)) -> 0 | I85: 2030-10-28 | J85: 83 | K85: =+DIAS365($A$2,A85) -> 2524 | L85: -5.930662155e-06 | M85: 0 | N85: -6.947770715e-08 | O85: -6.947770715e-08
A86: 2030-11-28 | B86: =IF(DIAS365(CALCULADORA!$C$27,A86)<0,0,DIAS365(CALCULADORA!$C$27,A86)) -> 2478 | C86: =+HLOOKUP(CALCULADORA!$C$9,Tablas!B:B,Flujos!J86+1,FALSE) -> 0 | D86: 0 | E86: 0 | F86: =ROUND(D85*ROUND(((1+CALCULADORA!$C$16)^(1/12)-1),6),6) -> 0 | G86: 0 | H86: =IF($B86=0,0,G86/POWER(1+CALCULADORA!$C$29,Flujos!$B86/365)) -> 0 | I86: 2030-11-28 | J86: 84 | K86: =+DIAS365($A$2,A86) -> 2555 | L86: -5.930662155e-06 | M86: 0 | N86: -6.947770715e-08 | O86: -6.947770715e-08
A87: 2030-12-28 | B87: =IF(DIAS365(CALCULADORA!$C$27,A87)<0,0,DIAS365(CALCULADORA!$C$27,A87)) -> 2508 | C87: =+HLOOKUP(CALCULADORA!$C$9,Tablas!B:B,Flujos!J87+1,FALSE) -> 0 | D87: 0 | E87: 0 | F87: =ROUND(D86*ROUND(((1+CALCULADORA!$C$16)^(1/12)-1),6),6) -> 0 | G87: 0 | H87: =IF($B87=0,0,G87/POWER(1+CALCULADORA!$C$29,Flujos!$B87/365)) -> 0 | I87: 2030-12-28 | J87: 85 | K87: =+DIAS365($A$2,A87) -> 2585 | L87: -5.930662155e-06 | M87: 0 | N87: -6.947770715e-08 | O87: -6.947770715e-08
A88: 2031-01-28 | B88: =IF(DIAS365(CALCULADORA!$C$27,A88)<0,0,DIAS365(CALCULADORA!$C$27,A88)) -> 2539 | C88: =+HLOOKUP(CALCULADORA!$C$9,Tablas!B:B,Flujos!J88+1,FALSE) -> 0 | D88: 0 | E88: 0 | F88: =ROUND(D87*ROUND(((1+CALCULADORA!$C$16)^(1/12)-1),6),6) -> 0 | G88: 0 | H88: =IF($B88=0,0,G88/POWER(1+CALCULADORA!$C$29,Flujos!$B88/365)) -> 0 | I88: 2031-01-28 | J88: 86 | K88: =+DIAS365($A$2,A88) -> 2616 | L88: -5.930662155e-06 | M88: 0 | N88: -6.947770715e-08 | O88: -6.947770715e-08
A89: 2031-02-28 | B89: =IF(DIAS365(CALCULADORA!$C$27,A89)<0,0,DIAS365(CALCULADORA!$C$27,A89)) -> 2570 | C89: =+HLOOKUP(CALCULADORA!$C$9,Tablas!B:B,Flujos!J89+1,FALSE) -> 0 | D89: 0 | E89: 0 | F89: =ROUND(D88*ROUND(((1+CALCULADORA!$C$16)^(1/12)-1),6),6) -> 0 | G89: 0 | H89: =IF($B89=0,0,G89/POWER(1+CALCULADORA!$C$29,Flujos!$B89/365)) -> 0 | I89: 2031-02-28 | J89: 87 | K89: =+DIAS365($A$2,A89) -> 2647 | L89: -5.930662155e-06 | M89: 0 | N89: -6.947770715e-08 | O89: -6.947770715e-08
A90: 2031-03-28 | B90: =IF(DIAS365(CALCULADORA!$C$27,A90)<0,0,DIAS365(CALCULADORA!$C$27,A90)) -> 2598 | C90: =+HLOOKUP(CALCULADORA!$C$9,Tablas!B:B,Flujos!J90+1,FALSE) -> 0 | D90: 0 | E90: 0 | F90: =ROUND(D89*ROUND(((1+CALCULADORA!$C$16)^(1/12)-1),6),6) -> 0 | G90: 0 | H90: =IF($B90=0,0,G90/POWER(1+CALCULADORA!$C$29,Flujos!$B90/365)) -> 0 | I90: 2031-03-28 | J90: 88 | K90: =+DIAS365($A$2,A90) -> 2675 | L90: -5.930662155e-06 | M90: 0 | N90: -6.947770715e-08 | O90: -6.947770715e-08
A91: 2031-04-28 | B91: =IF(DIAS365(CALCULADORA!$C$27,A91)<0,0,DIAS365(CALCULADORA!$C$27,A91)) -> 2629 | C91: =+HLOOKUP(CALCULADORA!$C$9,Tablas!B:B,Flujos!J91+1,FALSE) -> 0 | D91: 0 | E91: 0 | F91: =ROUND(D90*ROUND(((1+CALCULADORA!$C$16)^(1/12)-1),6),6) -> 0 | G91: 0 | H91: =IF($B91=0,0,G91/POWER(1+CALCULADORA!$C$29,Flujos!$B91/365)) -> 0 | I91: 2031-04-28 | J91: 89 | K91: =+DIAS365($A$2,A91) -> 2706 | L91: -5.930662155e-06 | M91: 0 | N91: -6.947770715e-08 | O91: -6.947770715e-08
A92: 2031-05-28 | B92: =IF(DIAS365(CALCULADORA!$C$27,A92)<0,0,DIAS365(CALCULADORA!$C$27,A92)) -> 2659 | C92: =+HLOOKUP(CALCULADORA!$C$9,Tablas!B:B,Flujos!J92+1,FALSE) -> 0 | D92: 0 | E92: 0 | F92: =ROUND(D91*ROUND(((1+CALCULADORA!$C$16)^(1/12)-1),6),6) -> 0 | G92: 0 | H92: =IF($B92=0,0,G92/POWER(1+CALCULADORA!$C$29,Flujos!$B92/365)) -> 0 | I92: 2031-05-28 | J92: 90 | K92: =+DIAS365($A$2,A92) -> 2736 | L92: -5.930662155e-06 | M92: 0 | N92: -6.947770715e-08 | O92: -6.947770715e-08
A93: 2031-06-28 | B93: =IF(DIAS365(CALCULADORA!$C$27,A93)<0,0,DIAS365(CALCULADORA!$C$27,A93)) -> 2690 | C93: =+HLOOKUP(CALCULADORA!$C$9,Tablas!B:B,Flujos!J93+1,FALSE) -> 0 | D93: 0 | E93: 0 | F93: =ROUND(D92*ROUND(((1+CALCULADORA!$C$16)^(1/12)-1),6),6) -> 0 | G93: 0 | H93: =IF($B93=0,0,G93/POWER(1+CALCULADORA!$C$29,Flujos!$B93/365)) -> 0 | I93: 2031-06-28 | J93: 91 | K93: =+DIAS365($A$2,A93) -> 2767 | L93: -5.930662155e-06 | M93: 0 | N93: -6.947770715e-08 | O93: -6.947770715e-08
A94: 2031-07-28 | B94: =IF(DIAS365(CALCULADORA!$C$27,A94)<0,0,DIAS365(CALCULADORA!$C$27,A94)) -> 2720 | C94: =+HLOOKUP(CALCULADORA!$C$9,Tablas!B:B,Flujos!J94+1,FALSE) -> 0 | D94: 0 | E94: 0 | F94: =ROUND(D93*ROUND(((1+CALCULADORA!$C$16)^(1/12)-1),6),6) -> 0 | G94: 0 | H94: =IF($B94=0,0,G94/POWER(1+CALCULADORA!$C$29,Flujos!$B94/365)) -> 0 | I94: 2031-07-28 | J94: 92 | K94: =+DIAS365($A$2,A94) -> 2797 | L94: -5.930662155e-06 | M94: 0 | N94: -6.947770715e-08 | O94: -6.947770715e-08
A95: 2031-08-28 | B95: =IF(DIAS365(CALCULADORA!$C$27,A95)<0,0,DIAS365(CALCULADORA!$C$27,A95)) -> 2751 | C95: =+HLOOKUP(CALCULADORA!$C$9,Tablas!B:B,Flujos!J95+1,FALSE) -> 0 | D95: 0 | E95: 0 | F95: =ROUND(D94*ROUND(((1+CALCULADORA!$C$16)^(1/12)-1),6),6) -> 0 | G95: 0 | H95: =IF($B95=0,0,G95/POWER(1+CALCULADORA!$C$29,Flujos!$B95/365)) -> 0 | I95: 2031-08-28 | J95: 93 | K95: =+DIAS365($A$2,A95) -> 2828 | L95: -5.930662155e-06 | M95: 0 | N95: -6.947770715e-08 | O95: -6.947770715e-08
A96: 2031-09-28 | B96: =IF(DIAS365(CALCULADORA!$C$27,A96)<0,0,DIAS365(CALCULADORA!$C$27,A96)) -> 2782 | C96: =+HLOOKUP(CALCULADORA!$C$9,Tablas!B:B,Flujos!J96+1,FALSE) -> 0 | D96: 0 | E96: 0 | F96: =ROUND(D95*ROUND(((1+CALCULADORA!$C$16)^(1/12)-1),6),6) -> 0 | G96: 0 | H96: =IF($B96=0,0,G96/POWER(1+CALCULADORA!$C$29,Flujos!$B96/365)) -> 0 | I96: 2031-09-28 | J96: 94 | K96: =+DIAS365($A$2,A96) -> 2859 | L96: -5.930662155e-06 | M96: 0 | N96: -6.947770715e-08 | O96: -6.947770715e-08
A97: 2031-10-28 | B97: =IF(DIAS365(CALCULADORA!$C$27,A97)<0,0,DIAS365(CALCULADORA!$C$27,A97)) -> 2812 | C97: =+HLOOKUP(CALCULADORA!$C$9,Tablas!B:B,Flujos!J97+1,FALSE) -> 0 | D97: 0 | E97: 0 | F97: =ROUND(D96*ROUND(((1+CALCULADORA!$C$16)^(1/12)-1),6),6) -> 0 | G97: 0 | H97: =IF($B97=0,0,G97/POWER(1+CALCULADORA!$C$29,Flujos!$B97/365)) -> 0 | I97: 2031-10-28 | J97: 95 | K97: =+DIAS365($A$2,A97) -> 2889 | L97: -5.930662155e-06 | M97: 0 | N97: -6.947770715e-08 | O97: -6.947770715e-08
A98: 2031-11-28 | B98: =IF(DIAS365(CALCULADORA!$C$27,A98)<0,0,DIAS365(CALCULADORA!$C$27,A98)) -> 2843 | C98: =+HLOOKUP(CALCULADORA!$C$9,Tablas!B:B,Flujos!J98+1,FALSE) -> 0 | D98: 0 | E98: 0 | F98: =ROUND(D97*ROUND(((1+CALCULADORA!$C$16)^(1/12)-1),6),6) -> 0 | G98: 0 | H98: =IF($B98=0,0,G98/POWER(1+CALCULADORA!$C$29,Flujos!$B98/365)) -> 0 | I98: 2031-11-28 | J98: 96 | K98: =+DIAS365($A$2,A98) -> 2920 | L98: -5.930662155e-06 | M98: 0 | N98: -6.947770715e-08 | O98: -6.947770715e-08
A99: =EDATE(A98,1) -> 2031-12-28 | B99: =IF(DIAS365(CALCULADORA!$C$27,A99)<0,0,DIAS365(CALCULADORA!$C$27,A99)) -> 2873 | C99: =+HLOOKUP(CALCULADORA!$C$9,Tablas!B:B,Flujos!J99+1,FALSE) -> 0 | D99: 0 | E99: 0 | F99: =ROUND(D98*ROUND(((1+CALCULADORA!$C$16)^(1/12)-1),6),6) -> 0 | G99: 0 | H99: =IF($B99=0,0,G99/POWER(1+CALCULADORA!$C$29,Flujos!$B99/365)) -> 0 | I99: 2031-12-28 | J99: 97 | K99: =+DIAS365($A$2,A99) -> 2950 | L99: -5.930662155e-06 | M99: 0 | N99: -6.947770715e-08 | O99: -6.947770715e-08
A100: 2032-01-28 | B100: =IF(DIAS365(CALCULADORA!$C$27,A100)<0,0,DIAS365(CALCULADORA!$C$27,A100)) -> 2904 | C100: =+HLOOKUP(CALCULADORA!$C$9,Tablas!B:B,Flujos!J100+1,FALSE) -> 0 | D100: 0 | E100: 0 | F100: =ROUND(D99*ROUND(((1+CALCULADORA!$C$16)^(1/12)-1),6),6) -> 0 | G100: 0 | H100: =IF($B100=0,0,G100/POWER(1+CALCULADORA!$C$29,Flujos!$B100/365)) -> 0 | I100: 2032-01-28 | J100: 98 | K100: =+DIAS365($A$2,A100) -> 2981 | L100: -5.930662155e-06 | M100: 0 | N100: -6.947770715e-08 | O100: -6.947770715e-08
A101: 2032-02-28 | B101: =IF(DIAS365(CALCULADORA!$C$27,A101)<0,0,DIAS365(CALCULADORA!$C$27,A101)) -> 2935 | C101: =+HLOOKUP(CALCULADORA!$C$9,Tablas!B:B,Flujos!J101+1,FALSE) -> 0 | D101: 0 | E101: 0 | F101: =ROUND(D100*ROUND(((1+CALCULADORA!$C$16)^(1/12)-1),6),6) -> 0 | G101: 0 | H101: =IF($B101=0,0,G101/POWER(1+CALCULADORA!$C$29,Flujos!$B101/365)) -> 0 | I101: 2032-02-28 | J101: 99 | K101: =+DIAS365($A$2,A101) -> 3012 | L101: -5.930662155e-06 | M101: 0 | N101: -6.947770715e-08 | O101: -6.947770715e-08
A102: 2032-03-28 | B102: =IF(DIAS365(CALCULADORA!$C$27,A102)<0,0,DIAS365(CALCULADORA!$C$27,A102)) -> 2963 | C102: =+HLOOKUP(CALCULADORA!$C$9,Tablas!B:B,Flujos!J102+1,FALSE) -> 0 | D102: 0 | E102: 0 | F102: =ROUND(D101*ROUND(((1+CALCULADORA!$C$16)^(1/12)-1),6),6) -> 0 | G102: 0 | H102: =IF($B102=0,0,G102/POWER(1+CALCULADORA!$C$29,Flujos!$B102/365)) -> 0 | I102: 2032-03-28 | J102: 100 | K102: =+DIAS365($A$2,A102) -> 3040 | L102: -5.930662155e-06 | M102: 0 | N102: -6.947770715e-08 | O102: -6.947770715e-08
A103: 2032-04-28 | B103: =IF(DIAS365(CALCULADORA!$C$27,A103)<0,0,DIAS365(CALCULADORA!$C$27,A103)) -> 2994 | C103: =+HLOOKUP(CALCULADORA!$C$9,Tablas!B:B,Flujos!J103+1,FALSE) -> 0 | D103: 0 | E103: 0 | F103: =ROUND(D102*ROUND(((1+CALCULADORA!$C$16)^(1/12)-1),6),6) -> 0 | G103: 0 | H103: =IF($B103=0,0,G103/POWER(1+CALCULADORA!$C$29,Flujos!$B103/365)) -> 0 | I103: 2032-04-28 | J103: 101 | K103: =+DIAS365($A$2,A103) -> 3071 | L103: -5.930662155e-06 | M103: 0 | N103: -6.947770715e-08 | O103: -6.947770715e-08
A104: 2032-05-28 | B104: =IF(DIAS365(CALCULADORA!$C$27,A104)<0,0,DIAS365(CALCULADORA!$C$27,A104)) -> 3024 | C104: =+HLOOKUP(CALCULADORA!$C$9,Tablas!B:B,Flujos!J104+1,FALSE) -> 0 | D104: 0 | E104: 0 | F104: =ROUND(D103*ROUND(((1+CALCULADORA!$C$16)^(1/12)-1),6),6) -> 0 | G104: 0 | H104: =IF($B104=0,0,G104/POWER(1+CALCULADORA!$C$29,Flujos!$B104/365)) -> 0 | I104: 2032-05-28 | J104: 102 | K104: =+DIAS365($A$2,A104) -> 3101 | L104: -5.930662155e-06 | M104: 0 | N104: -6.947770715e-08 | O104: -6.947770715e-08
A105: 2032-06-28 | B105: =IF(DIAS365(CALCULADORA!$C$27,A105)<0,0,DIAS365(CALCULADORA!$C$27,A105)) -> 3055 | C105: =+HLOOKUP(CALCULADORA!$C$9,Tablas!B:B,Flujos!J105+1,FALSE) -> 0 | D105: 0 | E105: 0 | F105: =ROUND(D104*ROUND(((1+CALCULADORA!$C$16)^(1/12)-1),6),6) -> 0 | G105: 0 | H105: =IF($B105=0,0,G105/POWER(1+CALCULADORA!$C$29,Flujos!$B105/365)) -> 0 | I105: 2032-06-28 | J105: 103 | K105: =+DIAS365($A$2,A105) -> 3132 | L105: -5.930662155e-06 | M105: 0 | N105: -6.947770715e-08 | O105: -6.947770715e-08
A106: 2032-07-28 | B106: =IF(DIAS365(CALCULADORA!$C$27,A106)<0,0,DIAS365(CALCULADORA!$C$27,A106)) -> 3085 | C106: =+HLOOKUP(CALCULADORA!$C$9,Tablas!B:B,Flujos!J106+1,FALSE) -> 0 | D106: 0 | E106: 0 | F106: =ROUND(D105*ROUND(((1+CALCULADORA!$C$16)^(1/12)-1),6),6) -> 0 | G106: 0 | H106: =IF($B106=0,0,G106/POWER(1+CALCULADORA!$C$29,Flujos!$B106/365)) -> 0 | I106: 2032-07-28 | J106: 104 | K106: =+DIAS365($A$2,A106) -> 3162 | L106: -5.930662155e-06 | M106: 0 | N106: -6.947770715e-08 | O106: -6.947770715e-08
A107: 2032-08-28 | B107: =IF(DIAS365(CALCULADORA!$C$27,A107)<0,0,DIAS365(CALCULADORA!$C$27,A107)) -> 3116 | C107: =+HLOOKUP(CALCULADORA!$C$9,Tablas!B:B,Flujos!J107+1,FALSE) -> 0 | D107: 0 | E107: 0 | F107: =ROUND(D106*ROUND(((1+CALCULADORA!$C$16)^(1/12)-1),6),6) -> 0 | G107: 0 | H107: =IF($B107=0,0,G107/POWER(1+CALCULADORA!$C$29,Flujos!$B107/365)) -> 0 | I107: 2032-08-28 | J107: 105 | K107: =+DIAS365($A$2,A107) -> 3193 | L107: -5.930662155e-06 | M107: 0 | N107: -6.947770715e-08 | O107: -6.947770715e-08
A108: 2032-09-28 | B108: =IF(DIAS365(CALCULADORA!$C$27,A108)<0,0,DIAS365(CALCULADORA!$C$27,A108)) -> 3147 | C108: =+HLOOKUP(CALCULADORA!$C$9,Tablas!B:B,Flujos!J108+1,FALSE) -> 0 | D108: 0 | E108: 0 | F108: =ROUND(D107*ROUND(((1+CALCULADORA!$C$16)^(1/12)-1),6),6) -> 0 | G108: 0 | H108: =IF($B108=0,0,G108/POWER(1+CALCULADORA!$C$29,Flujos!$B108/365)) -> 0 | I108: 2032-09-28 | J108: 106 | K108: =+DIAS365($A$2,A108) -> 3224 | L108: -5.930662155e-06 | M108: 0 | N108: -6.947770715e-08 | O108: -6.947770715e-08
A109: 2032-10-28 | B109: =IF(DIAS365(CALCULADORA!$C$27,A109)<0,0,DIAS365(CALCULADORA!$C$27,A109)) -> 3177 | C109: =+HLOOKUP(CALCULADORA!$C$9,Tablas!B:B,Flujos!J109+1,FALSE) -> 0 | D109: 0 | E109: 0 | F109: =ROUND(D108*ROUND(((1+CALCULADORA!$C$16)^(1/12)-1),6),6) -> 0 | G109: 0 | H109: =IF($B109=0,0,G109/POWER(1+CALCULADORA!$C$29,Flujos!$B109/365)) -> 0 | I109: 2032-10-28 | J109: 107 | K109: =+DIAS365($A$2,A109) -> 3254 | L109: -5.930662155e-06 | M109: 0 | N109: -6.947770715e-08 | O109: -6.947770715e-08
A110: 2032-11-28 | B110: =IF(DIAS365(CALCULADORA!$C$27,A110)<0,0,DIAS365(CALCULADORA!$C$27,A110)) -> 3208 | C110: =+HLOOKUP(CALCULADORA!$C$9,Tablas!B:B,Flujos!J110+1,FALSE) -> 0 | D110: 0 | E110: 0 | F110: =ROUND(D109*ROUND(((1+CALCULADORA!$C$16)^(1/12)-1),6),6) -> 0 | G110: 0 | H110: =IF($B110=0,0,G110/POWER(1+CALCULADORA!$C$29,Flujos!$B110/365)) -> 0 | I110: 2032-11-28 | J110: 108 | K110: =+DIAS365($A$2,A110) -> 3285 | L110: -5.930662155e-06 | M110: 0 | N110: -6.947770715e-08 | O110: -6.947770715e-08
A111: 2032-12-28 | B111: =IF(DIAS365(CALCULADORA!$C$27,A111)<0,0,DIAS365(CALCULADORA!$C$27,A111)) -> 3238 | C111: =+HLOOKUP(CALCULADORA!$C$9,Tablas!B:B,Flujos!J111+1,FALSE) -> 0 | D111: 0 | E111: 0 | F111: =ROUND(D110*ROUND(((1+CALCULADORA!$C$16)^(1/12)-1),6),6) -> 0 | G111: 0 | H111: =IF($B111=0,0,G111/POWER(1+CALCULADORA!$C$29,Flujos!$B111/365)) -> 0 | I111: 2032-12-28 | J111: 109 | K111: =+DIAS365($A$2,A111) -> 3315 | L111: -5.930662155e-06 | M111: 0 | N111: -6.947770715e-08 | O111: -6.947770715e-08
A112: 2033-01-28 | B112: =IF(DIAS365(CALCULADORA!$C$27,A112)<0,0,DIAS365(CALCULADORA!$C$27,A112)) -> 3269 | C112: =+HLOOKUP(CALCULADORA!$C$9,Tablas!B:B,Flujos!J112+1,FALSE) -> 0 | D112: 0 | E112: 0 | F112: =ROUND(D111*ROUND(((1+CALCULADORA!$C$16)^(1/12)-1),6),6) -> 0 | G112: 0 | H112: =IF($B112=0,0,G112/POWER(1+CALCULADORA!$C$29,Flujos!$B112/365)) -> 0 | I112: 2033-01-28 | J112: 110 | K112: =+DIAS365($A$2,A112) -> 3346 | L112: -5.930662155e-06 | M112: 0 | N112: -6.947770715e-08 | O112: -6.947770715e-08
A113: 2033-02-28 | B113: =IF(DIAS365(CALCULADORA!$C$27,A113)<0,0,DIAS365(CALCULADORA!$C$27,A113)) -> 3300 | C113: =+HLOOKUP(CALCULADORA!$C$9,Tablas!B:B,Flujos!J113+1,FALSE) -> 0 | D113: 0 | E113: 0 | F113: =ROUND(D112*ROUND(((1+CALCULADORA!$C$16)^(1/12)-1),6),6) -> 0 | G113: 0 | H113: =IF($B113=0,0,G113/POWER(1+CALCULADORA!$C$29,Flujos!$B113/365)) -> 0 | I113: 2033-02-28 | J113: 111 | K113: =+DIAS365($A$2,A113) -> 3377 | L113: -5.930662155e-06 | M113: 0 | N113: -6.947770715e-08 | O113: -6.947770715e-08
A114: 2033-03-28 | B114: =IF(DIAS365(CALCULADORA!$C$27,A114)<0,0,DIAS365(CALCULADORA!$C$27,A114)) -> 3328 | C114: =+HLOOKUP(CALCULADORA!$C$9,Tablas!B:B,Flujos!J114+1,FALSE) -> 0 | D114: 0 | E114: 0 | F114: =ROUND(D113*ROUND(((1+CALCULADORA!$C$16)^(1/12)-1),6),6) -> 0 | G114: 0 | H114: =IF($B114=0,0,G114/POWER(1+CALCULADORA!$C$29,Flujos!$B114/365)) -> 0 | I114: 2033-03-28 | J114: 112 | K114: =+DIAS365($A$2,A114) -> 3405 | L114: -5.930662155e-06 | M114: 0 | N114: -6.947770715e-08 | O114: -6.947770715e-08
A115: 2033-04-28 | B115: =IF(DIAS365(CALCULADORA!$C$27,A115)<0,0,DIAS365(CALCULADORA!$C$27,A115)) -> 3359 | C115: =+HLOOKUP(CALCULADORA!$C$9,Tablas!B:B,Flujos!J115+1,FALSE) -> 0 | D115: 0 | E115: 0 | F115: =ROUND(D114*ROUND(((1+CALCULADORA!$C$16)^(1/12)-1),6),6) -> 0 | G115: 0 | H115: =IF($B115=0,0,G115/POWER(1+CALCULADORA!$C$29,Flujos!$B115/365)) -> 0 | I115: 2033-04-28 | J115: 113 | K115: =+DIAS365($A$2,A115) -> 3436 | L115: -5.930662155e-06 | M115: 0 | N115: -6.947770715e-08 | O115: -6.947770715e-08
A116: 2033-05-28 | B116: =IF(DIAS365(CALCULADORA!$C$27,A116)<0,0,DIAS365(CALCULADORA!$C$27,A116)) -> 3389 | C116: =+HLOOKUP(CALCULADORA!$C$9,Tablas!B:B,Flujos!J116+1,FALSE) -> 0 | D116: 0 | E116: 0 | F116: =ROUND(D115*ROUND(((1+CALCULADORA!$C$16)^(1/12)-1),6),6) -> 0 | G116: 0 | H116: =IF($B116=0,0,G116/POWER(1+CALCULADORA!$C$29,Flujos!$B116/365)) -> 0 | I116: 2033-05-28 | J116: 114 | K116: =+DIAS365($A$2,A116) -> 3466 | L116: -5.930662155e-06 | M116: 0 | N116: -6.947770715e-08 | O116: -6.947770715e-08
A117: 2033-06-28 | B117: =IF(DIAS365(CALCULADORA!$C$27,A117)<0,0,DIAS365(CALCULADORA!$C$27,A117)) -> 3420 | C117: =+HLOOKUP(CALCULADORA!$C$9,Tablas!B:B,Flujos!J117+1,FALSE) -> 0 | D117: 0 | E117: 0 | F117: =ROUND(D116*ROUND(((1+CALCULADORA!$C$16)^(1/12)-1),6),6) -> 0 | G117: 0 | H117: =IF($B117=0,0,G117/POWER(1+CALCULADORA!$C$29,Flujos!$B117/365)) -> 0 | I117: 2033-06-28 | J117: 115 | K117: =+DIAS365($A$2,A117) -> 3497 | L117: -5.930662155e-06 | M117: 0 | N117: -6.947770715e-08 | O117: -6.947770715e-08
A118: 2033-07-28 | B118: =IF(DIAS365(CALCULADORA!$C$27,A118)<0,0,DIAS365(CALCULADORA!$C$27,A118)) -> 3450 | C118: =+HLOOKUP(CALCULADORA!$C$9,Tablas!B:B,Flujos!J118+1,FALSE) -> 0 | D118: 0 | E118: 0 | F118: =ROUND(D117*ROUND(((1+CALCULADORA!$C$16)^(1/12)-1),6),6) -> 0 | G118: 0 | H118: =IF($B118=0,0,G118/POWER(1+CALCULADORA!$C$29,Flujos!$B118/365)) -> 0 | I118: 2033-07-28 | J118: 116 | K118: =+DIAS365($A$2,A118) -> 3527 | L118: -5.930662155e-06 | M118: 0 | N118: -6.947770715e-08 | O118: -6.947770715e-08
A119: 2033-08-28 | B119: =IF(DIAS365(CALCULADORA!$C$27,A119)<0,0,DIAS365(CALCULADORA!$C$27,A119)) -> 3481 | C119: =+HLOOKUP(CALCULADORA!$C$9,Tablas!B:B,Flujos!J119+1,FALSE) -> 0 | D119: 0 | E119: 0 | F119: =ROUND(D118*ROUND(((1+CALCULADORA!$C$16)^(1/12)-1),6),6) -> 0 | G119: 0 | H119: =IF($B119=0,0,G119/POWER(1+CALCULADORA!$C$29,Flujos!$B119/365)) -> 0 | I119: =+A119 -> 2033-08-28 | J119: 117 | K119: =+DIAS365($A$2,A119) -> 3558 | L119: -5.930662155e-06 | M119: 0 | N119: -6.947770715e-08 | O119: -6.947770715e-08
A120: 2033-09-28 | B120: =IF(DIAS365(CALCULADORA!$C$27,A120)<0,0,DIAS365(CALCULADORA!$C$27,A120)) -> 3512 | C120: =+HLOOKUP(CALCULADORA!$C$9,Tablas!B:B,Flujos!J120+1,FALSE) -> 0 | D120: 0 | E120: 0 | F120: =ROUND(D119*ROUND(((1+CALCULADORA!$C$16)^(1/12)-1),6),6) -> 0 | G120: 0 | H120: =IF($B120=0,0,G120/POWER(1+CALCULADORA!$C$29,Flujos!$B120/365)) -> 0 | I120: =+A120 -> 2033-09-28 | J120: 118 | K120: =+DIAS365($A$2,A120) -> 3589 | L120: -5.930662155e-06 | M120: 0 | N120: -6.947770715e-08 | O120: -6.947770715e-08
A121: 2033-10-28 | B121: =IF(DIAS365(CALCULADORA!$C$27,A121)<0,0,DIAS365(CALCULADORA!$C$27,A121)) -> 3542 | C121: =+HLOOKUP(CALCULADORA!$C$9,Tablas!B:B,Flujos!J121+1,FALSE) -> 0 | D121: 0 | E121: 0 | F121: =ROUND(D120*ROUND(((1+CALCULADORA!$C$16)^(1/12)-1),6),6) -> 0 | G121: 0 | H121: =IF($B121=0,0,G121/POWER(1+CALCULADORA!$C$29,Flujos!$B121/365)) -> 0 | I121: 2033-10-28 | J121: 119 | K121: =+DIAS365($A$2,A121) -> 3619 | L121: -5.930662155e-06 | M121: 0 | N121: -6.947770715e-08 | O121: -6.947770715e-08
A122: 2033-11-28 | B122: =IF(DIAS365(CALCULADORA!$C$27,A122)<0,0,DIAS365(CALCULADORA!$C$27,A122)) -> 3573 | C122: =+HLOOKUP(CALCULADORA!$C$9,Tablas!B:B,Flujos!J122+1,FALSE) -> 0 | D122: 0 | E122: 0 | F122: =ROUND(D121*ROUND(((1+CALCULADORA!$C$16)^(1/12)-1),6),6) -> 0 | G122: 0 | H122: =IF($B122=0,0,G122/POWER(1+CALCULADORA!$C$29,Flujos!$B122/365)) -> 0 | I122: 2033-11-28 | J122: 120 | K122: =+DIAS365($A$2,A122) -> 3650 | L122: -5.930662155e-06 | M122: 0 | N122: -6.947770715e-08 | O122: -6.947770715e-08
A123: 2033-12-28 | B123: =IF(DIAS365(CALCULADORA!$C$27,A123)<0,0,DIAS365(CALCULADORA!$C$27,A123)) -> 3603 | C123: =+HLOOKUP(CALCULADORA!$C$9,Tablas!B:B,Flujos!J123+1,FALSE) -> 0 | D123: 0 | E123: 0 | F123: =ROUND(D122*ROUND(((1+CALCULADORA!$C$16)^(1/12)-1),6),6) -> 0 | G123: 0 | H123: =IF($B123=0,0,G123/POWER(1+CALCULADORA!$C$29,Flujos!$B123/365)) -> 0 | I123: 2033-12-28 | J123: 121 | K123: =+DIAS365($A$2,A123) -> 3680 | L123: -5.930662155e-06 | M123: 0 | N123: -6.947770715e-08 | O123: -6.947770715e-08
A124: 2034-01-28 | B124: =IF(DIAS365(CALCULADORA!$C$27,A124)<0,0,DIAS365(CALCULADORA!$C$27,A124)) -> 3634 | C124: =+HLOOKUP(CALCULADORA!$C$9,Tablas!B:B,Flujos!J124+1,FALSE) -> 0 | D124: 0 | E124: 0 | F124: =ROUND(D123*ROUND(((1+CALCULADORA!$C$16)^(1/12)-1),6),6) -> 0 | G124: 0 | H124: =IF($B124=0,0,G124/POWER(1+CALCULADORA!$C$29,Flujos!$B124/365)) -> 0 | I124: 2034-01-28 | J124: 122 | K124: =+DIAS365($A$2,A124) -> 3711 | L124: -5.930662155e-06 | M124: 0 | N124: -6.947770715e-08 | O124: -6.947770715e-08
A125: 2034-02-28 | B125: =IF(DIAS365(CALCULADORA!$C$27,A125)<0,0,DIAS365(CALCULADORA!$C$27,A125)) -> 3665 | C125: =+HLOOKUP(CALCULADORA!$C$9,Tablas!B:B,Flujos!J125+1,FALSE) -> 0 | D125: 0 | E125: 0 | F125: =ROUND(D124*ROUND(((1+CALCULADORA!$C$16)^(1/12)-1),6),6) -> 0 | G125: 0 | H125: =IF($B125=0,0,G125/POWER(1+CALCULADORA!$C$29,Flujos!$B125/365)) -> 0 | I125: 2034-02-28 | J125: 123 | K125: =+DIAS365($A$2,A125) -> 3742 | L125: -5.930662155e-06 | M125: 0 | N125: -6.947770715e-08 | O125: -6.947770715e-08
A126: 2034-03-28 | B126: =IF(DIAS365(CALCULADORA!$C$27,A126)<0,0,DIAS365(CALCULADORA!$C$27,A126)) -> 3693 | C126: =+HLOOKUP(CALCULADORA!$C$9,Tablas!B:B,Flujos!J126+1,FALSE) -> 0 | D126: 0 | E126: 0 | F126: =ROUND(D125*ROUND(((1+CALCULADORA!$C$16)^(1/12)-1),6),6) -> 0 | G126: 0 | H126: =IF($B126=0,0,G126/POWER(1+CALCULADORA!$C$29,Flujos!$B126/365)) -> 0 | I126: 2034-03-28 | J126: 124 | K126: =+DIAS365($A$2,A126) -> 3770 | L126: -5.930662155e-06 | M126: 0 | N126: -6.947770715e-08 | O126: -6.947770715e-08
A127: 2034-04-28 | B127: =IF(DIAS365(CALCULADORA!$C$27,A127)<0,0,DIAS365(CALCULADORA!$C$27,A127)) -> 3724 | C127: =+HLOOKUP(CALCULADORA!$C$9,Tablas!B:B,Flujos!J127+1,FALSE) -> 0 | D127: 0 | E127: 0 | F127: =ROUND(D126*ROUND(((1+CALCULADORA!$C$16)^(1/12)-1),6),6) -> 0 | G127: 0 | H127: =IF($B127=0,0,G127/POWER(1+CALCULADORA!$C$29,Flujos!$B127/365)) -> 0 | I127: 2034-04-28 | J127: 125 | K127: =+DIAS365($A$2,A127) -> 3801 | L127: -5.930662155e-06 | M127: 0 | N127: -6.947770715e-08 | O127: -6.947770715e-08
A128: 2034-05-28 | B128: =IF(DIAS365(CALCULADORA!$C$27,A128)<0,0,DIAS365(CALCULADORA!$C$27,A128)) -> 3754 | C128: =+HLOOKUP(CALCULADORA!$C$9,Tablas!B:B,Flujos!J128+1,FALSE) -> 0 | D128: 0 | E128: 0 | F128: =ROUND(D127*ROUND(((1+CALCULADORA!$C$16)^(1/12)-1),6),6) -> 0 | G128: 0 | H128: =IF($B128=0,0,G128/POWER(1+CALCULADORA!$C$29,Flujos!$B128/365)) -> 0 | I128: 2034-05-28 | J128: 126 | K128: =+DIAS365($A$2,A128) -> 3831 | L128: -5.930662155e-06 | M128: 0 | N128: -6.947770715e-08 | O128: -6.947770715e-08
A129: 2034-06-28 | B129: =IF(DIAS365(CALCULADORA!$C$27,A129)<0,0,DIAS365(CALCULADORA!$C$27,A129)) -> 3785 | C129: =+HLOOKUP(CALCULADORA!$C$9,Tablas!B:B,Flujos!J129+1,FALSE) -> 0 | D129: 0 | E129: 0 | F129: =ROUND(D128*ROUND(((1+CALCULADORA!$C$16)^(1/12)-1),6),6) -> 0 | G129: 0 | H129: =IF($B129=0,0,G129/POWER(1+CALCULADORA!$C$29,Flujos!$B129/365)) -> 0 | I129: 2034-06-28 | J129: 127 | K129: =+DIAS365($A$2,A129) -> 3862 | L129: -5.930662155e-06 | M129: 0 | N129: -6.947770715e-08 | O129: -6.947770715e-08
A130: 2034-07-28 | B130: =IF(DIAS365(CALCULADORA!$C$27,A130)<0,0,DIAS365(CALCULADORA!$C$27,A130)) -> 3815 | C130: =+HLOOKUP(CALCULADORA!$C$9,Tablas!B:B,Flujos!J130+1,FALSE) -> 0 | D130: 0 | E130: 0 | F130: =ROUND(D129*ROUND(((1+CALCULADORA!$C$16)^(1/12)-1),6),6) -> 0 | G130: 0 | H130: =IF($B130=0,0,G130/POWER(1+CALCULADORA!$C$29,Flujos!$B130/365)) -> 0 | I130: 2034-07-28 | J130: 128 | K130: =+DIAS365($A$2,A130) -> 3892 | L130: -5.930662155e-06 | M130: 0 | N130: -6.947770715e-08 | O130: -6.947770715e-08
A131: =EDATE(A130,1) -> 2034-08-28 | B131: =IF(DIAS365(CALCULADORA!$C$27,A131)<0,0,DIAS365(CALCULADORA!$C$27,A131)) -> 3846 | C131: =+HLOOKUP(CALCULADORA!$C$9,Tablas!B:B,Flujos!J131+1,FALSE) -> 0 | D131: 0 | E131: 0 | F131: =ROUND(D130*ROUND(((1+CALCULADORA!$C$16)^(1/12)-1),6),6) -> 0 | G131: 0 | H131: =IF($B131=0,0,G131/POWER(1+CALCULADORA!$C$29,Flujos!$B131/365)) -> 0 | I131: =+A131 -> 2034-08-28 | J131: 129 | K131: =+DIAS365($A$2,A131) -> 3923 | L131: -5.930662155e-06 | M131: 0 | N131: -6.947770715e-08 | O131: -6.947770715e-08
A132: 2034-09-28 | B132: =IF(DIAS365(CALCULADORA!$C$27,A132)<0,0,DIAS365(CALCULADORA!$C$27,A132)) -> 3877 | C132: =+HLOOKUP(CALCULADORA!$C$9,Tablas!B:B,Flujos!J132+1,FALSE) -> 0 | D132: =+ROUND(D131-E132,6) -> 0 | E132: =ROUND(C132*$D$2,6) -> 0 | F132: =ROUND(D131*ROUND(((1+CALCULADORA!$C$16)^(1/12)-1),6),6) -> 0 | G132: =F132+E132 -> 0 | H132: =IF($B132=0,0,G132/POWER(1+CALCULADORA!$C$29,Flujos!$B132/365)) -> 0 | I132: 2034-09-28 | J132: 130 | K132: =+DIAS365($A$2,A132) -> 3954 | L132: =+L131-M132 -> -5.930662155e-06 | M132: =+$L$2*C132 -> 0 | N132: =+L131*$F$3% -> -6.947770715e-08 | O132: =+N132+M132 -> -6.947770715e-08
A133: 2034-10-28 | B133: =IF(DIAS365(CALCULADORA!$C$27,A133)<0,0,DIAS365(CALCULADORA!$C$27,A133)) -> 3907 | C133: =+HLOOKUP(CALCULADORA!$C$9,Tablas!B:B,Flujos!J133+1,FALSE) -> 0 | D133: 0 | E133: 0 | F133: =ROUND(D132*ROUND(((1+CALCULADORA!$C$16)^(1/12)-1),6),6) -> 0 | G133: 0 | H133: =IF($B133=0,0,G133/POWER(1+CALCULADORA!$C$29,Flujos!$B133/365)) -> 0 | I133: 2034-10-28 | J133: 131 | K133: =+DIAS365($A$2,A133) -> 3984 | L133: -5.930662155e-06 | M133: 0 | N133: -6.947770715e-08 | O133: -6.947770715e-08
A134: 2034-11-28 | B134: =IF(DIAS365(CALCULADORA!$C$27,A134)<0,0,DIAS365(CALCULADORA!$C$27,A134)) -> 3938 | C134: =+HLOOKUP(CALCULADORA!$C$9,Tablas!B:B,Flujos!J134+1,FALSE) -> 0 | D134: 0 | E134: 0 | F134: =ROUND(D133*ROUND(((1+CALCULADORA!$C$16)^(1/12)-1),6),6) -> 0 | G134: 0 | H134: =IF($B134=0,0,G134/POWER(1+CALCULADORA!$C$29,Flujos!$B134/365)) -> 0 | I134: 2034-11-28 | J134: 132 | K134: =+DIAS365($A$2,A134) -> 4015 | L134: -5.930662155e-06 | M134: 0 | N134: -6.947770715e-08 | O134: -6.947770715e-08
A135: 2034-12-28 | B135: =IF(DIAS365(CALCULADORA!$C$27,A135)<0,0,DIAS365(CALCULADORA!$C$27,A135)) -> 3968 | C135: =+HLOOKUP(CALCULADORA!$C$9,Tablas!B:B,Flujos!J135+1,FALSE) -> 0 | D135: 0 | E135: 0 | F135: =ROUND(D134*ROUND(((1+CALCULADORA!$C$16)^(1/12)-1),6),6) -> 0 | G135: 0 | H135: =IF($B135=0,0,G135/POWER(1+CALCULADORA!$C$29,Flujos!$B135/365)) -> 0 | I135: 2034-12-28 | J135: 133 | K135: =+DIAS365($A$2,A135) -> 4045 | L135: -5.930662155e-06 | M135: 0 | N135: -6.947770715e-08 | O135: -6.947770715e-08
A136: 2035-01-28 | B136: =IF(DIAS365(CALCULADORA!$C$27,A136)<0,0,DIAS365(CALCULADORA!$C$27,A136)) -> 3999 | C136: =+HLOOKUP(CALCULADORA!$C$9,Tablas!B:B,Flujos!J136+1,FALSE) -> 0 | D136: 0 | E136: 0 | F136: =ROUND(D135*ROUND(((1+CALCULADORA!$C$16)^(1/12)-1),6),6) -> 0 | G136: 0 | H136: =IF($B136=0,0,G136/POWER(1+CALCULADORA!$C$29,Flujos!$B136/365)) -> 0 | I136: 2035-01-28 | J136: 134 | K136: =+DIAS365($A$2,A136) -> 4076 | L136: -5.930662155e-06 | M136: 0 | N136: -6.947770715e-08 | O136: -6.947770715e-08
A137: 2035-02-28 | B137: =IF(DIAS365(CALCULADORA!$C$27,A137)<0,0,DIAS365(CALCULADORA!$C$27,A137)) -> 4030 | C137: =+HLOOKUP(CALCULADORA!$C$9,Tablas!B:B,Flujos!J137+1,FALSE) -> 0 | D137: 0 | E137: 0 | F137: =ROUND(D136*ROUND(((1+CALCULADORA!$C$16)^(1/12)-1),6),6) -> 0 | G137: 0 | H137: =IF($B137=0,0,G137/POWER(1+CALCULADORA!$C$29,Flujos!$B137/365)) -> 0 | I137: 2035-02-28 | J137: 135 | K137: =+DIAS365($A$2,A137) -> 4107 | L137: -5.930662155e-06 | M137: 0 | N137: -6.947770715e-08 | O137: -6.947770715e-08
A138: 2035-03-28 | B138: =IF(DIAS365(CALCULADORA!$C$27,A138)<0,0,DIAS365(CALCULADORA!$C$27,A138)) -> 4058 | C138: =+HLOOKUP(CALCULADORA!$C$9,Tablas!B:B,Flujos!J138+1,FALSE) -> 0 | D138: 0 | E138: 0 | F138: =ROUND(D137*ROUND(((1+CALCULADORA!$C$16)^(1/12)-1),6),6) -> 0 | G138: 0 | H138: =IF($B138=0,0,G138/POWER(1+CALCULADORA!$C$29,Flujos!$B138/365)) -> 0 | I138: 2035-03-28 | J138: 136 | K138: =+DIAS365($A$2,A138) -> 4135 | L138: -5.930662155e-06 | M138: 0 | N138: -6.947770715e-08 | O138: -6.947770715e-08
A139: 2035-04-28 | B139: =IF(DIAS365(CALCULADORA!$C$27,A139)<0,0,DIAS365(CALCULADORA!$C$27,A139)) -> 4089 | C139: =+HLOOKUP(CALCULADORA!$C$9,Tablas!B:B,Flujos!J139+1,FALSE) -> 0 | D139: 0 | E139: 0 | F139: =ROUND(D138*ROUND(((1+CALCULADORA!$C$16)^(1/12)-1),6),6) -> 0 | G139: 0 | H139: =IF($B139=0,0,G139/POWER(1+CALCULADORA!$C$29,Flujos!$B139/365)) -> 0 | I139: 2035-04-28 | J139: 137 | K139: =+DIAS365($A$2,A139) -> 4166 | L139: -5.930662155e-06 | M139: 0 | N139: -6.947770715e-08 | O139: -6.947770715e-08
A140: 2035-05-28 | B140: =IF(DIAS365(CALCULADORA!$C$27,A140)<0,0,DIAS365(CALCULADORA!$C$27,A140)) -> 4119 | C140: =+HLOOKUP(CALCULADORA!$C$9,Tablas!B:B,Flujos!J140+1,FALSE) -> 0 | D140: 0 | E140: 0 | F140: =ROUND(D139*ROUND(((1+CALCULADORA!$C$16)^(1/12)-1),6),6) -> 0 | G140: 0 | H140: =IF($B140=0,0,G140/POWER(1+CALCULADORA!$C$29,Flujos!$B140/365)) -> 0 | I140: 2035-05-28 | J140: 138 | K140: =+DIAS365($A$2,A140) -> 4196 | L140: -5.930662155e-06 | M140: 0 | N140: -6.947770715e-08 | O140: -6.947770715e-08
A141: 2035-06-28 | B141: =IF(DIAS365(CALCULADORA!$C$27,A141)<0,0,DIAS365(CALCULADORA!$C$27,A141)) -> 4150 | C141: =+HLOOKUP(CALCULADORA!$C$9,Tablas!B:B,Flujos!J141+1,FALSE) -> 0 | D141: 0 | E141: 0 | F141: =ROUND(D140*ROUND(((1+CALCULADORA!$C$16)^(1/12)-1),6),6) -> 0 | G141: 0 | H141: =IF($B141=0,0,G141/POWER(1+CALCULADORA!$C$29,Flujos!$B141/365)) -> 0 | I141: 2035-06-28 | J141: 139 | K141: =+DIAS365($A$2,A141) -> 4227 | L141: -5.930662155e-06 | M141: 0 | N141: -6.947770715e-08 | O141: -6.947770715e-08
A142: 2035-07-28 | B142: =IF(DIAS365(CALCULADORA!$C$27,A142)<0,0,DIAS365(CALCULADORA!$C$27,A142)) -> 4180 | C142: =+HLOOKUP(CALCULADORA!$C$9,Tablas!B:B,Flujos!J142+1,FALSE) -> 0 | D142: 0 | E142: 0 | F142: =ROUND(D141*ROUND(((1+CALCULADORA!$C$16)^(1/12)-1),6),6) -> 0 | G142: 0 | H142: =IF($B142=0,0,G142/POWER(1+CALCULADORA!$C$29,Flujos!$B142/365)) -> 0 | I142: 2035-07-28 | J142: 140 | K142: =+DIAS365($A$2,A142) -> 4257 | L142: -5.930662155e-06 | M142: 0 | N142: -6.947770715e-08 | O142: -6.947770715e-08
A143: 2035-08-28 | B143: =IF(DIAS365(CALCULADORA!$C$27,A143)<0,0,DIAS365(CALCULADORA!$C$27,A143)) -> 4211 | C143: =+HLOOKUP(CALCULADORA!$C$9,Tablas!B:B,Flujos!J143+1,FALSE) -> 0 | D143: 0 | E143: 0 | F143: =ROUND(D142*ROUND(((1+CALCULADORA!$C$16)^(1/12)-1),6),6) -> 0 | G143: 0 | H143: =IF($B143=0,0,G143/POWER(1+CALCULADORA!$C$29,Flujos!$B143/365)) -> 0 | I143: 2035-08-28 | J143: 141 | K143: =+DIAS365($A$2,A143) -> 4288 | L143: -5.930662155e-06 | M143: 0 | N143: -6.947770715e-08 | O143: -6.947770715e-08
A144: 2035-09-28 | B144: =IF(DIAS365(CALCULADORA!$C$27,A144)<0,0,DIAS365(CALCULADORA!$C$27,A144)) -> 4242 | C144: =+HLOOKUP(CALCULADORA!$C$9,Tablas!B:B,Flujos!J144+1,FALSE) -> 0 | D144: 0 | E144: 0 | F144: =ROUND(D143*ROUND(((1+CALCULADORA!$C$16)^(1/12)-1),6),6) -> 0 | G144: 0 | H144: =IF($B144=0,0,G144/POWER(1+CALCULADORA!$C$29,Flujos!$B144/365)) -> 0 | I144: 2035-09-28 | J144: 142 | K144: =+DIAS365($A$2,A144) -> 4319 | L144: -5.930662155e-06 | M144: 0 | N144: -6.947770715e-08 | O144: -6.947770715e-08
A145: 2035-10-28 | B145: =IF(DIAS365(CALCULADORA!$C$27,A145)<0,0,DIAS365(CALCULADORA!$C$27,A145)) -> 4272 | C145: =+HLOOKUP(CALCULADORA!$C$9,Tablas!B:B,Flujos!J145+1,FALSE) -> 0 | D145: 0 | E145: 0 | F145: =ROUND(D144*ROUND(((1+CALCULADORA!$C$16)^(1/12)-1),6),6) -> 0 | G145: 0 | H145: =IF($B145=0,0,G145/POWER(1+CALCULADORA!$C$29,Flujos!$B145/365)) -> 0 | I145: 2035-10-28 | J145: 143 | K145: =+DIAS365($A$2,A145) -> 4349 | L145: -5.930662155e-06 | M145: 0 | N145: -6.947770715e-08 | O145: -6.947770715e-08
A146: 2035-11-28 | B146: =IF(DIAS365(CALCULADORA!$C$27,A146)<0,0,DIAS365(CALCULADORA!$C$27,A146)) -> 4303 | C146: =+HLOOKUP(CALCULADORA!$C$9,Tablas!B:B,Flujos!J146+1,FALSE) -> 0 | D146: 0 | E146: 0 | F146: =ROUND(D145*ROUND(((1+CALCULADORA!$C$16)^(1/12)-1),6),6) -> 0 | G146: 0 | H146: =IF($B146=0,0,G146/POWER(1+CALCULADORA!$C$29,Flujos!$B146/365)) -> 0 | I146: 2035-11-28 | J146: 144 | K146: =+DIAS365($A$2,A146) -> 4380 | L146: -5.930662155e-06 | M146: 0 | N146: -6.947770715e-08 | O146: -6.947770715e-08
A147: 2035-12-28 | B147: =IF(DIAS365(CALCULADORA!$C$27,A147)<0,0,DIAS365(CALCULADORA!$C$27,A147)) -> 4333 | C147: =+HLOOKUP(CALCULADORA!$C$9,Tablas!B:B,Flujos!J147+1,FALSE) -> 0 | D147: 0 | E147: 0 | F147: =ROUND(D146*ROUND(((1+CALCULADORA!$C$16)^(1/12)-1),6),6) -> 0 | G147: 0 | H147: =IF($B147=0,0,G147/POWER(1+CALCULADORA!$C$29,Flujos!$B147/365)) -> 0 | I147: 2035-12-28 | J147: 145 | K147: =+DIAS365($A$2,A147) -> 4410 | L147: -5.930662155e-06 | M147: 0 | N147: -6.947770715e-08 | O147: -6.947770715e-08
A148: 2036-01-28 | B148: =IF(DIAS365(CALCULADORA!$C$27,A148)<0,0,DIAS365(CALCULADORA!$C$27,A148)) -> 4364 | C148: =+HLOOKUP(CALCULADORA!$C$9,Tablas!B:B,Flujos!J148+1,FALSE) -> 0 | D148: 0 | E148: 0 | F148: =ROUND(D147*ROUND(((1+CALCULADORA!$C$16)^(1/12)-1),6),6) -> 0 | G148: 0 | H148: =IF($B148=0,0,G148/POWER(1+CALCULADORA!$C$29,Flujos!$B148/365)) -> 0 | I148: 2036-01-28 | J148: 146 | K148: =+DIAS365($A$2,A148) -> 4441 | L148: -5.930662155e-06 | M148: 0 | N148: -6.947770715e-08 | O148: -6.947770715e-08
A149: 2036-02-28 | B149: =IF(DIAS365(CALCULADORA!$C$27,A149)<0,0,DIAS365(CALCULADORA!$C$27,A149)) -> 4395 | C149: =+HLOOKUP(CALCULADORA!$C$9,Tablas!B:B,Flujos!J149+1,FALSE) -> 0 | D149: 0 | E149: 0 | F149: =ROUND(D148*ROUND(((1+CALCULADORA!$C$16)^(1/12)-1),6),6) -> 0 | G149: 0 | H149: =IF($B149=0,0,G149/POWER(1+CALCULADORA!$C$29,Flujos!$B149/365)) -> 0 | I149: 2036-02-28 | J149: 147 | K149: =+DIAS365($A$2,A149) -> 4472 | L149: -5.930662155e-06 | M149: 0 | N149: -6.947770715e-08 | O149: -6.947770715e-08
A150: 2036-03-28 | B150: =IF(DIAS365(CALCULADORA!$C$27,A150)<0,0,DIAS365(CALCULADORA!$C$27,A150)) -> 4423 | C150: =+HLOOKUP(CALCULADORA!$C$9,Tablas!B:B,Flujos!J150+1,FALSE) -> 0 | D150: 0 | E150: 0 | F150: =ROUND(D149*ROUND(((1+CALCULADORA!$C$16)^(1/12)-1),6),6) -> 0 | G150: 0 | H150: =IF($B150=0,0,G150/POWER(1+CALCULADORA!$C$29,Flujos!$B150/365)) -> 0 | I150: 2036-03-28 | J150: 148 | K150: =+DIAS365($A$2,A150) -> 4500 | L150: -5.930662155e-06 | M150: 0 | N150: -6.947770715e-08 | O150: -6.947770715e-08
A151: 2036-04-28 | B151: =IF(DIAS365(CALCULADORA!$C$27,A151)<0,0,DIAS365(CALCULADORA!$C$27,A151)) -> 4454 | C151: =+HLOOKUP(CALCULADORA!$C$9,Tablas!B:B,Flujos!J151+1,FALSE) -> 0 | D151: 0 | E151: 0 | F151: =ROUND(D150*ROUND(((1+CALCULADORA!$C$16)^(1/12)-1),6),6) -> 0 | G151: 0 | H151: =IF($B151=0,0,G151/POWER(1+CALCULADORA!$C$29,Flujos!$B151/365)) -> 0 | I151: 2036-04-28 | J151: 149 | K151: =+DIAS365($A$2,A151) -> 4531 | L151: -5.930662155e-06 | M151: 0 | N151: -6.947770715e-08 | O151: -6.947770715e-08
A152: 2036-05-28 | B152: =IF(DIAS365(CALCULADORA!$C$27,A152)<0,0,DIAS365(CALCULADORA!$C$27,A152)) -> 4484 | C152: =+HLOOKUP(CALCULADORA!$C$9,Tablas!B:B,Flujos!J152+1,FALSE) -> 0 | D152: 0 | E152: 0 | F152: =ROUND(D151*ROUND(((1+CALCULADORA!$C$16)^(1/12)-1),6),6) -> 0 | G152: 0 | H152: =IF($B152=0,0,G152/POWER(1+CALCULADORA!$C$29,Flujos!$B152/365)) -> 0 | I152: 2036-05-28 | J152: 150 | K152: =+DIAS365($A$2,A152) -> 4561 | L152: -5.930662155e-06 | M152: 0 | N152: -6.947770715e-08 | O152: -6.947770715e-08
A153: 2036-06-28 | B153: =IF(DIAS365(CALCULADORA!$C$27,A153)<0,0,DIAS365(CALCULADORA!$C$27,A153)) -> 4515 | C153: =+HLOOKUP(CALCULADORA!$C$9,Tablas!B:B,Flujos!J153+1,FALSE) -> 0 | D153: 0 | E153: 0 | F153: =ROUND(D152*ROUND(((1+CALCULADORA!$C$16)^(1/12)-1),6),6) -> 0 | G153: 0 | H153: =IF($B153=0,0,G153/POWER(1+CALCULADORA!$C$29,Flujos!$B153/365)) -> 0 | I153: 2036-06-28 | J153: 151 | K153: =+DIAS365($A$2,A153) -> 4592 | L153: -5.930662155e-06 | M153: 0 | N153: -6.947770715e-08 | O153: -6.947770715e-08
A154: 2036-07-28 | B154: =IF(DIAS365(CALCULADORA!$C$27,A154)<0,0,DIAS365(CALCULADORA!$C$27,A154)) -> 4545 | C154: =+HLOOKUP(CALCULADORA!$C$9,Tablas!B:B,Flujos!J154+1,FALSE) -> 0 | D154: 0 | E154: 0 | F154: =ROUND(D153*ROUND(((1+CALCULADORA!$C$16)^(1/12)-1),6),6) -> 0 | G154: 0 | H154: =IF($B154=0,0,G154/POWER(1+CALCULADORA!$C$29,Flujos!$B154/365)) -> 0 | I154: 2036-07-28 | J154: 152 | K154: =+DIAS365($A$2,A154) -> 4622 | L154: -5.930662155e-06 | M154: 0 | N154: -6.947770715e-08 | O154: -6.947770715e-08
A155: 2036-08-28 | B155: =IF(DIAS365(CALCULADORA!$C$27,A155)<0,0,DIAS365(CALCULADORA!$C$27,A155)) -> 4576 | C155: =+HLOOKUP(CALCULADORA!$C$9,Tablas!B:B,Flujos!J155+1,FALSE) -> 0 | D155: 0 | E155: 0 | F155: =ROUND(D154*ROUND(((1+CALCULADORA!$C$16)^(1/12)-1),6),6) -> 0 | G155: 0 | H155: =IF($B155=0,0,G155/POWER(1+CALCULADORA!$C$29,Flujos!$B155/365)) -> 0 | I155: 2036-08-28 | J155: 153 | K155: =+DIAS365($A$2,A155) -> 4653 | L155: -5.930662155e-06 | M155: 0 | N155: -6.947770715e-08 | O155: -6.947770715e-08
A156: 2036-09-28 | B156: =IF(DIAS365(CALCULADORA!$C$27,A156)<0,0,DIAS365(CALCULADORA!$C$27,A156)) -> 4607 | C156: =+HLOOKUP(CALCULADORA!$C$9,Tablas!B:B,Flujos!J156+1,FALSE) -> 0 | D156: 0 | E156: 0 | F156: =ROUND(D155*ROUND(((1+CALCULADORA!$C$16)^(1/12)-1),6),6) -> 0 | G156: 0 | H156: =IF($B156=0,0,G156/POWER(1+CALCULADORA!$C$29,Flujos!$B156/365)) -> 0 | I156: 2036-09-28 | J156: 154 | K156: =+DIAS365($A$2,A156) -> 4684 | L156: -5.930662155e-06 | M156: 0 | N156: -6.947770715e-08 | O156: -6.947770715e-08
A157: 2036-10-28 | B157: =IF(DIAS365(CALCULADORA!$C$27,A157)<0,0,DIAS365(CALCULADORA!$C$27,A157)) -> 4637 | C157: =+HLOOKUP(CALCULADORA!$C$9,Tablas!B:B,Flujos!J157+1,FALSE) -> 0 | D157: 0 | E157: 0 | F157: =ROUND(D156*ROUND(((1+CALCULADORA!$C$16)^(1/12)-1),6),6) -> 0 | G157: 0 | H157: =IF($B157=0,0,G157/POWER(1+CALCULADORA!$C$29,Flujos!$B157/365)) -> 0 | I157: 2036-10-28 | J157: 155 | K157: =+DIAS365($A$2,A157) -> 4714 | L157: -5.930662155e-06 | M157: 0 | N157: -6.947770715e-08 | O157: -6.947770715e-08
A158: 2036-11-28 | B158: =IF(DIAS365(CALCULADORA!$C$27,A158)<0,0,DIAS365(CALCULADORA!$C$27,A158)) -> 4668 | C158: =+HLOOKUP(CALCULADORA!$C$9,Tablas!B:B,Flujos!J158+1,FALSE) -> 0 | D158: 0 | E158: 0 | F158: =ROUND(D157*ROUND(((1+CALCULADORA!$C$16)^(1/12)-1),6),6) -> 0 | G158: 0 | H158: =IF($B158=0,0,G158/POWER(1+CALCULADORA!$C$29,Flujos!$B158/365)) -> 0 | I158: 2036-11-28 | J158: 156 | K158: =+DIAS365($A$2,A158) -> 4745 | L158: -5.930662155e-06 | M158: 0 | N158: -6.947770715e-08 | O158: -6.947770715e-08
A159: 2036-12-28 | B159: =IF(DIAS365(CALCULADORA!$C$27,A159)<0,0,DIAS365(CALCULADORA!$C$27,A159)) -> 4698 | C159: =+HLOOKUP(CALCULADORA!$C$9,Tablas!B:B,Flujos!J159+1,FALSE) -> 0 | D159: 0 | E159: 0 | F159: =ROUND(D158*ROUND(((1+CALCULADORA!$C$16)^(1/12)-1),6),6) -> 0 | G159: 0 | H159: =IF($B159=0,0,G159/POWER(1+CALCULADORA!$C$29,Flujos!$B159/365)) -> 0 | I159: 2036-12-28 | J159: 157 | K159: =+DIAS365($A$2,A159) -> 4775 | L159: -5.930662155e-06 | M159: 0 | N159: -6.947770715e-08 | O159: -6.947770715e-08
A160: 2037-01-28 | B160: =IF(DIAS365(CALCULADORA!$C$27,A160)<0,0,DIAS365(CALCULADORA!$C$27,A160)) -> 4729 | C160: =+HLOOKUP(CALCULADORA!$C$9,Tablas!B:B,Flujos!J160+1,FALSE) -> 0 | D160: 0 | E160: 0 | F160: =ROUND(D159*ROUND(((1+CALCULADORA!$C$16)^(1/12)-1),6),6) -> 0 | G160: 0 | H160: =IF($B160=0,0,G160/POWER(1+CALCULADORA!$C$29,Flujos!$B160/365)) -> 0 | I160: 2037-01-28 | J160: 158 | K160: =+DIAS365($A$2,A160) -> 4806 | L160: -5.930662155e-06 | M160: 0 | N160: -6.947770715e-08 | O160: -6.947770715e-08
A161: 2037-02-28 | B161: =IF(DIAS365(CALCULADORA!$C$27,A161)<0,0,DIAS365(CALCULADORA!$C$27,A161)) -> 4760 | C161: =+HLOOKUP(CALCULADORA!$C$9,Tablas!B:B,Flujos!J161+1,FALSE) -> 0 | D161: 0 | E161: 0 | F161: =ROUND(D160*ROUND(((1+CALCULADORA!$C$16)^(1/12)-1),6),6) -> 0 | G161: 0 | H161: =IF($B161=0,0,G161/POWER(1+CALCULADORA!$C$29,Flujos!$B161/365)) -> 0 | I161: 2037-02-28 | J161: 159 | K161: =+DIAS365($A$2,A161) -> 4837 | L161: -5.930662155e-06 | M161: 0 | N161: -6.947770715e-08 | O161: -6.947770715e-08
A162: 2037-03-28 | B162: =IF(DIAS365(CALCULADORA!$C$27,A162)<0,0,DIAS365(CALCULADORA!$C$27,A162)) -> 4788 | C162: =+HLOOKUP(CALCULADORA!$C$9,Tablas!B:B,Flujos!J162+1,FALSE) -> 0 | D162: 0 | E162: 0 | F162: =ROUND(D161*ROUND(((1+CALCULADORA!$C$16)^(1/12)-1),6),6) -> 0 | G162: 0 | H162: =IF($B162=0,0,G162/POWER(1+CALCULADORA!$C$29,Flujos!$B162/365)) -> 0 | I162: 2037-03-28 | J162: 160 | K162: =+DIAS365($A$2,A162) -> 4865 | L162: -5.930662155e-06 | M162: 0 | N162: -6.947770715e-08 | O162: -6.947770715e-08
A163: =EDATE(A162,1) -> 2037-04-28 | B163: =IF(DIAS365(CALCULADORA!$C$27,A163)<0,0,DIAS365(CALCULADORA!$C$27,A163)) -> 4819 | C163: =+HLOOKUP(CALCULADORA!$C$9,Tablas!B:B,Flujos!J163+1,FALSE) -> 0 | D163: 0 | E163: 0 | F163: =ROUND(D162*ROUND(((1+CALCULADORA!$C$16)^(1/12)-1),6),6) -> 0 | G163: 0 | H163: =IF($B163=0,0,G163/POWER(1+CALCULADORA!$C$29,Flujos!$B163/365)) -> 0 | I163: 2037-04-28 | J163: 161 | K163: =+DIAS365($A$2,A163) -> 4896 | L163: -5.930662155e-06 | M163: 0 | N163: -6.947770715e-08 | O163: -6.947770715e-08
A164: 2037-05-28 | B164: =IF(DIAS365(CALCULADORA!$C$27,A164)<0,0,DIAS365(CALCULADORA!$C$27,A164)) -> 4849 | C164: =+HLOOKUP(CALCULADORA!$C$9,Tablas!B:B,Flujos!J164+1,FALSE) -> 0 | D164: 0 | E164: 0 | F164: =ROUND(D163*ROUND(((1+CALCULADORA!$C$16)^(1/12)-1),6),6) -> 0 | G164: 0 | H164: =IF($B164=0,0,G164/POWER(1+CALCULADORA!$C$29,Flujos!$B164/365)) -> 0 | I164: 2037-05-28 | J164: 162 | K164: =+DIAS365($A$2,A164) -> 4926 | L164: -5.930662155e-06 | M164: 0 | N164: -6.947770715e-08 | O164: -6.947770715e-08
A165: 2037-06-28 | B165: =IF(DIAS365(CALCULADORA!$C$27,A165)<0,0,DIAS365(CALCULADORA!$C$27,A165)) -> 4880 | C165: =+HLOOKUP(CALCULADORA!$C$9,Tablas!B:B,Flujos!J165+1,FALSE) -> 0 | D165: 0 | E165: 0 | F165: =ROUND(D164*ROUND(((1+CALCULADORA!$C$16)^(1/12)-1),6),6) -> 0 | G165: 0 | H165: =IF($B165=0,0,G165/POWER(1+CALCULADORA!$C$29,Flujos!$B165/365)) -> 0 | I165: 2037-06-28 | J165: 163 | K165: =+DIAS365($A$2,A165) -> 4957 | L165: -5.930662155e-06 | M165: 0 | N165: -6.947770715e-08 | O165: -6.947770715e-08
A166: 2037-07-28 | B166: =IF(DIAS365(CALCULADORA!$C$27,A166)<0,0,DIAS365(CALCULADORA!$C$27,A166)) -> 4910 | C166: =+HLOOKUP(CALCULADORA!$C$9,Tablas!B:B,Flujos!J166+1,FALSE) -> 0 | D166: 0 | E166: 0 | F166: =ROUND(D165*ROUND(((1+CALCULADORA!$C$16)^(1/12)-1),6),6) -> 0 | G166: 0 | H166: =IF($B166=0,0,G166/POWER(1+CALCULADORA!$C$29,Flujos!$B166/365)) -> 0 | I166: 2037-07-28 | J166: 164 | K166: =+DIAS365($A$2,A166) -> 4987 | L166: -5.930662155e-06 | M166: 0 | N166: -6.947770715e-08 | O166: -6.947770715e-08
A167: 2037-08-28 | B167: =IF(DIAS365(CALCULADORA!$C$27,A167)<0,0,DIAS365(CALCULADORA!$C$27,A167)) -> 4941 | C167: =+HLOOKUP(CALCULADORA!$C$9,Tablas!B:B,Flujos!J167+1,FALSE) -> 0 | D167: 0 | E167: 0 | F167: =ROUND(D166*ROUND(((1+CALCULADORA!$C$16)^(1/12)-1),6),6) -> 0 | G167: 0 | H167: =IF($B167=0,0,G167/POWER(1+CALCULADORA!$C$29,Flujos!$B167/365)) -> 0 | I167: 2037-08-28 | J167: 165 | K167: =+DIAS365($A$2,A167) -> 5018 | L167: -5.930662155e-06 | M167: 0 | N167: -6.947770715e-08 | O167: -6.947770715e-08
A168: 2037-09-28 | B168: =IF(DIAS365(CALCULADORA!$C$27,A168)<0,0,DIAS365(CALCULADORA!$C$27,A168)) -> 4972 | C168: =+HLOOKUP(CALCULADORA!$C$9,Tablas!B:B,Flujos!J168+1,FALSE) -> 0 | D168: 0 | E168: 0 | F168: =ROUND(D167*ROUND(((1+CALCULADORA!$C$16)^(1/12)-1),6),6) -> 0 | G168: 0 | H168: =IF($B168=0,0,G168/POWER(1+CALCULADORA!$C$29,Flujos!$B168/365)) -> 0 | I168: 2037-09-28 | J168: 166 | K168: =+DIAS365($A$2,A168) -> 5049 | L168: -5.930662155e-06 | M168: 0 | N168: -6.947770715e-08 | O168: -6.947770715e-08
A169: 2037-10-28 | B169: =IF(DIAS365(CALCULADORA!$C$27,A169)<0,0,DIAS365(CALCULADORA!$C$27,A169)) -> 5002 | C169: =+HLOOKUP(CALCULADORA!$C$9,Tablas!B:B,Flujos!J169+1,FALSE) -> 0 | D169: 0 | E169: 0 | F169: =ROUND(D168*ROUND(((1+CALCULADORA!$C$16)^(1/12)-1),6),6) -> 0 | G169: 0 | H169: =IF($B169=0,0,G169/POWER(1+CALCULADORA!$C$29,Flujos!$B169/365)) -> 0 | I169: 2037-10-28 | J169: 167 | K169: =+DIAS365($A$2,A169) -> 5079 | L169: -5.930662155e-06 | M169: 0 | N169: -6.947770715e-08 | O169: -6.947770715e-08
A170: 2037-11-28 | B170: =IF(DIAS365(CALCULADORA!$C$27,A170)<0,0,DIAS365(CALCULADORA!$C$27,A170)) -> 5033 | C170: =+HLOOKUP(CALCULADORA!$C$9,Tablas!B:B,Flujos!J170+1,FALSE) -> 0 | D170: 0 | E170: 0 | F170: =ROUND(D169*ROUND(((1+CALCULADORA!$C$16)^(1/12)-1),6),6) -> 0 | G170: 0 | H170: =IF($B170=0,0,G170/POWER(1+CALCULADORA!$C$29,Flujos!$B170/365)) -> 0 | I170: 2037-11-28 | J170: 168 | K170: =+DIAS365($A$2,A170) -> 5110 | L170: -5.930662155e-06 | M170: 0 | N170: -6.947770715e-08 | O170: -6.947770715e-08
A171: 2037-12-28 | B171: =IF(DIAS365(CALCULADORA!$C$27,A171)<0,0,DIAS365(CALCULADORA!$C$27,A171)) -> 5063 | C171: =+HLOOKUP(CALCULADORA!$C$9,Tablas!B:B,Flujos!J171+1,FALSE) -> 0 | D171: 0 | E171: 0 | F171: =ROUND(D170*ROUND(((1+CALCULADORA!$C$16)^(1/12)-1),6),6) -> 0 | G171: 0 | H171: =IF($B171=0,0,G171/POWER(1+CALCULADORA!$C$29,Flujos!$B171/365)) -> 0 | I171: 2037-12-28 | J171: 169 | K171: =+DIAS365($A$2,A171) -> 5140 | L171: -5.930662155e-06 | M171: 0 | N171: -6.947770715e-08 | O171: -6.947770715e-08
A172: 2038-01-28 | B172: =IF(DIAS365(CALCULADORA!$C$27,A172)<0,0,DIAS365(CALCULADORA!$C$27,A172)) -> 5094 | C172: =+HLOOKUP(CALCULADORA!$C$9,Tablas!B:B,Flujos!J172+1,FALSE) -> 0 | D172: 0 | E172: 0 | F172: =ROUND(D171*ROUND(((1+CALCULADORA!$C$16)^(1/12)-1),6),6) -> 0 | G172: 0 | H172: =IF($B172=0,0,G172/POWER(1+CALCULADORA!$C$29,Flujos!$B172/365)) -> 0 | I172: 2038-01-28 | J172: 170 | K172: =+DIAS365($A$2,A172) -> 5171 | L172: -5.930662155e-06 | M172: 0 | N172: -6.947770715e-08 | O172: -6.947770715e-08
A173: 2038-02-28 | B173: =IF(DIAS365(CALCULADORA!$C$27,A173)<0,0,DIAS365(CALCULADORA!$C$27,A173)) -> 5125 | C173: =+HLOOKUP(CALCULADORA!$C$9,Tablas!B:B,Flujos!J173+1,FALSE) -> 0 | D173: 0 | E173: 0 | F173: =ROUND(D172*ROUND(((1+CALCULADORA!$C$16)^(1/12)-1),6),6) -> 0 | G173: 0 | H173: =IF($B173=0,0,G173/POWER(1+CALCULADORA!$C$29,Flujos!$B173/365)) -> 0 | I173: 2038-02-28 | J173: 171 | K173: =+DIAS365($A$2,A173) -> 5202 | L173: -5.930662155e-06 | M173: 0 | N173: -6.947770715e-08 | O173: -6.947770715e-08
A174: 2038-03-28 | B174: =IF(DIAS365(CALCULADORA!$C$27,A174)<0,0,DIAS365(CALCULADORA!$C$27,A174)) -> 5153 | C174: =+HLOOKUP(CALCULADORA!$C$9,Tablas!B:B,Flujos!J174+1,FALSE) -> 0 | D174: 0 | E174: 0 | F174: =ROUND(D173*ROUND(((1+CALCULADORA!$C$16)^(1/12)-1),6),6) -> 0 | G174: 0 | H174: =IF($B174=0,0,G174/POWER(1+CALCULADORA!$C$29,Flujos!$B174/365)) -> 0 | I174: 2038-03-28 | J174: 172 | K174: =+DIAS365($A$2,A174) -> 5230 | L174: -5.930662155e-06 | M174: 0 | N174: -6.947770715e-08 | O174: -6.947770715e-08
A175: 2038-04-28 | B175: =IF(DIAS365(CALCULADORA!$C$27,A175)<0,0,DIAS365(CALCULADORA!$C$27,A175)) -> 5184 | C175: =+HLOOKUP(CALCULADORA!$C$9,Tablas!B:B,Flujos!J175+1,FALSE) -> 0 | D175: 0 | E175: 0 | F175: =ROUND(D174*ROUND(((1+CALCULADORA!$C$16)^(1/12)-1),6),6) -> 0 | G175: 0 | H175: =IF($B175=0,0,G175/POWER(1+CALCULADORA!$C$29,Flujos!$B175/365)) -> 0 | I175: 2038-04-28 | J175: 173 | K175: =+DIAS365($A$2,A175) -> 5261 | L175: -5.930662155e-06 | M175: 0 | N175: -6.947770715e-08 | O175: -6.947770715e-08
A176: 2038-05-28 | B176: =IF(DIAS365(CALCULADORA!$C$27,A176)<0,0,DIAS365(CALCULADORA!$C$27,A176)) -> 5214 | C176: =+HLOOKUP(CALCULADORA!$C$9,Tablas!B:B,Flujos!J176+1,FALSE) -> 0 | D176: 0 | E176: 0 | F176: =ROUND(D175*ROUND(((1+CALCULADORA!$C$16)^(1/12)-1),6),6) -> 0 | G176: 0 | H176: =IF($B176=0,0,G176/POWER(1+CALCULADORA!$C$29,Flujos!$B176/365)) -> 0 | I176: 2038-05-28 | J176: 174 | K176: =+DIAS365($A$2,A176) -> 5291 | L176: -5.930662155e-06 | M176: 0 | N176: -6.947770715e-08 | O176: -6.947770715e-08
A177: 2038-06-28 | B177: =IF(DIAS365(CALCULADORA!$C$27,A177)<0,0,DIAS365(CALCULADORA!$C$27,A177)) -> 5245 | C177: =+HLOOKUP(CALCULADORA!$C$9,Tablas!B:B,Flujos!J177+1,FALSE) -> 0 | D177: 0 | E177: 0 | F177: =ROUND(D176*ROUND(((1+CALCULADORA!$C$16)^(1/12)-1),6),6) -> 0 | G177: 0 | H177: =IF($B177=0,0,G177/POWER(1+CALCULADORA!$C$29,Flujos!$B177/365)) -> 0 | I177: 2038-06-28 | J177: 175 | K177: =+DIAS365($A$2,A177) -> 5322 | L177: -5.930662155e-06 | M177: 0 | N177: -6.947770715e-08 | O177: -6.947770715e-08
A178: 2038-07-28 | B178: =IF(DIAS365(CALCULADORA!$C$27,A178)<0,0,DIAS365(CALCULADORA!$C$27,A178)) -> 5275 | C178: =+HLOOKUP(CALCULADORA!$C$9,Tablas!B:B,Flujos!J178+1,FALSE) -> 0 | D178: 0 | E178: 0 | F178: =ROUND(D177*ROUND(((1+CALCULADORA!$C$16)^(1/12)-1),6),6) -> 0 | G178: 0 | H178: =IF($B178=0,0,G178/POWER(1+CALCULADORA!$C$29,Flujos!$B178/365)) -> 0 | I178: 2038-07-28 | J178: 176 | K178: =+DIAS365($A$2,A178) -> 5352 | L178: -5.930662155e-06 | M178: 0 | N178: -6.947770715e-08 | O178: -6.947770715e-08
A179: 2038-08-28 | B179: =IF(DIAS365(CALCULADORA!$C$27,A179)<0,0,DIAS365(CALCULADORA!$C$27,A179)) -> 5306 | C179: =+HLOOKUP(CALCULADORA!$C$9,Tablas!B:B,Flujos!J179+1,FALSE) -> 0 | D179: 0 | E179: 0 | F179: =ROUND(D178*ROUND(((1+CALCULADORA!$C$16)^(1/12)-1),6),6) -> 0 | G179: 0 | H179: =IF($B179=0,0,G179/POWER(1+CALCULADORA!$C$29,Flujos!$B179/365)) -> 0 | I179: 2038-08-28 | J179: 177 | K179: =+DIAS365($A$2,A179) -> 5383 | L179: -5.930662155e-06 | M179: 0 | N179: -6.947770715e-08 | O179: -6.947770715e-08
A180: 2038-09-28 | B180: =IF(DIAS365(CALCULADORA!$C$27,A180)<0,0,DIAS365(CALCULADORA!$C$27,A180)) -> 5337 | C180: =+HLOOKUP(CALCULADORA!$C$9,Tablas!B:B,Flujos!J180+1,FALSE) -> 0 | D180: 0 | E180: 0 | F180: =ROUND(D179*ROUND(((1+CALCULADORA!$C$16)^(1/12)-1),6),6) -> 0 | G180: 0 | H180: =IF($B180=0,0,G180/POWER(1+CALCULADORA!$C$29,Flujos!$B180/365)) -> 0 | I180: 2038-09-28 | J180: 178 | K180: =+DIAS365($A$2,A180) -> 5414 | L180: -5.930662155e-06 | M180: 0 | N180: -6.947770715e-08 | O180: -6.947770715e-08
A181: 2038-10-28 | B181: =IF(DIAS365(CALCULADORA!$C$27,A181)<0,0,DIAS365(CALCULADORA!$C$27,A181)) -> 5367 | C181: =+HLOOKUP(CALCULADORA!$C$9,Tablas!B:B,Flujos!J181+1,FALSE) -> 0 | D181: 0 | E181: 0 | F181: =ROUND(D180*ROUND(((1+CALCULADORA!$C$16)^(1/12)-1),6),6) -> 0 | G181: 0 | H181: =IF($B181=0,0,G181/POWER(1+CALCULADORA!$C$29,Flujos!$B181/365)) -> 0 | I181: 2038-10-28 | J181: 179 | K181: =+DIAS365($A$2,A181) -> 5444 | L181: -5.930662155e-06 | M181: 0 | N181: -6.947770715e-08 | O181: -6.947770715e-08
A182: 2038-11-28 | B182: =IF(DIAS365(CALCULADORA!$C$27,A182)<0,0,DIAS365(CALCULADORA!$C$27,A182)) -> 5398 | C182: =+HLOOKUP(CALCULADORA!$C$9,Tablas!B:B,Flujos!J182+1,FALSE) -> 0 | D182: 0 | E182: 0 | F182: =ROUND(D181*ROUND(((1+CALCULADORA!$C$16)^(1/12)-1),6),6) -> 0 | G182: 0 | H182: =IF($B182=0,0,G182/POWER(1+CALCULADORA!$C$29,Flujos!$B182/365)) -> 0 | I182: 2038-11-28 | J182: 180 | K182: =+DIAS365($A$2,A182) -> 5475 | L182: -5.930662155e-06 | M182: 0 | N182: -6.947770715e-08 | O182: -6.947770715e-08
C183: =+SUMIF(B2:B182,">0",C2:C182) -> 0.90852581 | E183: =SUM(E2:E182) -> 100 | F183: =SUM(F2:F182) -> 11.369028 | G183: =SUM(G2:G182) -> 111.369028 | H183: =SUM(H2:H182) -> 91.86551777 | L183: Totales | M183: =SUM(M2:M182) -> 32692900000 | N183: =SUM(N2:N182) -> 3716865504 | O183: 3.64097655e+10

Sheet TIR de Tenencia (hidden)
A1: =+Flujos!A1 -> Fecha | B1: =+Flujos!L1 -> Saldo / Balance | C1: =+Flujos!M1 -> Pago de Capital | D1: =+Flujos!N1 -> Pago de Intereses | E1: =+Flujos!O1 -> Pago Total | F1: =+CALCULADORA!C27 -> 2024-02-13 | G1: Fecha | H1: Flujo | I1: Fecha | J1: Flujo 1 | K1: TIR | L1: =+DAY(A2) -> 28 | M1: =+MONTH(G2) -> 11 | N1: =+YEAR(G2) -> 2023 | P1: =MATCH(MAX('TIR de Tenencia'!I:I),'TIR de Tenencia'!I:I,0) -> 5
A2: =+Flujos!A2 -> 2023-11-28 | B2: =+Flujos!L2 -> 3.26929e+10 | C2: =+Flujos!M2 -> 0 | D2: =+Flujos!N2 -> 0 | E2: =+Flujos!O2 -> 0 | G2: =+CALCULADORA!C23 -> 2023-11-29 | H2: =-CALCULADORA!C24 -> -32705650231 | I2: =+G2 -> 2023-11-29 | J2: =+H2 -> -32705650231 | K2: =+XIRR(J2:J5,I2:I5) -> 0.1462837398 | L2: =+L1 -> 28 | M2: =+IF(M1=12,1,M1+1) -> 12 | N2: =+IF(M2=1,N1+1,N1) -> 2023 | P2: 1 | Q2: Enero
A3: =+Flujos!A3 -> 2023-12-28 | B3: =+Flujos!L3 -> 3.139306822e+10 | C3: =+Flujos!M3 -> 1299831780 | D3: =+Flujos!N3 -> 382997323.5 | E3: =+Flujos!O3 -> 1682829104 | G3: =+DATE(N2,M2,L2) -> 2023-12-28 | H3: =IF(G3<CALCULADORA!$C$23,0,IF(CALCULADORA!$C$27>'TIR de Tenencia'!G3,E3,CALCULADORA!$C$33)) -> 1682829104 | I3: =+IF(H3=H2," ",G3) -> 2023-12-28 | J3: =+IF(H3=H2," ",H3) -> 1682829104 | L3: =+L2 -> 28 | M3: =+IF(M2=12,1,M2+1) -> 1 | N3: =+IF(M3=1,N2+1,N2) -> 2024 | P3: 2 | Q3: Febrero
A4: =+Flujos!A4 -> 2024-01-28 | B4: =+Flujos!L4 -> 2.970234345e+10 | C4: =+Flujos!M4 -> 1690724766 | D4: =+Flujos!N4 -> 367769794.2 | E4: =+Flujos!O4 -> 2058494560 | G4: =+DATE(N3,M3,L3) -> 2024-01-28 | H4: =IF(G4<CALCULADORA!$C$23,0,IF(CALCULADORA!$C$27>'TIR de Tenencia'!G4,E4,CALCULADORA!$C$33)) -> 2058494560 | I4: =+IF(H4=H3," ",G4) -> 2024-01-28 | J4: =+IF(H4=H3," ",H4) -> 2058494560 | L4: 28 | M4: 2 | N4: 2024 | P4: 3 | Q4: Marzo
A5: =+Flujos!A5 -> 2024-02-28 | B5: =+Flujos!L5 -> 2.757730495e+10 | C5: =+Flujos!M5 -> 2125038500 | D5: =+Flujos!N5 -> 347962953.6 | E5: =+Flujos!O5 -> 2473001454 | G5: 2024-02-28 | H5: =IF(G5<CALCULADORA!$C$23,0,IF(CALCULADORA!$C$27>'TIR de Tenencia'!G5,E5,CALCULADORA!$C$33)) -> 30033227560 | I5: =+IF(H5=H4," ",G5) -> 2024-02-28 | J5: =+IF(H5=H4," ",H5) -> 30033227560 | L5: 28 | M5: 3 | N5: 2024 | P5: 4 | Q5: Abril
A6: =+Flujos!A6 -> 2024-03-28 | B6: =+Flujos!L6 -> 2.545226645e+10 | C6: =+Flujos!M6 -> 2125038500 | D6: =+Flujos!N6 -> 323068127.5 | E6: =+Flujos!O6 -> 2448106628 | G6: 2024-03-28 | H6: =IF(G6<CALCULADORA!$C$23,0,IF(CALCULADORA!$C$27>'TIR de Tenencia'!G6,E6,CALCULADORA!$C$33)) -> 30033227560 | L6: 28 | M6: 4 | N6: 2024 | P6: 5 | Q6: Mayo
A7: =+Flujos!A7 -> 2024-04-28 | B7: =+Flujos!L7 -> 2.349069245e+10 | C7: =+Flujos!M7 -> 1961574000 | D7: =+Flujos!N7 -> 298173301.5 | E7: =+Flujos!O7 -> 2259747302 | G7: 2024-04-28 | H7: =IF(G7<CALCULADORA!$C$23,0,IF(CALCULADORA!$C$27>'TIR de Tenencia'!G7,E7,CALCULADORA!$C$33)) -> 30033227560 | L7: 28 | M7: 5 | N7: 2024 | P7: 6 | Q7: Junio
A8: =+Flujos!A8 -> 2024-05-28 | B8: =+Flujos!L8 -> 2.152911845e+10 | C8: =+Flujos!M8 -> 1961574000 | D8: =+Flujos!N8 -> 275193462.1 | E8: =+Flujos!O8 -> 2236767462 | G8: 2024-05-28 | H8: =IF(G8<CALCULADORA!$C$23,0,IF(CALCULADORA!$C$27>'TIR de Tenencia'!G8,E8,CALCULADORA!$C$33)) -> 30033227560 | L8: 28 | M8: 6 | N8: 2024 | P8: 7 | Q8: Julio
A9: =+Flujos!A9 -> 2024-06-28 | B9: =+Flujos!L9 -> 1.956754445e+10 | C9: =+Flujos!M9 -> 1961574000 | D9: =+Flujos!N9 -> 252213622.7 | E9: =+Flujos!O9 -> 2213787623 | G9: 2024-06-28 | H9: =IF(G9<CALCULADORA!$C$23,0,IF(CALCULADORA!$C$27>'TIR de Tenencia'!G9,E9,CALCULADORA!$C$33)) -> 30033227560 | L9: 28 | M9: 7 | N9: 2024 | P9: 8 | Q9: Agosto
A10: =+Flujos!A10 -> 2024-07-28 | B10: =+Flujos!L10 -> 1.760597045e+10 | C10: =+Flujos!M10 -> 1961574000 | D10: =+Flujos!N10 -> 229233783.3 | E10: =+Flujos!O10 -> 2190807783 | G10: 2024-07-28 | H10: =IF(G10<CALCULADORA!$C$23,0,IF(CALCULADORA!$C$27>'TIR de Tenencia'!G10,E10,CALCULADORA!$C$33)) -> 30033227560 | L10: 28 | M10: 8 | N10: 2024 | P10: 9 | Q10: Septiembre
A11: =+Flujos!A11 -> 2024-08-28 | B11: =+Flujos!L11 -> 1.571987455e+10 | C11: =+Flujos!M11 -> 1886095902 | D11: =+Flujos!N11 -> 206253943.9 | E11: =+Flujos!O11 -> 2092349846 | G11: 2024-08-28 | H11: =IF(G11<CALCULADORA!$C$23,0,IF(CALCULADORA!$C$27>'TIR de Tenencia'!G11,E11,CALCULADORA!$C$33)) -> 30033227560 | L11: 28 | M11: =+IF(M10=12,1,M10+1) -> 9 | N11: 2024 | P11: 10 | Q11: Octubre
A12: =+Flujos!A12 -> 2024-09-28 | B12: =+Flujos!L12 -> 1.408522955e+10 | C12: =+Flujos!M12 -> 1634645000 | D12: =+Flujos!N12 -> 184158330.4 | E12: =+Flujos!O12 -> 1818803330 | G12: 2024-09-28 | H12: =IF(G12<CALCULADORA!$C$23,0,IF(CALCULADORA!$C$27>'TIR de Tenencia'!G12,E12,CALCULADORA!$C$33)) -> 30033227560 | L12: 28 | M12: 10 | N12: 2024 | P12: 11 | Q12: Noviembre
A13: =+Flujos!A13 -> 2024-10-28 | B13: =+Flujos!L13 -> 1.247033728e+10 | C13: =+Flujos!M13 -> 1614892277 | D13: =+Flujos!N13 -> 165008464.2 | E13: =+Flujos!O13 -> 1779900741 | G13: 2024-10-28 | H13: =IF(G13<CALCULADORA!$C$23,0,IF(CALCULADORA!$C$27>'TIR de Tenencia'!G13,E13,CALCULADORA!$C$33)) -> 30033227560 | L13: 28 | M13: 11 | N13: 2024 | P13: 12 | Q13: Diciembre
A14: =+Flujos!A14 -> 2024-11-28 | B14: =+Flujos!L14 -> 1.093127128e+10 | C14: =+Flujos!M14 -> 1539065999 | D14: =+Flujos!N14 -> 146090001.2 | E14: =+Flujos!O14 -> 1685156000 | G14: 2024-11-28 | H14: =IF(G14<CALCULADORA!$C$23,0,IF(CALCULADORA!$C$27>'TIR de Tenencia'!G14,E14,CALCULADORA!$C$33)) -> 30033227560 | L14: 28 | M14: 12 | N14: 2024
A15: =+Flujos!A15 -> 2024-12-28 | B15: =+Flujos!L15 -> 9296626276 | C15: =+Flujos!M15 -> 1634645000 | D15: =+Flujos!N15 -> 128059843 | E15: =+Flujos!O15 -> 1762704843 | G15: 2024-12-28 | H15: =IF(G15<CALCULADORA!$C$23,0,IF(CALCULADORA!$C$27>'TIR de Tenencia'!G15,E15,CALCULADORA!$C$33)) -> 30033227560 | L15: 28 | M15: =+IF(M14=12,1,M14+1) -> 1 | N15: 2025
A16: =+Flujos!A16 -> 2025-01-28 | B16: =+Flujos!L16 -> 7679585095 | C16: =+Flujos!M16 -> 1617041181 | D16: =+Flujos!N16 -> 108909976.8 | E16: =+Flujos!O16 -> 1725951158 | G16: 2025-01-28 | H16: =IF(G16<CALCULADORA!$C$23,0,IF(CALCULADORA!$C$27>'TIR de Tenencia'!G16,E16,CALCULADORA!$C$33)) -> 30033227560 | L16: 28 | M16: 2 | N16: 2025
A17: =+Flujos!A17 -> 2025-02-28 | B17: =+Flujos!L17 -> 6119145132 | C17: =+Flujos!M17 -> 1560439963 | D17: =+Flujos!N17 -> 89966339.39 | E17: =+Flujos!O17 -> 1650406303 | G17: 2025-02-28 | H17: =IF(G17<CALCULADORA!$C$23,0,IF(CALCULADORA!$C$27>'TIR de Tenencia'!G17,E17,CALCULADORA!$C$33)) -> 30033227560 | I17: =+IF(H17=H16," ",G17) ->  | L17: 28 | M17: 3 | N17: 2025
A18: =+Flujos!A18 -> 2025-03-28 | B18: =+Flujos!L18 -> 4811429132 | C18: =+Flujos!M18 -> 1307716000 | D18: =+Flujos!N18 -> 71685785.22 | E18: =+Flujos!O18 -> 1379401785 | G18: 2025-03-28 | H18: =IF(G18<CALCULADORA!$C$23,0,IF(CALCULADORA!$C$27>'TIR de Tenencia'!G18,E18,CALCULADORA!$C$33)) -> 30033227560 | L18: 28 | M18: 4 | N18: 2025
A19: =+Flujos!A19 -> 2025-04-28 | B19: =+Flujos!L19 -> 3503713132 | C19: =+Flujos!M19 -> 1307716000 | D19: =+Flujos!N19 -> 56365892.28 | E19: =+Flujos!O19 -> 1364081892 | G19: 2025-04-28 | H19: =IF(G19<CALCULADORA!$C$23,0,IF(CALCULADORA!$C$27>'TIR de Tenencia'!G19,E19,CALCULADORA!$C$33)) -> 30033227560 | L19: 28 | M19: 5 | N19: 2025
A20: =+Flujos!A20 -> 2025-05-28 | B20: =+Flujos!L20 -> 2195997132 | C20: =+Flujos!M20 -> 1307716000 | D20: =+Flujos!N20 -> 41045999.34 | E20: =+Flujos!O20 -> 1348761999 | G20: 2025-05-28 | H20: =IF(G20<CALCULADORA!$C$23,0,IF(CALCULADORA!$C$27>'TIR de Tenencia'!G20,E20,CALCULADORA!$C$33)) -> 30033227560 | L20: 28 | M20: =+IF(M19=12,1,M19+1) -> 6 | N20: 2025
A21: =+Flujos!A21 -> 2025-06-28 | B21: =+Flujos!L21 -> 1215210132 | C21: =+Flujos!M21 -> 980787000 | D21: =+Flujos!N21 -> 25726106.4 | E21: =+Flujos!O21 -> 1006513106 | G21: 2025-06-28 | H21: =IF(G21<CALCULADORA!$C$23,0,IF(CALCULADORA!$C$27>'TIR de Tenencia'!G21,E21,CALCULADORA!$C$33)) -> 30033227560 | L21: 28 | M21: 7 | N21: 2025
A22: =+Flujos!A22 -> 2025-07-28 | B22: =+Flujos!L22 -> 234423131.7 | C22: =+Flujos!M22 -> 980787000 | D22: =+Flujos!N22 -> 14236186.69 | E22: =+Flujos!O22 -> 995023186.7 | G22: 2025-07-28 | H22: =IF(G22<CALCULADORA!$C$23,0,IF(CALCULADORA!$C$27>'TIR de Tenencia'!G22,E22,CALCULADORA!$C$33)) -> 30033227560 | L22: 28 | M22: 8 | N22: 2025
A23: =+Flujos!A23 -> 2025-08-28 | B23: =+Flujos!L23 -> -5.930662155e-06 | C23: =+Flujos!M23 -> 234423131.7 | D23: =+Flujos!N23 -> 2746266.988 | E23: =+Flujos!O23 -> 237169398.7 | G23: 2025-08-28 | H23: =IF(G23<CALCULADORA!$C$23,0,IF(CALCULADORA!$C$27>'TIR de Tenencia'!G23,E23,CALCULADORA!$C$33)) -> 30033227560 | L23: 28 | M23: 9 | N23: 2025
A24: =+Flujos!A24 -> 2025-09-28 | B24: =+Flujos!L24 -> -5.930662155e-06 | C24: =+Flujos!M24 -> 0 | D24: =+Flujos!N24 -> -6.947770715e-08 | E24: =+Flujos!O24 -> -6.947770715e-08 | G24: 2025-09-28 | H24: =IF(G24<CALCULADORA!$C$23,0,IF(CALCULADORA!$C$27>'TIR de Tenencia'!G24,E24,CALCULADORA!$C$33)) -> 30033227560 | L24: 28 | M24: 10 | N24: 2025
A25: =+Flujos!A25 -> 2025-10-28 | B25: =+Flujos!L25 -> -5.930662155e-06 | C25: =+Flujos!M25 -> 0 | D25: =+Flujos!N25 -> -6.947770715e-08 | E25: =+Flujos!O25 -> -6.947770715e-08 | G25: 2025-10-28 | H25: =IF(G25<CALCULADORA!$C$23,0,IF(CALCULADORA!$C$27>'TIR de Tenencia'!G25,E25,CALCULADORA!$C$33)) -> 30033227560 | L25: 28 | M25: 11 | N25: 2025
A26: =+Flujos!A26 -> 2025-11-28 | B26: =+Flujos!L26 -> -5.930662155e-06 | C26: =+Flujos!M26 -> 0 | D26: =+Flujos!N26 -> -6.947770715e-08 | E26: =+Flujos!O26 -> -6.947770715e-08 | G26: 2025-11-28 | H26: =IF(G26<CALCULADORA!$C$23,0,IF(CALCULADORA!$C$27>'TIR de Tenencia'!G26,E26,CALCULADORA!$C$33)) -> 30033227560 | J26: =+IF(H26=H25," ",H26) ->  | L26: 28 | M26: 12 | N26: 2025
A27: =+Flujos!A27 -> 2025-12-28 | B27: =+Flujos!L27 -> -5.930662155e-06 | C27: =+Flujos!M27 -> 0 | D27: =+Flujos!N27 -> -6.947770715e-08 | E27: =+Flujos!O27 -> -6.947770715e-08 | G27: 2025-12-28 | H27: =IF(G27<CALCULADORA!$C$23,0,IF(CALCULADORA!$C$27>'TIR de Tenencia'!G27,E27,CALCULADORA!$C$33)) -> 30033227560 | L27: 28 | M27: 1 | N27: 2026
A28: =+Flujos!A28 -> 2026-01-28 | B28: =+Flujos!L28 -> -5.930662155e-06 | C28: =+Flujos!M28 -> 0 | D28: =+Flujos!N28 -> -6.947770715e-08 | E28: =+Flujos!O28 -> -6.947770715e-08 | G28: 2026-01-28 | H28: =IF(G28<CALCULADORA!$C$23,0,IF(CALCULADORA!$C$27>'TIR de Tenencia'!G28,E28,CALCULADORA!$C$33)) -> 30033227560 | L28: 28 | M28: 2 | N28: 2026
A29: =+Flujos!A29 -> 2026-02-28 | B29: =+Flujos!L29 -> -5.930662155e-06 | C29: =+Flujos!M29 -> 0 | D29: =+Flujos!N29 -> -6.947770715e-08 | E29: =+Flujos!O29 -> -6.947770715e-08 | G29: 2026-02-28 | H29: =IF(G29<CALCULADORA!$C$23,0,IF(CALCULADORA!$C$27>'TIR de Tenencia'!G29,E29,CALCULADORA!$C$33)) -> 30033227560 | L29: 28 | M29: 3 | N29: 2026
A30: =+Flujos!A30 -> 2026-03-28 | B30: =+Flujos!L30 -> -5.930662155e-06 | C30: =+Flujos!M30 -> 0 | D30: =+Flujos!N30 -> -6.947770715e-08 | E30: =+Flujos!O30 -> -6.947770715e-08 | G30: 2026-03-28 | H30: =IF(G30<CALCULADORA!$C$23,0,IF(CALCULADORA!$C$27>'TIR de Tenencia'!G30,E30,CALCULADORA!$C$33)) -> 30033227560 | L30: 28 | M30: 4 | N30: 2026
A31: =+Flujos!A31 -> 2026-04-28 | B31: =+Flujos!L31 -> -5.930662155e-06 | C31: =+Flujos!M31 -> 0 | D31: =+Flujos!N31 -> -6.947770715e-08 | E31: =+Flujos!O31 -> -6.947770715e-08 | G31: 2026-04-28 | H31: =IF(G31<CALCULADORA!$C$23,0,IF(CALCULADORA!$C$27>'TIR de Tenencia'!G31,E31,CALCULADORA!$C$33)) -> 30033227560 | L31: 28 | M31: 5 | N31: 2026
A32: =+Flujos!A32 -> 2026-05-28 | B32: =+Flujos!L32 -> -5.930662155e-06 | C32: =+Flujos!M32 -> 0 | D32: =+Flujos!N32 -> -6.947770715e-08 | E32: =+Flujos!O32 -> -6.947770715e-08 | G32: 2026-05-28 | H32: =IF(G32<CALCULADORA!$C$23,0,IF(CALCULADORA!$C$27>'TIR de Tenencia'!G32,E32,CALCULADORA!$C$33)) -> 30033227560 | L32: 28 | M32: 6 | N32: 2026
A33: =+Flujos!A33 -> 2026-06-28 | B33: =+Flujos!L33 -> -5.930662155e-06 | C33: =+Flujos!M33 -> 0 | D33: =+Flujos!N33 -> -6.947770715e-08 | E33: =+Flujos!O33 -> -6.947770715e-08 | G33: 2026-06-28 | H33: =IF(G33<CALCULADORA!$C$23,0,IF(CALCULADORA!$C$27>'TIR de Tenencia'!G33,E33,CALCULADORA!$C$33)) -> 30033227560 | L33: 28 | M33: 7 | N33: 2026
A34: =+Flujos!A34 -> 2026-07-28 | B34: =+Flujos!L34 -> -5.930662155e-06 | C34: =+Flujos!M34 -> 0 | D34: =+Flujos!N34 -> -6.947770715e-08 | E34: =+Flujos!O34 -> -6.947770715e-08 | G34: 2026-07-28 | H34: =IF(G34<CALCULADORA!$C$23,0,IF(CALCULADORA!$C$27>'TIR de Tenencia'!G34,E34,CALCULADORA!$C$33)) -> 30033227560 | L34: 28 | M34: 8 | N34: 2026
A35: =+Flujos!A35 -> 2026-08-28 | B35: =+Flujos!L35 -> -5.930662155e-06 | C35: =+Flujos!M35 -> 0 | D35: =+Flujos!N35 -> -6.947770715e-08 | E35: =+Flujos!O35 -> -6.947770715e-08 | G35: =+DATE(N34,M34,L34) -> 2026-08-28 | H35: =IF(G35<CALCULADORA!$C$23,0,IF(CALCULADORA!$C$27>'TIR de Tenencia'!G35,E35,CALCULADORA!$C$33)) -> 30033227560 | L35: 28 | M35: 9 | N35: 2026
A36: =+Flujos!A36 -> 2026-09-28 | B36: =+Flujos!L36 -> -5.930662155e-06 | C36: =+Flujos!M36 -> 0 | D36: =+Flujos!N36 -> -6.947770715e-08 | E36: =+Flujos!O36 -> -6.947770715e-08 | G36: 2026-09-28 | H36: =IF(G36<CALCULADORA!$C$23,0,IF(CALCULADORA!$C$27>'TIR de Tenencia'!G36,E36,CALCULADORA!$C$33)) -> 30033227560 | I36: =+IF(IF(H36=H35," ",G36)=CALCULADORA!C27,'TIR de Tenencia'!G36,CALCULADORA!C27) -> 2024-02-13 | L36: 28 | M36: 10 | N36: 2026
A37: =+Flujos!A37 -> 2026-10-28 | B37: =+Flujos!L37 -> -5.930662155e-06 | C37: =+Flujos!M37 -> 0 | D37: =+Flujos!N37 -> -6.947770715e-08 | E37: =+Flujos!O37 -> -6.947770715e-08 | G37: 2026-10-28 | H37: =IF(G37<CALCULADORA!$C$23,0,IF(CALCULADORA!$C$27>'TIR de Tenencia'!G37,E37,CALCULADORA!$C$33)) -> 30033227560 | L37: 28 | M37: 11 | N37: 2026
A38: =+Flujos!A38 -> 2026-11-28 | B38: =+Flujos!L38 -> -5.930662155e-06 | C38: =+Flujos!M38 -> 0 | D38: =+Flujos!N38 -> -6.947770715e-08 | E38: =+Flujos!O38 -> -6.947770715e-08 | G38: 2026-11-28 | H38: =IF(G38<CALCULADORA!$C$23,0,IF(CALCULADORA!$C$27>'TIR de Tenencia'!G38,E38,CALCULADORA!$C$33)) -> 30033227560 | L38: 28 | M38: 12 | N38: 2026
A39: =+Flujos!A39 -> 2026-12-28 | B39: =+Flujos!L39 -> -5.930662155e-06 | C39: =+Flujos!M39 -> 0 | D39: =+Flujos!N39 -> -6.947770715e-08 | E39: =+Flujos!O39 -> -6.947770715e-08 | G39: 2026-12-28 | H39: =IF(G39<CALCULADORA!$C$23,0,IF(CALCULADORA!$C$27>'TIR de Tenencia'!G39,E39,CALCULADORA!$C$33)) -> 30033227560 | L39: 28 | M39: 1 | N39: 2027
A40: =+Flujos!A40 -> 2027-01-28 | B40: =+Flujos!L40 -> -5.930662155e-06 | C40: =+Flujos!M40 -> 0 | D40: =+Flujos!N40 -> -6.947770715e-08 | E40: =+Flujos!O40 -> -6.947770715e-08 | G40: 2027-01-28 | H40: =IF(G40<CALCULADORA!$C$23,0,IF(CALCULADORA!$C$27>'TIR de Tenencia'!G40,E40,CALCULADORA!$C$33)) -> 30033227560 | L40: 28 | M40: 2 | N40: 2027
A41: =+Flujos!A41 -> 2027-02-28 | B41: =+Flujos!L41 -> -5.930662155e-06 | C41: =+Flujos!M41 -> 0 | D41: =+Flujos!N41 -> -6.947770715e-08 | E41: =+Flujos!O41 -> -6.947770715e-08 | G41: 2027-02-28 | H41: =IF(G41<CALCULADORA!$C$23,0,IF(CALCULADORA!$C$27>'TIR de Tenencia'!G41,E41,CALCULADORA!$C$33)) -> 30033227560 | L41: 28 | M41: 3 | N41: 2027
A42: =+Flujos!A42 -> 2027-03-28 | B42: =+Flujos!L42 -> -5.930662155e-06 | C42: =+Flujos!M42 -> 0 | D42: =+Flujos!N42 -> -6.947770715e-08 | E42: =+Flujos!O42 -> -6.947770715e-08 | G42: 2027-03-28 | H42: =IF(G42<CALCULADORA!$C$23,0,IF(CALCULADORA!$C$27>'TIR de Tenencia'!G42,E42,CALCULADORA!$C$33)) -> 30033227560 | L42: 28 | M42: 4 | N42: 2027
A43: =+Flujos!A43 -> 2027-04-28 | B43: =+Flujos!L43 -> -5.930662155e-06 | C43: =+Flujos!M43 -> 0 | D43: =+Flujos!N43 -> -6.947770715e-08 | E43: =+Flujos!O43 -> -6.947770715e-08 | G43: 2027-04-28 | H43: =IF(G43<CALCULADORA!$C$23,0,IF(CALCULADORA!$C$27>'TIR de Tenencia'!G43,E43,CALCULADORA!$C$33)) -> 30033227560 | L43: 28 | M43: 5 | N43: 2027
A44: =+Flujos!A44 -> 2027-05-28 | B44: =+Flujos!L44 -> -5.930662155e-06 | C44: =+Flujos!M44 -> 0 | D44: =+Flujos!N44 -> -6.947770715e-08 | E44: =+Flujos!O44 -> -6.947770715e-08 | G44: 2027-05-28 | H44: =IF(G44<CALCULADORA!$C$23,0,IF(CALCULADORA!$C$27>'TIR de Tenencia'!G44,E44,CALCULADORA!$C$33)) -> 30033227560 | L44: 28 | M44: 6 | N44: 2027
A45: =+Flujos!A45 -> 2027-06-28 | B45: =+Flujos!L45 -> -5.930662155e-06 | C45: =+Flujos!M45 -> 0 | D45: =+Flujos!N45 -> -6.947770715e-08 | E45: =+Flujos!O45 -> -6.947770715e-08 | G45: 2027-06-28 | H45: =IF(G45<CALCULADORA!$C$23,0,IF(CALCULADORA!$C$27>'TIR de Tenencia'!G45,E45,CALCULADORA!$C$33)) -> 30033227560 | L45: 28 | M45: 7 | N45: 2027
A46: =+Flujos!A46 -> 2027-07-28 | B46: =+Flujos!L46 -> -5.930662155e-06 | C46: =+Flujos!M46 -> 0 | D46: =+Flujos!N46 -> -6.947770715e-08 | E46: =+Flujos!O46 -> -6.947770715e-08 | G46: 2027-07-28 | H46: =IF(G46<CALCULADORA!$C$23,0,IF(CALCULADORA!$C$27>'TIR de Tenencia'!G46,E46,CALCULADORA!$C$33)) -> 30033227560 | L46: 28 | M46: 8 | N46: 2027
A47: =+Flujos!A47 -> 2027-08-28 | B47: =+Flujos!L47 -> -5.930662155e-06 | C47: =+Flujos!M47 -> 0 | D47: =+Flujos!N47 -> -6.947770715e-08 | E47: =+Flujos!O47 -> -6.947770715e-08 | G47: 2027-08-28 | H47: =IF(G47<CALCULADORA!$C$23,0,IF(CALCULADORA!$C$27>'TIR de Tenencia'!G47,E47,CALCULADORA!$C$33)) -> 30033227560 | L47: 28 | M47: 9 | N47: 2027
A48: =+Flujos!A48 -> 2027-09-28 | B48: =+Flujos!L48 -> -5.930662155e-06 | C48: =+Flujos!M48 -> 0 | D48: =+Flujos!N48 -> -6.947770715e-08 | E48: =+Flujos!O48 -> -6.947770715e-08 | G48: 2027-09-28 | H48: =IF(G48<CALCULADORA!$C$23,0,IF(CALCULADORA!$C$27>'TIR de Tenencia'!G48,E48,CALCULADORA!$C$33)) -> 30033227560 | L48: 28 | M48: 10 | N48: 2027
A49: =+Flujos!A49 -> 2027-10-28 | B49: =+Flujos!L49 -> -5.930662155e-06 | C49: =+Flujos!M49 -> 0 | D49: =+Flujos!N49 -> -6.947770715e-08 | E49: =+Flujos!O49 -> -6.947770715e-08 | G49: 2027-10-28 | H49: =IF(G49<CALCULADORA!$C$23,0,IF(CALCULADORA!$C$27>'TIR de Tenencia'!G49,E49,CALCULADORA!$C$33)) -> 30033227560 | L49: 28 | M49: 11 | N49: 2027
A50: =+Flujos!A50 -> 2027-11-28 | B50: =+Flujos!L50 -> -5.930662155e-06 | C50: =+Flujos!M50 -> 0 | D50: =+Flujos!N50 -> -6.947770715e-08 | E50: =+Flujos!O50 -> -6.947770715e-08 | G50: 2027-11-28 | H50: =IF(G50<CALCULADORA!$C$23,0,IF(CALCULADORA!$C$27>'TIR de Tenencia'!G50,E50,CALCULADORA!$C$33)) -> 30033227560 | L50: 28 | M50: 12 | N50: 2027
A51: =+Flujos!A51 -> 2027-12-28 | B51: =+Flujos!L51 -> -5.930662155e-06 | C51: =+Flujos!M51 -> 0 | D51: =+Flujos!N51 -> -6.947770715e-08 | E51: =+Flujos!O51 -> -6.947770715e-08 | G51: 2027-12-28 | H51: =IF(G51<CALCULADORA!$C$23,0,IF(CALCULADORA!$C$27>'TIR de Tenencia'!G51,E51,CALCULADORA!$C$33)) -> 30033227560 | L51: 28 | M51: 1 | N51: 2028
A52: =+Flujos!A52 -> 2028-01-28 | B52: =+Flujos!L52 -> -5.930662155e-06 | C52: =+Flujos!M52 -> 0 | D52: =+Flujos!N52 -> -6.947770715e-08 | E52: =+Flujos!O52 -> -6.947770715e-08 | G52: 2028-01-28 | H52: =IF(G52<CALCULADORA!$C$23,0,IF(CALCULADORA!$C$27>'TIR de Tenencia'!G52,E52,CALCULADORA!$C$33)) -> 30033227560 | L52: 28 | M52: 2 | N52: 2028
A53: =+Flujos!A53 -> 2028-02-28 | B53: =+Flujos!L53 -> -5.930662155e-06 | C53: =+Flujos!M53 -> 0 | D53: =+Flujos!N53 -> -6.947770715e-08 | E53: =+Flujos!O53 -> -6.947770715e-08 | G53: 2028-02-28 | H53: =IF(G53<CALCULADORA!$C$23,0,IF(CALCULADORA!$C$27>'TIR de Tenencia'!G53,E53,CALCULADORA!$C$33)) -> 30033227560 | L53: 28 | M53: 3 | N53: 2028
A54: =+Flujos!A54 -> 2028-03-28 | B54: =+Flujos!L54 -> -5.930662155e-06 | C54: =+Flujos!M54 -> 0 | D54: =+Flujos!N54 -> -6.947770715e-08 | E54: =+Flujos!O54 -> -6.947770715e-08 | G54: 2028-03-28 | H54: =IF(G54<CALCULADORA!$C$23,0,IF(CALCULADORA!$C$27>'TIR de Tenencia'!G54,E54,CALCULADORA!$C$33)) -> 30033227560 | L54: 28 | M54: 4 | N54: 2028
A55: =+Flujos!A55 -> 2028-04-28 | B55: =+Flujos!L55 -> -5.930662155e-06 | C55: =+Flujos!M55 -> 0 | D55: =+Flujos!N55 -> -6.947770715e-08 | E55: =+Flujos!O55 -> -6.947770715e-08 | G55: 2028-04-28 | H55: =IF(G55<CALCULADORA!$C$23,0,IF(CALCULADORA!$C$27>'TIR de Tenencia'!G55,E55,CALCULADORA!$C$33)) -> 30033227560 | L55: 28 | M55: 5 | N55: 2028
A56: =+Flujos!A56 -> 2028-05-28 | B56: =+Flujos!L56 -> -5.930662155e-06 | C56: =+Flujos!M56 -> 0 | D56: =+Flujos!N56 -> -6.947770715e-08 | E56: =+Flujos!O56 -> -6.947770715e-08 | G56: 2028-05-28 | H56: =IF(G56<CALCULADORA!$C$23,0,IF(CALCULADORA!$C$27>'TIR de Tenencia'!G56,E56,CALCULADORA!$C$33)) -> 30033227560 | L56: 28 | M56: 6 | N56: 2028
A57: =+Flujos!A57 -> 2028-06-28 | B57: =+Flujos!L57 -> -5.930662155e-06 | C57: =+Flujos!M57 -> 0 | D57: =+Flujos!N57 -> -6.947770715e-08 | E57: =+Flujos!O57 -> -6.947770715e-08 | G57: 2028-06-28 | H57: =IF(G57<CALCULADORA!$C$23,0,IF(CALCULADORA!$C$27>'TIR de Tenencia'!G57,E57,CALCULADORA!$C$33)) -> 30033227560 | L57: 28 | M57: 7 | N57: 2028
A58: =+Flujos!A58 -> 2028-07-28 | B58: =+Flujos!L58 -> -5.930662155e-06 | C58: =+Flujos!M58 -> 0 | D58: =+Flujos!N58 -> -6.947770715e-08 | E58: =+Flujos!O58 -> -6.947770715e-08 | G58: 2028-07-28 | H58: =IF(G58<CALCULADORA!$C$23,0,IF(CALCULADORA!$C$27>'TIR de Tenencia'!G58,E58,CALCULADORA!$C$33)) -> 30033227560 | L58: 28 | M58: 8 | N58: 2028
A59: =+Flujos!A59 -> 2028-08-28 | B59: =+Flujos!L59 -> -5.930662155e-06 | C59: =+Flujos!M59 -> 0 | D59: =+Flujos!N59 -> -6.947770715e-08 | E59: =+Flujos!O59 -> -6.947770715e-08 | G59: 2028-08-28 | H59: =IF(G59<CALCULADORA!$C$23,0,IF(CALCULADORA!$C$27>'TIR de Tenencia'!G59,E59,CALCULADORA!$C$33)) -> 30033227560 | L59: 28 | M59: 9 | N59: 2028
A60: =+Flujos!A60 -> 2028-09-28 | B60: =+Flujos!L60 -> -5.930662155e-06 | C60: =+Flujos!M60 -> 0 | D60: =+Flujos!N60 -> -6.947770715e-08 | E60: =+Flujos!O60 -> -6.947770715e-08 | G60: 2028-09-28 | H60: =IF(G60<CALCULADORA!$C$23,0,IF(CALCULADORA!$C$27>'TIR de Tenencia'!G60,E60,CALCULADORA!$C$33)) -> 30033227560 | L60: 28 | M60: 10 | N60: 2028
A61: =+Flujos!A61 -> 2028-10-28 | B61: =+Flujos!L61 -> -5.930662155e-06 | C61: =+Flujos!M61 -> 0 | D61: =+Flujos!N61 -> -6.947770715e-08 | E61: =+Flujos!O61 -> -6.947770715e-08 | G61: 2028-10-28 | H61: =IF(G61<CALCULADORA!$C$23,0,IF(CALCULADORA!$C$27>'TIR de Tenencia'!G61,E61,CALCULADORA!$C$33)) -> 30033227560 | L61: 28 | M61: 11 | N61: 2028
A62: =+Flujos!A62 -> 2028-11-28 | B62: =+Flujos!L62 -> -5.930662155e-06 | C62: =+Flujos!M62 -> 0 | D62: =+Flujos!N62 -> -6.947770715e-08 | E62: =+Flujos!O62 -> -6.947770715e-08 | G62: 2028-11-28 | H62: =IF(G62<CALCULADORA!$C$23,0,IF(CALCULADORA!$C$27>'TIR de Tenencia'!G62,E62,CALCULADORA!$C$33)) -> 30033227560 | L62: 28 | M62: 12 | N62: 2028
A63: =+Flujos!A63 -> 2028-12-28 | B63: =+Flujos!L63 -> -5.930662155e-06 | C63: =+Flujos!M63 -> 0 | D63: =+Flujos!N63 -> -6.947770715e-08 | E63: =+Flujos!O63 -> -6.947770715e-08 | G63: 2028-12-28 | H63: =IF(G63<CALCULADORA!$C$23,0,IF(CALCULADORA!$C$27>'TIR de Tenencia'!G63,E63,CALCULADORA!$C$33)) -> 30033227560 | L63: 28 | M63: 1 | N63: 2029
A64: =+Flujos!A64 -> 2029-01-28 | B64: =+Flujos!L64 -> -5.930662155e-06 | C64: =+Flujos!M64 -> 0 | D64: =+Flujos!N64 -> -6.947770715e-08 | E64: =+Flujos!O64 -> -6.947770715e-08 | G64: 2029-01-28 | H64: =IF(G64<CALCULADORA!$C$23,0,IF(CALCULADORA!$C$27>'TIR de Tenencia'!G64,E64,CALCULADORA!$C$33)) -> 30033227560 | L64: 28 | M64: 2 | N64: 2029
A65: =+Flujos!A65 -> 2029-02-28 | B65: =+Flujos!L65 -> -5.930662155e-06 | C65: =+Flujos!M65 -> 0 | D65: =+Flujos!N65 -> -6.947770715e-08 | E65: =+Flujos!O65 -> -6.947770715e-08 | G65: 2029-02-28 | H65: =IF(G65<CALCULADORA!$C$23,0,IF(CALCULADORA!$C$27>'TIR de Tenencia'!G65,E65,CALCULADORA!$C$33)) -> 30033227560 | L65: 28 | M65: 3 | N65: 2029
A66: =+Flujos!A66 -> 2029-03-28 | B66: =+Flujos!L66 -> -5.930662155e-06 | C66: =+Flujos!M66 -> 0 | D66: =+Flujos!N66 -> -6.947770715e-08 | E66: =+Flujos!O66 -> -6.947770715e-08 | G66: 2029-03-28 | H66: =IF(G66<CALCULADORA!$C$23,0,IF(CALCULADORA!$C$27>'TIR de Tenencia'!G66,E66,CALCULADORA!$C$33)) -> 30033227560 | L66: 28 | M66: 4 | N66: =+IF(M66=1,N65+1,N65) -> 2029
A67: =+Flujos!A67 -> 2029-04-28 | B67: =+Flujos!L67 -> -5.930662155e-06 | C67: =+Flujos!M67 -> 0 | D67: =+Flujos!N67 -> -6.947770715e-08 | E67: =+Flujos!O67 -> -6.947770715e-08 | G67: =+DATE(N66,M66,L66) -> 2029-04-28 | H67: =IF(G67<CALCULADORA!$C$23,0,IF(CALCULADORA!$C$27>'TIR de Tenencia'!G67,E67,CALCULADORA!$C$33)) -> 30033227560 | L67: =+L66 -> 28 | M67: =+IF(M66=12,1,M66+1) -> 5 | N67: 2029
A68: =+Flujos!A68 -> 2029-05-28 | B68: =+Flujos!L68 -> -5.930662155e-06 | C68: =+Flujos!M68 -> 0 | D68: =+Flujos!N68 -> -6.947770715e-08 | E68: =+Flujos!O68 -> -6.947770715e-08 | G68: 2029-05-28 | H68: =IF(G68<CALCULADORA!$C$23,0,IF(CALCULADORA!$C$27>'TIR de Tenencia'!G68,E68,CALCULADORA!$C$33)) -> 30033227560 | I68: =+IF(H68=H67," ",G68) ->  | J68: =+IF(H68=H67," ",H68) ->  | L68: 28 | M68: 6 | N68: 2029
A69: =+Flujos!A69 -> 2029-06-28 | B69: =+Flujos!L69 -> -5.930662155e-06 | C69: =+Flujos!M69 -> 0 | D69: =+Flujos!N69 -> -6.947770715e-08 | E69: =+Flujos!O69 -> -6.947770715e-08 | G69: 2029-06-28 | H69: =IF(G69<CALCULADORA!$C$23,0,IF(CALCULADORA!$C$27>'TIR de Tenencia'!G69,E69,CALCULADORA!$C$33)) -> 30033227560 | L69: 28 | M69: 7 | N69: 2029
A70: =+Flujos!A70 -> 2029-07-28 | B70: =+Flujos!L70 -> -5.930662155e-06 | C70: =+Flujos!M70 -> 0 | D70: =+Flujos!N70 -> -6.947770715e-08 | E70: =+Flujos!O70 -> -6.947770715e-08 | G70: 2029-07-28 | H70: =IF(G70<CALCULADORA!$C$23,0,IF(CALCULADORA!$C$27>'TIR de Tenencia'!G70,E70,CALCULADORA!$C$33)) -> 30033227560 | L70: 28 | M70: 8 | N70: 2029
A71: =+Flujos!A71 -> 2029-08-28 | B71: =+Flujos!L71 -> -5.930662155e-06 | C71: =+Flujos!M71 -> 0 | D71: =+Flujos!N71 -> -6.947770715e-08 | E71: =+Flujos!O71 -> -6.947770715e-08 | G71: 2029-08-28 | H71: =IF(G71<CALCULADORA!$C$23,0,IF(CALCULADORA!$C$27>'TIR de Tenencia'!G71,E71,CALCULADORA!$C$33)) -> 30033227560 | L71: 28 | M71: 9 | N71: 2029
A72: =+Flujos!A72 -> 2029-09-28 | B72: =+Flujos!L72 -> -5.930662155e-06 | C72: =+Flujos!M72 -> 0 | D72: =+Flujos!N72 -> -6.947770715e-08 | E72: =+Flujos!O72 -> -6.947770715e-08 | G72: 2029-09-28 | H72: =IF(G72<CALCULADORA!$C$23,0,IF(CALCULADORA!$C$27>'TIR de Tenencia'!G72,E72,CALCULADORA!$C$33)) -> 30033227560 | L72: 28 | M72: 10 | N72: 2029
A73: =+Flujos!A73 -> 2029-10-28 | B73: =+Flujos!L73 -> -5.930662155e-06 | C73: =+Flujos!M73 -> 0 | D73: =+Flujos!N73 -> -6.947770715e-08 | E73: =+Flujos!O73 -> -6.947770715e-08 | G73: 2029-10-28 | H73: =IF(G73<CALCULADORA!$C$23,0,IF(CALCULADORA!$C$27>'TIR de Tenencia'!G73,E73,CALCULADORA!$C$33)) -> 30033227560 | L73: 28 | M73: 11 | N73: 2029
A74: =+Flujos!A74 -> 2029-11-28 | B74: =+Flujos!L74 -> -5.930662155e-06 | C74: =+Flujos!M74 -> 0 | D74: =+Flujos!N74 -> -6.947770715e-08 | E74: =+Flujos!O74 -> -6.947770715e-08 | G74: 2029-11-28 | H74: =IF(G74<CALCULADORA!$C$23,0,IF(CALCULADORA!$C$27>'TIR de Tenencia'!G74,E74,CALCULADORA!$C$33)) -> 30033227560 | L74: 28 | M74: 12 | N74: 2029
A75: =+Flujos!A75 -> 2029-12-28 | B75: =+Flujos!L75 -> -5.930662155e-06 | C75: =+Flujos!M75 -> 0 | D75: =+Flujos!N75 -> -6.947770715e-08 | E75: =+Flujos!O75 -> -6.947770715e-08 | G75: 2029-12-28 | H75: =IF(G75<CALCULADORA!$C$23,0,IF(CALCULADORA!$C$27>'TIR de Tenencia'!G75,E75,CALCULADORA!$C$33)) -> 30033227560 | L75: 28 | M75: 1 | N75: 2030
A76: =+Flujos!A76 -> 2030-01-28 | B76: =+Flujos!L76 -> -5.930662155e-06 | C76: =+Flujos!M76 -> 0 | D76: =+Flujos!N76 -> -6.947770715e-08 | E76: =+Flujos!O76 -> -6.947770715e-08 | G76: 2030-01-28 | H76: =IF(G76<CALCULADORA!$C$23,0,IF(CALCULADORA!$C$27>'TIR de Tenencia'!G76,E76,CALCULADORA!$C$33)) -> 30033227560 | L76: 28 | M76: 2 | N76: 2030
A77: =+Flujos!A77 -> 2030-02-28 | B77: =+Flujos!L77 -> -5.930662155e-06 | C77: =+Flujos!M77 -> 0 | D77: =+Flujos!N77 -> -6.947770715e-08 | E77: =+Flujos!O77 -> -6.947770715e-08 | G77: 2030-02-28 | H77: =IF(G77<CALCULADORA!$C$23,0,IF(CALCULADORA!$C$27>'TIR de Tenencia'!G77,E77,CALCULADORA!$C$33)) -> 30033227560 | L77: 28 | M77: 3 | N77: 2030
A78: =+Flujos!A78 -> 2030-03-28 | B78: =+Flujos!L78 -> -5.930662155e-06 | C78: =+Flujos!M78 -> 0 | D78: =+Flujos!N78 -> -6.947770715e-08 | E78: =+Flujos!O78 -> -6.947770715e-08 | G78: 2030-03-28 | H78: =IF(G78<CALCULADORA!$C$23,0,IF(CALCULADORA!$C$27>'TIR de Tenencia'!G78,E78,CALCULADORA!$C$33)) -> 30033227560 | L78: 28 | M78: 4 | N78: 2030
A79: =+Flujos!A79 -> 2030-04-28 | B79: =+Flujos!L79 -> -5.930662155e-06 | C79: =+Flujos!M79 -> 0 | D79: =+Flujos!N79 -> -6.947770715e-08 | E79: =+Flujos!O79 -> -6.947770715e-08 | G79: 2030-04-28 | H79: =IF(G79<CALCULADORA!$C$23,0,IF(CALCULADORA!$C$27>'TIR de Tenencia'!G79,E79,CALCULADORA!$C$33)) -> 30033227560 | L79: 28 | M79: 5 | N79: 2030
A80: =+Flujos!A80 -> 2030-05-28 | B80: =+Flujos!L80 -> -5.930662155e-06 | C80: =+Flujos!M80 -> 0 | D80: =+Flujos!N80 -> -6.947770715e-08 | E80: =+Flujos!O80 -> -6.947770715e-08 | G80: 2030-05-28 | H80: =IF(G80<CALCULADORA!$C$23,0,IF(CALCULADORA!$C$27>'TIR de Tenencia'!G80,E80,CALCULADORA!$C$33)) -> 30033227560 | L80: 28 | M80: 6 | N80: 2030
A81: =+Flujos!A81 -> 2030-06-28 | B81: =+Flujos!L81 -> -5.930662155e-06 | C81: =+Flujos!M81 -> 0 | D81: =+Flujos!N81 -> -6.947770715e-08 | E81: =+Flujos!O81 -> -6.947770715e-08 | G81: 2030-06-28 | H81: =IF(G81<CALCULADORA!$C$23,0,IF(CALCULADORA!$C$27>'TIR de Tenencia'!G81,E81,CALCULADORA!$C$33)) -> 30033227560 | L81: 28 | M81: 7 | N81: 2030
A82: =+Flujos!A82 -> 2030-07-28 | B82: =+Flujos!L82 -> -5.930662155e-06 | C82: =+Flujos!M82 -> 0 | D82: =+Flujos!N82 -> -6.947770715e-08 | E82: =+Flujos!O82 -> -6.947770715e-08 | G82: 2030-07-28 | H82: =IF(G82<CALCULADORA!$C$23,0,IF(CALCULADORA!$C$27>'TIR de Tenencia'!G82,E82,CALCULADORA!$C$33)) -> 30033227560 | L82: 28 | M82: 8 | N82: 2030
A83: =+Flujos!A83 -> 2030-08-28 | B83: =+Flujos!L83 -> -5.930662155e-06 | C83: =+Flujos!M83 -> 0 | D83: =+Flujos!N83 -> -6.947770715e-08 | E83: =+Flujos!O83 -> -6.947770715e-08 | G83: 2030-08-28 | H83: =IF(G83<CALCULADORA!$C$23,0,IF(CALCULADORA!$C$27>'TIR de Tenencia'!G83,E83,CALCULADORA!$C$33)) -> 30033227560 | L83: 28 | M83: 9 | N83: 2030
A84: =+Flujos!A84 -> 2030-09-28 | B84: =+Flujos!L84 -> -5.930662155e-06 | C84: =+Flujos!M84 -> 0 | D84: =+Flujos!N84 -> -6.947770715e-08 | E84: =+Flujos!O84 -> -6.947770715e-08 | G84: 2030-09-28 | H84: =IF(G84<CALCULADORA!$C$23,0,IF(CALCULADORA!$C$27>'TIR de Tenencia'!G84,E84,CALCULADORA!$C$33)) -> 30033227560 | L84: 28 | M84: 10 | N84: 2030
A85: =+Flujos!A85 -> 2030-10-28 | B85: =+Flujos!L85 -> -5.930662155e-06 | C85: =+Flujos!M85 -> 0 | D85: =+Flujos!N85 -> -6.947770715e-08 | E85: =+Flujos!O85 -> -6.947770715e-08 | G85: 2030-10-28 | H85: =IF(G85<CALCULADORA!$C$23,0,IF(CALCULADORA!$C$27>'TIR de Tenencia'!G85,E85,CALCULADORA!$C$33)) -> 30033227560 | L85: 28 | M85: 11 | N85: 2030
A86: =+Flujos!A86 -> 2030-11-28 | B86: =+Flujos!L86 -> -5.930662155e-06 | C86: =+Flujos!M86 -> 0 | D86: =+Flujos!N86 -> -6.947770715e-08 | E86: =+Flujos!O86 -> -6.947770715e-08 | G86: 2030-11-28 | H86: =IF(G86<CALCULADORA!$C$23,0,IF(CALCULADORA!$C$27>'TIR de Tenencia'!G86,E86,CALCULADORA!$C$33)) -> 30033227560 | L86: 28 | M86: 12 | N86: 2030
A87: =+Flujos!A87 -> 2030-12-28 | B87: =+Flujos!L87 -> -5.930662155e-06 | C87: =+Flujos!M87 -> 0 | D87: =+Flujos!N87 -> -6.947770715e-08 | E87: =+Flujos!O87 -> -6.947770715e-08 | G87: 2030-12-28 | H87: =IF(G87<CALCULADORA!$C$23,0,IF(CALCULADORA!$C$27>'TIR de Tenencia'!G87,E87,CALCULADORA!$C$33)) -> 30033227560 | L87: 28 | M87: 1 | N87: 2031
A88: =+Flujos!A88 -> 2031-01-28 | B88: =+Flujos!L88 -> -5.930662155e-06 | C88: =+Flujos!M88 -> 0 | D88: =+Flujos!N88 -> -6.947770715e-08 | E88: =+Flujos!O88 -> -6.947770715e-08 | G88: 2031-01-28 | H88: =IF(G88<CALCULADORA!$C$23,0,IF(CALCULADORA!$C$27>'TIR de Tenencia'!G88,E88,CALCULADORA!$C$33)) -> 30033227560 | L88: 28 | M88: 2 | N88: 2031
A89: =+Flujos!A89 -> 2031-02-28 | B89: =+Flujos!L89 -> -5.930662155e-06 | C89: =+Flujos!M89 -> 0 | D89: =+Flujos!N89 -> -6.947770715e-08 | E89: =+Flujos!O89 -> -6.947770715e-08 | G89: 2031-02-28 | H89: =IF(G89<CALCULADORA!$C$23,0,IF(CALCULADORA!$C$27>'TIR de Tenencia'!G89,E89,CALCULADORA!$C$33)) -> 30033227560 | L89: 28 | M89: 3 | N89: 2031
A90: =+Flujos!A90 -> 2031-03-28 | B90: =+Flujos!L90 -> -5.930662155e-06 | C90: =+Flujos!M90 -> 0 | D90: =+Flujos!N90 -> -6.947770715e-08 | E90: =+Flujos!O90 -> -6.947770715e-08 | G90: 2031-03-28 | H90: =IF(G90<CALCULADORA!$C$23,0,IF(CALCULADORA!$C$27>'TIR de Tenencia'!G90,E90,CALCULADORA!$C$33)) -> 30033227560 | L90: 28 | M90: 4 | N90: 2031
A91: =+Flujos!A91 -> 2031-04-28 | B91: =+Flujos!L91 -> -5.930662155e-06 | C91: =+Flujos!M91 -> 0 | D91: =+Flujos!N91 -> -6.947770715e-08 | E91: =+Flujos!O91 -> -6.947770715e-08 | G91: 2031-04-28 | H91: =IF(G91<CALCULADORA!$C$23,0,IF(CALCULADORA!$C$27>'TIR de Tenencia'!G91,E91,CALCULADORA!$C$33)) -> 30033227560 | L91: 28 | M91: 5 | N91: 2031
A92: =+Flujos!A92 -> 2031-05-28 | B92: =+Flujos!L92 -> -5.930662155e-06 | C92: =+Flujos!M92 -> 0 | D92: =+Flujos!N92 -> -6.947770715e-08 | E92: =+Flujos!O92 -> -6.947770715e-08 | G92: 2031-05-28 | H92: =IF(G92<CALCULADORA!$C$23,0,IF(CALCULADORA!$C$27>'TIR de Tenencia'!G92,E92,CALCULADORA!$C$33)) -> 30033227560 | L92: 28 | M92: 6 | N92: 2031
A93: =+Flujos!A93 -> 2031-06-28 | B93: =+Flujos!L93 -> -5.930662155e-06 | C93: =+Flujos!M93 -> 0 | D93: =+Flujos!N93 -> -6.947770715e-08 | E93: =+Flujos!O93 -> -6.947770715e-08 | G93: 2031-06-28 | H93: =IF(G93<CALCULADORA!$C$23,0,IF(CALCULADORA!$C$27>'TIR de Tenencia'!G93,E93,CALCULADORA!$C$33)) -> 30033227560 | L93: 28 | M93: 7 | N93: 2031
A94: =+Flujos!A94 -> 2031-07-28 | B94: =+Flujos!L94 -> -5.930662155e-06 | C94: =+Flujos!M94 -> 0 | D94: =+Flujos!N94 -> -6.947770715e-08 | E94: =+Flujos!O94 -> -6.947770715e-08 | G94: 2031-07-28 | H94: =IF(G94<CALCULADORA!$C$23,0,IF(CALCULADORA!$C$27>'TIR de Tenencia'!G94,E94,CALCULADORA!$C$33)) -> 30033227560 | L94: 28 | M94: 8 | N94: 2031
A95: =+Flujos!A95 -> 2031-08-28 | B95: =+Flujos!L95 -> -5.930662155e-06 | C95: =+Flujos!M95 -> 0 | D95: =+Flujos!N95 -> -6.947770715e-08 | E95: =+Flujos!O95 -> -6.947770715e-08 | G95: 2031-08-28 | H95: =IF(G95<CALCULADORA!$C$23,0,IF(CALCULADORA!$C$27>'TIR de Tenencia'!G95,E95,CALCULADORA!$C$33)) -> 30033227560 | L95: 28 | M95: 9 | N95: 2031
A96: =+Flujos!A96 -> 2031-09-28 | B96: =+Flujos!L96 -> -5.930662155e-06 | C96: =+Flujos!M96 -> 0 | D96: =+Flujos!N96 -> -6.947770715e-08 | E96: =+Flujos!O96 -> -6.947770715e-08 | G96: 2031-09-28 | H96: =IF(G96<CALCULADORA!$C$23,0,IF(CALCULADORA!$C$27>'TIR de Tenencia'!G96,E96,CALCULADORA!$C$33)) -> 30033227560 | L96: 28 | M96: 10 | N96: 2031
A97: =+Flujos!A97 -> 2031-10-28 | B97: =+Flujos!L97 -> -5.930662155e-06 | C97: =+Flujos!M97 -> 0 | D97: =+Flujos!N97 -> -6.947770715e-08 | E97: =+Flujos!O97 -> -6.947770715e-08 | G97: 2031-10-28 | H97: =IF(G97<CALCULADORA!$C$23,0,IF(CALCULADORA!$C$27>'TIR de Tenencia'!G97,E97,CALCULADORA!$C$33)) -> 30033227560 | L97: 28 | M97: 11 | N97: 2031
A98: =+Flujos!A98 -> 2031-11-28 | B98: =+Flujos!L98 -> -5.930662155e-06 | C98: =+Flujos!M98 -> 0 | D98: =+Flujos!N98 -> -6.947770715e-08 | E98: =+Flujos!O98 -> -6.947770715e-08 | G98: 2031-11-28 | H98: =IF(G98<CALCULADORA!$C$23,0,IF(CALCULADORA!$C$27>'TIR de Tenencia'!G98,E98,CALCULADORA!$C$33)) -> 30033227560 | L98: 28 | M98: 12 | N98: 2031
A99: =+Flujos!A99 -> 2031-12-28 | B99: =+Flujos!L99 -> -5.930662155e-06 | C99: =+Flujos!M99 -> 0 | D99: =+Flujos!N99 -> -6.947770715e-08 | E99: =+Flujos!O99 -> -6.947770715e-08 | G99: =+DATE(N98,M98,L98) -> 2031-12-28 | H99: =IF(G99<CALCULADORA!$C$23,0,IF(CALCULADORA!$C$27>'TIR de Tenencia'!G99,E99,CALCULADORA!$C$33)) -> 30033227560 | L99: 28 | M99: 1 | N99: 2032
A100: =+Flujos!A100 -> 2032-01-28 | B100: =+Flujos!L100 -> -5.930662155e-06 | C100: =+Flujos!M100 -> 0 | D100: =+Flujos!N100 -> -6.947770715e-08 | E100: =+Flujos!O100 -> -6.947770715e-08 | G100: 2032-01-28 | H100: =IF(G100<CALCULADORA!$C$23,0,IF(CALCULADORA!$C$27>'TIR de Tenencia'!G100,E100,CALCULADORA!$C$33)) -> 30033227560 | L100: 28 | M100: 2 | N100: 2032
A101: =+Flujos!A101 -> 2032-02-28 | B101: =+Flujos!L101 -> -5.930662155e-06 | C101: =+Flujos!M101 -> 0 | D101: =+Flujos!N101 -> -6.947770715e-08 | E101: =+Flujos!O101 -> -6.947770715e-08 | G101: 2032-02-28 | H101: =IF(G101<CALCULADORA!$C$23,0,IF(CALCULADORA!$C$27>'TIR de Tenencia'!G101,E101,CALCULADORA!$C$33)) -> 30033227560 | L101: 28 | M101: 3 | N101: 2032
A102: =+Flujos!A102 -> 2032-03-28 | B102: =+Flujos!L102 -> -5.930662155e-06 | C102: =+Flujos!M102 -> 0 | D102: =+Flujos!N102 -> -6.947770715e-08 | E102: =+Flujos!O102 -> -6.947770715e-08 | G102: 2032-03-28 | H102: =IF(G102<CALCULADORA!$C$23,0,IF(CALCULADORA!$C$27>'TIR de Tenencia'!G102,E102,CALCULADORA!$C$33)) -> 30033227560 | L102: 28 | M102: 4 | N102: 2032
A103: =+Flujos!A103 -> 2032-04-28 | B103: =+Flujos!L103 -> -5.930662155e-06 | C103: =+Flujos!M103 -> 0 | D103: =+Flujos!N103 -> -6.947770715e-08 | E103: =+Flujos!O103 -> -6.947770715e-08 | G103: 2032-04-28 | H103: =IF(G103<CALCULADORA!$C$23,0,IF(CALCULADORA!$C$27>'TIR de Tenencia'!G103,E103,CALCULADORA!$C$33)) -> 30033227560 | L103: 28 | M103: 5 | N103: 2032
A104: =+Flujos!A104 -> 2032-05-28 | B104: =+Flujos!L104 -> -5.930662155e-06 | C104: =+Flujos!M104 -> 0 | D104: =+Flujos!N104 -> -6.947770715e-08 | E104: =+Flujos!O104 -> -6.947770715e-08 | G104: 2032-05-28 | H104: =IF(G104<CALCULADORA!$C$23,0,IF(CALCULADORA!$C$27>'TIR de Tenencia'!G104,E104,CALCULADORA!$C$33)) -> 30033227560 | L104: 28 | M104: 6 | N104: 2032
A105: =+Flujos!A105 -> 2032-06-28 | B105: =+Flujos!L105 -> -5.930662155e-06 | C105: =+Flujos!M105 -> 0 | D105: =+Flujos!N105 -> -6.947770715e-08 | E105: =+Flujos!O105 -> -6.947770715e-08 | G105: 2032-06-28 | H105: =IF(G105<CALCULADORA!$C$23,0,IF(CALCULADORA!$C$27>'TIR de Tenencia'!G105,E105,CALCULADORA!$C$33)) -> 30033227560 | L105: 28 | M105: 7 | N105: 2032
A106: =+Flujos!A106 -> 2032-07-28 | B106: =+Flujos!L106 -> -5.930662155e-06 | C106: =+Flujos!M106 -> 0 | D106: =+Flujos!N106 -> -6.947770715e-08 | E106: =+Flujos!O106 -> -6.947770715e-08 | G106: 2032-07-28 | H106: =IF(G106<CALCULADORA!$C$23,0,IF(CALCULADORA!$C$27>'TIR de Tenencia'!G106,E106,CALCULADORA!$C$33)) -> 30033227560 | L106: 28 | M106: 8 | N106: 2032
A107: =+Flujos!A107 -> 2032-08-28 | B107: =+Flujos!L107 -> -5.930662155e-06 | C107: =+Flujos!M107 -> 0 | D107: =+Flujos!N107 -> -6.947770715e-08 | E107: =+Flujos!O107 -> -6.947770715e-08 | G107: 2032-08-28 | H107: =IF(G107<CALCULADORA!$C$23,0,IF(CALCULADORA!$C$27>'TIR de Tenencia'!G107,E107,CALCULADORA!$C$33)) -> 30033227560 | L107: 28 | M107: 9 | N107: 2032
A108: =+Flujos!A108 -> 2032-09-28 | B108: =+Flujos!L108 -> -5.930662155e-06 | C108: =+Flujos!M108 -> 0 | D108: =+Flujos!N108 -> -6.947770715e-08 | E108: =+Flujos!O108 -> -6.947770715e-08 | G108: 2032-09-28 | H108: =IF(G108<CALCULADORA!$C$23,0,IF(CALCULADORA!$C$27>'TIR de Tenencia'!G108,E108,CALCULADORA!$C$33)) -> 30033227560 | L108: 28 | M108: 10 | N108: 2032
A109: =+Flujos!A109 -> 2032-10-28 | B109: =+Flujos!L109 -> -5.930662155e-06 | C109: =+Flujos!M109 -> 0 | D109: =+Flujos!N109 -> -6.947770715e-08 | E109: =+Flujos!O109 -> -6.947770715e-08 | G109: 2032-10-28 | H109: =IF(G109<CALCULADORA!$C$23,0,IF(CALCULADORA!$C$27>'TIR de Tenencia'!G109,E109,CALCULADORA!$C$33)) -> 30033227560 | L109: 28 | M109: 11 | N109: 2032
A110: =+Flujos!A110 -> 2032-11-28 | B110: =+Flujos!L110 -> -5.930662155e-06 | C110: =+Flujos!M110 -> 0 | D110: =+Flujos!N110 -> -6.947770715e-08 | E110: =+Flujos!O110 -> -6.947770715e-08 | G110: 2032-11-28 | H110: =IF(G110<CALCULADORA!$C$23,0,IF(CALCULADORA!$C$27>'TIR de Tenencia'!G110,E110,CALCULADORA!$C$33)) -> 30033227560 | L110: 28 | M110: 12 | N110: 2032
A111: =+Flujos!A111 -> 2032-12-28 | B111: =+Flujos!L111 -> -5.930662155e-06 | C111: =+Flujos!M111 -> 0 | D111: =+Flujos!N111 -> -6.947770715e-08 | E111: =+Flujos!O111 -> -6.947770715e-08 | G111: 2032-12-28 | H111: =IF(G111<CALCULADORA!$C$23,0,IF(CALCULADORA!$C$27>'TIR de Tenencia'!G111,E111,CALCULADORA!$C$33)) -> 30033227560 | L111: 28 | M111: 1 | N111: =+IF(M111=1,N110+1,N110) -> 2033
A112: =+Flujos!A112 -> 2033-01-28 | B112: =+Flujos!L112 -> -5.930662155e-06 | C112: =+Flujos!M112 -> 0 | D112: =+Flujos!N112 -> -6.947770715e-08 | E112: =+Flujos!O112 -> -6.947770715e-08 | G112: 2033-01-28 | H112: =IF(G112<CALCULADORA!$C$23,0,IF(CALCULADORA!$C$27>'TIR de Tenencia'!G112,E112,CALCULADORA!$C$33)) -> 30033227560 | L112: 28 | M112: 2 | N112: 2033
A113: =+Flujos!A113 -> 2033-02-28 | B113: =+Flujos!L113 -> -5.930662155e-06 | C113: =+Flujos!M113 -> 0 | D113: =+Flujos!N113 -> -6.947770715e-08 | E113: =+Flujos!O113 -> -6.947770715e-08 | G113: 2033-02-28 | H113: =IF(G113<CALCULADORA!$C$23,0,IF(CALCULADORA!$C$27>'TIR de Tenencia'!G113,E113,CALCULADORA!$C$33)) -> 30033227560 | L113: 28 | M113: 3 | N113: 2033
A114: =+Flujos!A114 -> 2033-03-28 | B114: =+Flujos!L114 -> -5.930662155e-06 | C114: =+Flujos!M114 -> 0 | D114: =+Flujos!N114 -> -6.947770715e-08 | E114: =+Flujos!O114 -> -6.947770715e-08 | G114: 2033-03-28 | H114: =IF(G114<CALCULADORA!$C$23,0,IF(CALCULADORA!$C$27>'TIR de Tenencia'!G114,E114,CALCULADORA!$C$33)) -> 30033227560 | L114: 28 | M114: 4 | N114: 2033
A115: =+Flujos!A115 -> 2033-04-28 | B115: =+Flujos!L115 -> -5.930662155e-06 | C115: =+Flujos!M115 -> 0 | D115: =+Flujos!N115 -> -6.947770715e-08 | E115: =+Flujos!O115 -> -6.947770715e-08 | G115: 2033-04-28 | H115: =IF(G115<CALCULADORA!$C$23,0,IF(CALCULADORA!$C$27>'TIR de Tenencia'!G115,E115,CALCULADORA!$C$33)) -> 30033227560 | L115: 28 | M115: 5 | N115: 2033
A116: =+Flujos!A116 -> 2033-05-28 | B116: =+Flujos!L116 -> -5.930662155e-06 | C116: =+Flujos!M116 -> 0 | D116: =+Flujos!N116 -> -6.947770715e-08 | E116: =+Flujos!O116 -> -6.947770715e-08 | G116: 2033-05-28 | H116: =IF(G116<CALCULADORA!$C$23,0,IF(CALCULADORA!$C$27>'TIR de Tenencia'!G116,E116,CALCULADORA!$C$33)) -> 30033227560 | L116: 28 | M116: 6 | N116: 2033
A117: =+Flujos!A117 -> 2033-06-28 | B117: =+Flujos!L117 -> -5.930662155e-06 | C117: =+Flujos!M117 -> 0 | D117: =+Flujos!N117 -> -6.947770715e-08 | E117: =+Flujos!O117 -> -6.947770715e-08 | G117: 2033-06-28 | H117: =IF(G117<CALCULADORA!$C$23,0,IF(CALCULADORA!$C$27>'TIR de Tenencia'!G117,E117,CALCULADORA!$C$33)) -> 30033227560 | L117: 28 | M117: 7 | N117: 2033
A118: =+Flujos!A118 -> 2033-07-28 | B118: =+Flujos!L118 -> -5.930662155e-06 | C118: =+Flujos!M118 -> 0 | D118: =+Flujos!N118 -> -6.947770715e-08 | E118: =+Flujos!O118 -> -6.947770715e-08 | G118: 2033-07-28 | H118: =IF(G118<CALCULADORA!$C$23,0,IF(CALCULADORA!$C$27>'TIR de Tenencia'!G118,E118,CALCULADORA!$C$33)) -> 30033227560 | L118: 28 | M118: 8 | N118: 2033
A119: =+Flujos!A119 -> 2033-08-28 | B119: =+Flujos!L119 -> -5.930662155e-06 | C119: =+Flujos!M119 -> 0 | D119: =+Flujos!N119 -> -6.947770715e-08 | E119: =+Flujos!O119 -> -6.947770715e-08 | G119: 2033-08-28 | H119: =IF(G119<CALCULADORA!$C$23,0,IF(CALCULADORA!$C$27>'TIR de Tenencia'!G119,E119,CALCULADORA!$C$33)) -> 30033227560 | L119: 28 | M119: 9 | N119: 2033
A120: =+Flujos!A120 -> 2033-09-28 | B120: =+Flujos!L120 -> -5.930662155e-06 | C120: =+Flujos!M120 -> 0 | D120: =+Flujos!N120 -> -6.947770715e-08 | E120: =+Flujos!O120 -> -6.947770715e-08 | G120: 2033-09-28 | H120: =IF(G120<CALCULADORA!$C$23,0,IF(CALCULADORA!$C$27>'TIR de Tenencia'!G120,E120,CALCULADORA!$C$33)) -> 30033227560 | L120: 28 | M120: 10 | N120: 2033
A121: =+Flujos!A121 -> 2033-10-28 | B121: =+Flujos!L121 -> -5.930662155e-06 | C121: =+Flujos!M121 -> 0 | D121: =+Flujos!N121 -> -6.947770715e-08 | E121: =+Flujos!O121 -> -6.947770715e-08 | G121: 2033-10-28 | H121: =IF(G121<CALCULADORA!$C$23,0,IF(CALCULADORA!$C$27>'TIR de Tenencia'!G121,E121,CALCULADORA!$C$33)) -> 30033227560 | L121: 28 | M121: 11 | N121: 2033
A122: =+Flujos!A122 -> 2033-11-28 | B122: =+Flujos!L122 -> -5.930662155e-06 | C122: =+Flujos!M122 -> 0 | D122: =+Flujos!N122 -> -6.947770715e-08 | E122: =+Flujos!O122 -> -6.947770715e-08 | G122: 2033-11-28 | H122: =IF(G122<CALCULADORA!$C$23,0,IF(CALCULADORA!$C$27>'TIR de Tenencia'!G122,E122,CALCULADORA!$C$33)) -> 30033227560 | L122: 28 | M122: 12 | N122: 2033
A123: =+Flujos!A123 -> 2033-12-28 | B123: =+Flujos!L123 -> -5.930662155e-06 | C123: =+Flujos!M123 -> 0 | D123: =+Flujos!N123 -> -6.947770715e-08 | E123: =+Flujos!O123 -> -6.947770715e-08 | G123: 2033-12-28 | H123: =IF(G123<CALCULADORA!$C$23,0,IF(CALCULADORA!$C$27>'TIR de Tenencia'!G123,E123,CALCULADORA!$C$33)) -> 30033227560 | L123: 28 | M123: 1 | N123: 2034
A124: =+Flujos!A124 -> 2034-01-28 | B124: =+Flujos!L124 -> -5.930662155e-06 | C124: =+Flujos!M124 -> 0 | D124: =+Flujos!N124 -> -6.947770715e-08 | E124: =+Flujos!O124 -> -6.947770715e-08 | G124: 2034-01-28 | H124: =IF(G124<CALCULADORA!$C$23,0,IF(CALCULADORA!$C$27>'TIR de Tenencia'!G124,E124,CALCULADORA!$C$33)) -> 30033227560 | L124: 28 | M124: 2 | N124: 2034
A125: =+Flujos!A125 -> 2034-02-28 | B125: =+Flujos!L125 -> -5.930662155e-06 | C125: =+Flujos!M125 -> 0 | D125: =+Flujos!N125 -> -6.947770715e-08 | E125: =+Flujos!O125 -> -6.947770715e-08 | G125: 2034-02-28 | H125: =IF(G125<CALCULADORA!$C$23,0,IF(CALCULADORA!$C$27>'TIR de Tenencia'!G125,E125,CALCULADORA!$C$33)) -> 30033227560 | L125: 28 | M125: 3 | N125: 2034
A126: =+Flujos!A126 -> 2034-03-28 | B126: =+Flujos!L126 -> -5.930662155e-06 | C126: =+Flujos!M126 -> 0 | D126: =+Flujos!N126 -> -6.947770715e-08 | E126: =+Flujos!O126 -> -6.947770715e-08 | G126: 2034-03-28 | H126: =IF(G126<CALCULADORA!$C$23,0,IF(CALCULADORA!$C$27>'TIR de Tenencia'!G126,E126,CALCULADORA!$C$33)) -> 30033227560 | L126: 28 | M126: 4 | N126: 2034
A127: =+Flujos!A127 -> 2034-04-28 | B127: =+Flujos!L127 -> -5.930662155e-06 | C127: =+Flujos!M127 -> 0 | D127: =+Flujos!N127 -> -6.947770715e-08 | E127: =+Flujos!O127 -> -6.947770715e-08 | G127: 2034-04-28 | H127: =IF(G127<CALCULADORA!$C$23,0,IF(CALCULADORA!$C$27>'TIR de Tenencia'!G127,E127,CALCULADORA!$C$33)) -> 30033227560 | L127: 28 | M127: 5 | N127: 2034
A128: =+Flujos!A128 -> 2034-05-28 | B128: =+Flujos!L128 -> -5.930662155e-06 | C128: =+Flujos!M128 -> 0 | D128: =+Flujos!N128 -> -6.947770715e-08 | E128: =+Flujos!O128 -> -6.947770715e-08 | G128: 2034-05-28 | H128: =IF(G128<CALCULADORA!$C$23,0,IF(CALCULADORA!$C$27>'TIR de Tenencia'!G128,E128,CALCULADORA!$C$33)) -> 30033227560 | L128: 28 | M128: 6 | N128: 2034
A129: =+Flujos!A129 -> 2034-06-28 | B129: =+Flujos!L129 -> -5.930662155e-06 | C129: =+Flujos!M129 -> 0 | D129: =+Flujos!N129 -> -6.947770715e-08 | E129: =+Flujos!O129 -> -6.947770715e-08 | G129: 2034-06-28 | H129: =IF(G129<CALCULADORA!$C$23,0,IF(CALCULADORA!$C$27>'TIR de Tenencia'!G129,E129,CALCULADORA!$C$33)) -> 30033227560 | L129: 28 | M129: 7 | N129: 2034
A130: =+Flujos!A130 -> 2034-07-28 | B130: =+Flujos!L130 -> -5.930662155e-06 | C130: =+Flujos!M130 -> 0 | D130: =+Flujos!N130 -> -6.947770715e-08 | E130: =+Flujos!O130 -> -6.947770715e-08 | G130: 2034-07-28 | H130: =IF(G130<CALCULADORA!$C$23,0,IF(CALCULADORA!$C$27>'TIR de Tenencia'!G130,E130,CALCULADORA!$C$33)) -> 30033227560 | L130: 28 | M130: 8 | N130: 2034
A131: =+Flujos!A131 -> 2034-08-28 | B131: =+Flujos!L131 -> -5.930662155e-06 | C131: =+Flujos!M131 -> 0 | D131: =+Flujos!N131 -> -6.947770715e-08 | E131: =+Flujos!O131 -> -6.947770715e-08 | G131: =+DATE(N130,M130,L130) -> 2034-08-28 | H131: =IF(G131<CALCULADORA!$C$23,0,IF(CALCULADORA!$C$27>'TIR de Tenencia'!G131,E131,CALCULADORA!$C$33)) -> 30033227560 | L131: =+L130 -> 28 | M131: =+IF(M130=12,1,M130+1) -> 9 | N131: =+IF(M131=1,N130+1,N130) -> 2034
A132: =+Flujos!A132 -> 2034-09-28 | B132: =+Flujos!L132 -> -5.930662155e-06 | C132: =+Flujos!M132 -> 0 | D132: =+Flujos!N132 -> -6.947770715e-08 | E132: =+Flujos!O132 -> -6.947770715e-08 | G132: 2034-09-28 | H132: =IF(G132<CALCULADORA!$C$23,0,IF(CALCULADORA!$C$27>'TIR de Tenencia'!G132,E132,CALCULADORA!$C$33)) -> 30033227560 | I132: =+IF(H132=H131," ",G132) ->  | J132: =+IF(H132=H131," ",H132) ->  | L132: 28 | M132: 10 | N132: 2034
A133: =+Flujos!A133 -> 2034-10-28 | B133: =+Flujos!L133 -> -5.930662155e-06 | C133: =+Flujos!M133 -> 0 | D133: =+Flujos!N133 -> -6.947770715e-08 | E133: =+Flujos!O133 -> -6.947770715e-08 | G133: 2034-10-28 | H133: =IF(G133<CALCULADORA!$C$23,0,IF(CALCULADORA!$C$27>'TIR de Tenencia'!G133,E133,CALCULADORA!$C$33)) -> 30033227560 | L133: 28 | M133: 11 | N133: 2034
A134: =+Flujos!A134 -> 2034-11-28 | B134: =+Flujos!L134 -> -5.930662155e-06 | C134: =+Flujos!M134 -> 0 | D134: =+Flujos!N134 -> -6.947770715e-08 | E134: =+Flujos!O134 -> -6.947770715e-08 | G134: 2034-11-28 | H134: =IF(G134<CALCULADORA!$C$23,0,IF(CALCULADORA!$C$27>'TIR de Tenencia'!G134,E134,CALCULADORA!$C$33)) -> 30033227560 | L134: 28 | M134: 12 | N134: 2034
A135: =+Flujos!A135 -> 2034-12-28 | B135: =+Flujos!L135 -> -5.930662155e-06 | C135: =+Flujos!M135 -> 0 | D135: =+Flujos!N135 -> -6.947770715e-08 | E135: =+Flujos!O135 -> -6.947770715e-08 | G135: 2034-12-28 | H135: =IF(G135<CALCULADORA!$C$23,0,IF(CALCULADORA!$C$27>'TIR de Tenencia'!G135,E135,CALCULADORA!$C$33)) -> 30033227560 | L135: 28 | M135: 1 | N135: 2035
A136: =+Flujos!A136 -> 2035-01-28 | B136: =+Flujos!L136 -> -5.930662155e-06 | C136: =+Flujos!M136 -> 0 | D136: =+Flujos!N136 -> -6.947770715e-08 | E136: =+Flujos!O136 -> -6.947770715e-08 | G136: 2035-01-28 | H136: =IF(G136<CALCULADORA!$C$23,0,IF(CALCULADORA!$C$27>'TIR de Tenencia'!G136,E136,CALCULADORA!$C$33)) -> 30033227560 | L136: 28 | M136: 2 | N136: 2035
A137: =+Flujos!A137 -> 2035-02-28 | B137: =+Flujos!L137 -> -5.930662155e-06 | C137: =+Flujos!M137 -> 0 | D137: =+Flujos!N137 -> -6.947770715e-08 | E137: =+Flujos!O137 -> -6.947770715e-08 | G137: 2035-02-28 | H137: =IF(G137<CALCULADORA!$C$23,0,IF(CALCULADORA!$C$27>'TIR de Tenencia'!G137,E137,CALCULADORA!$C$33)) -> 30033227560 | L137: 28 | M137: 3 | N137: 2035
A138: =+Flujos!A138 -> 2035-03-28 | B138: =+Flujos!L138 -> -5.930662155e-06 | C138: =+Flujos!M138 -> 0 | D138: =+Flujos!N138 -> -6.947770715e-08 | E138: =+Flujos!O138 -> -6.947770715e-08 | G138: 2035-03-28 | H138: =IF(G138<CALCULADORA!$C$23,0,IF(CALCULADORA!$C$27>'TIR de Tenencia'!G138,E138,CALCULADORA!$C$33)) -> 30033227560 | L138: 28 | M138: 4 | N138: 2035
A139: =+Flujos!A139 -> 2035-04-28 | B139: =+Flujos!L139 -> -5.930662155e-06 | C139: =+Flujos!M139 -> 0 | D139: =+Flujos!N139 -> -6.947770715e-08 | E139: =+Flujos!O139 -> -6.947770715e-08 | G139: 2035-04-28 | H139: =IF(G139<CALCULADORA!$C$23,0,IF(CALCULADORA!$C$27>'TIR de Tenencia'!G139,E139,CALCULADORA!$C$33)) -> 30033227560 | L139: 28 | M139: 5 | N139: 2035
A140: =+Flujos!A140 -> 2035-05-28 | B140: =+Flujos!L140 -> -5.930662155e-06 | C140: =+Flujos!M140 -> 0 | D140: =+Flujos!N140 -> -6.947770715e-08 | E140: =+Flujos!O140 -> -6.947770715e-08 | G140: 2035-05-28 | H140: =IF(G140<CALCULADORA!$C$23,0,IF(CALCULADORA!$C$27>'TIR de Tenencia'!G140,E140,CALCULADORA!$C$33)) -> 30033227560 | L140: 28 | M140: 6 | N140: 2035
A141: =+Flujos!A141 -> 2035-06-28 | B141: =+Flujos!L141 -> -5.930662155e-06 | C141: =+Flujos!M141 -> 0 | D141: =+Flujos!N141 -> -6.947770715e-08 | E141: =+Flujos!O141 -> -6.947770715e-08 | G141: 2035-06-28 | H141: =IF(G141<CALCULADORA!$C$23,0,IF(CALCULADORA!$C$27>'TIR de Tenencia'!G141,E141,CALCULADORA!$C$33)) -> 30033227560 | L141: 28 | M141: 7 | N141: 2035
A142: =+Flujos!A142 -> 2035-07-28 | B142: =+Flujos!L142 -> -5.930662155e-06 | C142: =+Flujos!M142 -> 0 | D142: =+Flujos!N142 -> -6.947770715e-08 | E142: =+Flujos!O142 -> -6.947770715e-08 | G142: 2035-07-28 | H142: =IF(G142<CALCULADORA!$C$23,0,IF(CALCULADORA!$C$27>'TIR de Tenencia'!G142,E142,CALCULADORA!$C$33)) -> 30033227560 | L142: 28 | M142: 8 | N142: 2035
A143: =+Flujos!A143 -> 2035-08-28 | B143: =+Flujos!L143 -> -5.930662155e-06 | C143: =+Flujos!M143 -> 0 | D143: =+Flujos!N143 -> -6.947770715e-08 | E143: =+Flujos!O143 -> -6.947770715e-08 | G143: 2035-08-28 | H143: =IF(G143<CALCULADORA!$C$23,0,IF(CALCULADORA!$C$27>'TIR de Tenencia'!G143,E143,CALCULADORA!$C$33)) -> 30033227560 | L143: 28 | M143: 9 | N143: 2035
A144: =+Flujos!A144 -> 2035-09-28 | B144: =+Flujos!L144 -> -5.930662155e-06 | C144: =+Flujos!M144 -> 0 | D144: =+Flujos!N144 -> -6.947770715e-08 | E144: =+Flujos!O144 -> -6.947770715e-08 | G144: 2035-09-28 | H144: =IF(G144<CALCULADORA!$C$23,0,IF(CALCULADORA!$C$27>'TIR de Tenencia'!G144,E144,CALCULADORA!$C$33)) -> 30033227560 | L144: 28 | M144: 10 | N144: 2035
A145: =+Flujos!A145 -> 2035-10-28 | B145: =+Flujos!L145 -> -5.930662155e-06 | C145: =+Flujos!M145 -> 0 | D145: =+Flujos!N145 -> -6.947770715e-08 | E145: =+Flujos!O145 -> -6.947770715e-08 | G145: 2035-10-28 | H145: =IF(G145<CALCULADORA!$C$23,0,IF(CALCULADORA!$C$27>'TIR de Tenencia'!G145,E145,CALCULADORA!$C$33)) -> 30033227560 | L145: 28 | M145: 11 | N145: 2035
A146: =+Flujos!A146 -> 2035-11-28 | B146: =+Flujos!L146 -> -5.930662155e-06 | C146: =+Flujos!M146 -> 0 | D146: =+Flujos!N146 -> -6.947770715e-08 | E146: =+Flujos!O146 -> -6.947770715e-08 | G146: 2035-11-28 | H146: =IF(G146<CALCULADORA!$C$23,0,IF(CALCULADORA!$C$27>'TIR de Tenencia'!G146,E146,CALCULADORA!$C$33)) -> 30033227560 | L146: 28 | M146: 12 | N146: 2035
A147: =+Flujos!A147 -> 2035-12-28 | B147: =+Flujos!L147 -> -5.930662155e-06 | C147: =+Flujos!M147 -> 0 | D147: =+Flujos!N147 -> -6.947770715e-08 | E147: =+Flujos!O147 -> -6.947770715e-08 | G147: 2035-12-28 | H147: =IF(G147<CALCULADORA!$C$23,0,IF(CALCULADORA!$C$27>'TIR de Tenencia'!G147,E147,CALCULADORA!$C$33)) -> 30033227560 | L147: 28 | M147: 1 | N147: 2036
A148: =+Flujos!A148 -> 2036-01-28 | B148: =+Flujos!L148 -> -5.930662155e-06 | C148: =+Flujos!M148 -> 0 | D148: =+Flujos!N148 -> -6.947770715e-08 | E148: =+Flujos!O148 -> -6.947770715e-08 | G148: 2036-01-28 | H148: =IF(G148<CALCULADORA!$C$23,0,IF(CALCULADORA!$C$27>'TIR de Tenencia'!G148,E148,CALCULADORA!$C$33)) -> 30033227560 | L148: 28 | M148: 2 | N148: 2036
A149: =+Flujos!A149 -> 2036-02-28 | B149: =+Flujos!L149 -> -5.930662155e-06 | C149: =+Flujos!M149 -> 0 | D149: =+Flujos!N149 -> -6.947770715e-08 | E149: =+Flujos!O149 -> -6.947770715e-08 | G149: 2036-02-28 | H149: =IF(G149<CALCULADORA!$C$23,0,IF(CALCULADORA!$C$27>'TIR de Tenencia'!G149,E149,CALCULADORA!$C$33)) -> 30033227560 | L149: 28 | M149: 3 | N149: 2036
A150: =+Flujos!A150 -> 2036-03-28 | B150: =+Flujos!L150 -> -5.930662155e-06 | C150: =+Flujos!M150 -> 0 | D150: =+Flujos!N150 -> -6.947770715e-08 | E150: =+Flujos!O150 -> -6.947770715e-08 | G150: 2036-03-28 | H150: =IF(G150<CALCULADORA!$C$23,0,IF(CALCULADORA!$C$27>'TIR de Tenencia'!G150,E150,CALCULADORA!$C$33)) -> 30033227560 | L150: 28 | M150: 4 | N150: 2036
A151: =+Flujos!A151 -> 2036-04-28 | B151: =+Flujos!L151 -> -5.930662155e-06 | C151: =+Flujos!M151 -> 0 | D151: =+Flujos!N151 -> -6.947770715e-08 | E151: =+Flujos!O151 -> -6.947770715e-08 | G151: 2036-04-28 | H151: =IF(G151<CALCULADORA!$C$23,0,IF(CALCULADORA!$C$27>'TIR de Tenencia'!G151,E151,CALCULADORA!$C$33)) -> 30033227560 | L151: 28 | M151: 5 | N151: 2036
A152: =+Flujos!A152 -> 2036-05-28 | B152: =+Flujos!L152 -> -5.930662155e-06 | C152: =+Flujos!M152 -> 0 | D152: =+Flujos!N152 -> -6.947770715e-08 | E152: =+Flujos!O152 -> -6.947770715e-08 | G152: 2036-05-28 | H152: =IF(G152<CALCULADORA!$C$23,0,IF(CALCULADORA!$C$27>'TIR de Tenencia'!G152,E152,CALCULADORA!$C$33)) -> 30033227560 | L152: 28 | M152: 6 | N152: 2036
A153: =+Flujos!A153 -> 2036-06-28 | B153: =+Flujos!L153 -> -5.930662155e-06 | C153: =+Flujos!M153 -> 0 | D153: =+Flujos!N153 -> -6.947770715e-08 | E153: =+Flujos!O153 -> -6.947770715e-08 | G153: 2036-06-28 | H153: =IF(G153<CALCULADORA!$C$23,0,IF(CALCULADORA!$C$27>'TIR de Tenencia'!G153,E153,CALCULADORA!$C$33)) -> 30033227560 | L153: 28 | M153: 7 | N153: 2036
A154: =+Flujos!A154 -> 2036-07-28 | B154: =+Flujos!L154 -> -5.930662155e-06 | C154: =+Flujos!M154 -> 0 | D154: =+Flujos!N154 -> -6.947770715e-08 | E154: =+Flujos!O154 -> -6.947770715e-08 | G154: 2036-07-28 | H154: =IF(G154<CALCULADORA!$C$23,0,IF(CALCULADORA!$C$27>'TIR de Tenencia'!G154,E154,CALCULADORA!$C$33)) -> 30033227560 | L154: 28 | M154: 8 | N154: 2036
A155: =+Flujos!A155 -> 2036-08-28 | B155: =+Flujos!L155 -> -5.930662155e-06 | C155: =+Flujos!M155 -> 0 | D155: =+Flujos!N155 -> -6.947770715e-08 | E155: =+Flujos!O155 -> -6.947770715e-08 | G155: 2036-08-28 | H155: =IF(G155<CALCULADORA!$C$23,0,IF(CALCULADORA!$C$27>'TIR de Tenencia'!G155,E155,CALCULADORA!$C$33)) -> 30033227560 | L155: 28 | M155: 9 | N155: 2036
A156: =+Flujos!A156 -> 2036-09-28 | B156: =+Flujos!L156 -> -5.930662155e-06 | C156: =+Flujos!M156 -> 0 | D156: =+Flujos!N156 -> -6.947770715e-08 | E156: =+Flujos!O156 -> -6.947770715e-08 | G156: 2036-09-28 | H156: =IF(G156<CALCULADORA!$C$23,0,IF(CALCULADORA!$C$27>'TIR de Tenencia'!G156,E156,CALCULADORA!$C$33)) -> 30033227560 | L156: 28 | M156: 10 | N156: 2036
A157: =+Flujos!A157 -> 2036-10-28 | B157: =+Flujos!L157 -> -5.930662155e-06 | C157: =+Flujos!M157 -> 0 | D157: =+Flujos!N157 -> -6.947770715e-08 | E157: =+Flujos!O157 -> -6.947770715e-08 | G157: 2036-10-28 | H157: =IF(G157<CALCULADORA!$C$23,0,IF(CALCULADORA!$C$27>'TIR de Tenencia'!G157,E157,CALCULADORA!$C$33)) -> 30033227560 | L157: 28 | M157: 11 | N157: 2036
A158: =+Flujos!A158 -> 2036-11-28 | B158: =+Flujos!L158 -> -5.930662155e-06 | C158: =+Flujos!M158 -> 0 | D158: =+Flujos!N158 -> -6.947770715e-08 | E158: =+Flujos!O158 -> -6.947770715e-08 | G158: 2036-11-28 | H158: =IF(G158<CALCULADORA!$C$23,0,IF(CALCULADORA!$C$27>'TIR de Tenencia'!G158,E158,CALCULADORA!$C$33)) -> 30033227560 | L158: 28 | M158: 12 | N158: 2036
A159: =+Flujos!A159 -> 2036-12-28 | B159: =+Flujos!L159 -> -5.930662155e-06 | C159: =+Flujos!M159 -> 0 | D159: =+Flujos!N159 -> -6.947770715e-08 | E159: =+Flujos!O159 -> -6.947770715e-08 | G159: 2036-12-28 | H159: =IF(G159<CALCULADORA!$C$23,0,IF(CALCULADORA!$C$27>'TIR de Tenencia'!G159,E159,CALCULADORA!$C$33)) -> 30033227560 | L159: 28 | M159: 1 | N159: 2037
A160: =+Flujos!A160 -> 2037-01-28 | B160: =+Flujos!L160 -> -5.930662155e-06 | C160: =+Flujos!M160 -> 0 | D160: =+Flujos!N160 -> -6.947770715e-08 | E160: =+Flujos!O160 -> -6.947770715e-08 | G160: 2037-01-28 | H160: =IF(G160<CALCULADORA!$C$23,0,IF(CALCULADORA!$C$27>'TIR de Tenencia'!G160,E160,CALCULADORA!$C$33)) -> 30033227560 | L160: 28 | M160: 2 | N160: 2037
A161: =+Flujos!A161 -> 2037-02-28 | B161: =+Flujos!L161 -> -5.930662155e-06 | C161: =+Flujos!M161 -> 0 | D161: =+Flujos!N161 -> -6.947770715e-08 | E161: =+Flujos!O161 -> -6.947770715e-08 | G161: 2037-02-28 | H161: =IF(G161<CALCULADORA!$C$23,0,IF(CALCULADORA!$C$27>'TIR de Tenencia'!G161,E161,CALCULADORA!$C$33)) -> 30033227560 | L161: 28 | M161: 3 | N161: 2037
A162: =+Flujos!A162 -> 2037-03-28 | B162: =+Flujos!L162 -> -5.930662155e-06 | C162: =+Flujos!M162 -> 0 | D162: =+Flujos!N162 -> -6.947770715e-08 | E162: =+Flujos!O162 -> -6.947770715e-08 | G162: 2037-03-28 | H162: =IF(G162<CALCULADORA!$C$23,0,IF(CALCULADORA!$C$27>'TIR de Tenencia'!G162,E162,CALCULADORA!$C$33)) -> 30033227560 | L162: 28 | M162: 4 | N162: 2037
A163: =+Flujos!A163 -> 2037-04-28 | B163: =+Flujos!L163 -> -5.930662155e-06 | C163: =+Flujos!M163 -> 0 | D163: =+Flujos!N163 -> -6.947770715e-08 | E163: =+Flujos!O163 -> -6.947770715e-08 | G163: =+DATE(N162,M162,L162) -> 2037-04-28 | H163: =IF(G163<CALCULADORA!$C$23,0,IF(CALCULADORA!$C$27>'TIR de Tenencia'!G163,E163,CALCULADORA!$C$33)) -> 30033227560 | L163: 28 | M163: 5 | N163: 2037
A164: =+Flujos!A164 -> 2037-05-28 | B164: =+Flujos!L164 -> -5.930662155e-06 | C164: =+Flujos!M164 -> 0 | D164: =+Flujos!N164 -> -6.947770715e-08 | E164: =+Flujos!O164 -> -6.947770715e-08 | G164: 2037-05-28 | H164: =IF(G164<CALCULADORA!$C$23,0,IF(CALCULADORA!$C$27>'TIR de Tenencia'!G164,E164,CALCULADORA!$C$33)) -> 30033227560 | L164: 28 | M164: 6 | N164: 2037
A165: =+Flujos!A165 -> 2037-06-28 | B165: =+Flujos!L165 -> -5.930662155e-06 | C165: =+Flujos!M165 -> 0 | D165: =+Flujos!N165 -> -6.947770715e-08 | E165: =+Flujos!O165 -> -6.947770715e-08 | G165: 2037-06-28 | H165: =IF(G165<CALCULADORA!$C$23,0,IF(CALCULADORA!$C$27>'TIR de Tenencia'!G165,E165,CALCULADORA!$C$33)) -> 30033227560 | L165: 28 | M165: 7 | N165: 2037
A166: =+Flujos!A166 -> 2037-07-28 | B166: =+Flujos!L166 -> -5.930662155e-06 | C166: =+Flujos!M166 -> 0 | D166: =+Flujos!N166 -> -6.947770715e-08 | E166: =+Flujos!O166 -> -6.947770715e-08 | G166: 2037-07-28 | H166: =IF(G166<CALCULADORA!$C$23,0,IF(CALCULADORA!$C$27>'TIR de Tenencia'!G166,E166,CALCULADORA!$C$33)) -> 30033227560 | L166: 28 | M166: 8 | N166: 2037
A167: =+Flujos!A167 -> 2037-08-28 | B167: =+Flujos!L167 -> -5.930662155e-06 | C167: =+Flujos!M167 -> 0 | D167: =+Flujos!N167 -> -6.947770715e-08 | E167: =+Flujos!O167 -> -6.947770715e-08 | G167: 2037-08-28 | H167: =IF(G167<CALCULADORA!$C$23,0,IF(CALCULADORA!$C$27>'TIR de Tenencia'!G167,E167,CALCULADORA!$C$33)) -> 30033227560 | L167: 28 | M167: 9 | N167: 2037
A168: =+Flujos!A168 -> 2037-09-28 | B168: =+Flujos!L168 -> -5.930662155e-06 | C168: =+Flujos!M168 -> 0 | D168: =+Flujos!N168 -> -6.947770715e-08 | E168: =+Flujos!O168 -> -6.947770715e-08 | G168: 2037-09-28 | H168: =IF(G168<CALCULADORA!$C$23,0,IF(CALCULADORA!$C$27>'TIR de Tenencia'!G168,E168,CALCULADORA!$C$33)) -> 30033227560 | L168: 28 | M168: 10 | N168: 2037
A169: =+Flujos!A169 -> 2037-10-28 | B169: =+Flujos!L169 -> -5.930662155e-06 | C169: =+Flujos!M169 -> 0 | D169: =+Flujos!N169 -> -6.947770715e-08 | E169: =+Flujos!O169 -> -6.947770715e-08 | G169: 2037-10-28 | H169: =IF(G169<CALCULADORA!$C$23,0,IF(CALCULADORA!$C$27>'TIR de Tenencia'!G169,E169,CALCULADORA!$C$33)) -> 30033227560 | L169: 28 | M169: 11 | N169: 2037
A170: =+Flujos!A170 -> 2037-11-28 | B170: =+Flujos!L170 -> -5.930662155e-06 | C170: =+Flujos!M170 -> 0 | D170: =+Flujos!N170 -> -6.947770715e-08 | E170: =+Flujos!O170 -> -6.947770715e-08 | G170: 2037-11-28 | H170: =IF(G170<CALCULADORA!$C$23,0,IF(CALCULADORA!$C$27>'TIR de Tenencia'!G170,E170,CALCULADORA!$C$33)) -> 30033227560 | L170: 28 | M170: 12 | N170: 2037
A171: =+Flujos!A171 -> 2037-12-28 | B171: =+Flujos!L171 -> -5.930662155e-06 | C171: =+Flujos!M171 -> 0 | D171: =+Flujos!N171 -> -6.947770715e-08 | E171: =+Flujos!O171 -> -6.947770715e-08 | G171: 2037-12-28 | H171: =IF(G171<CALCULADORA!$C$23,0,IF(CALCULADORA!$C$27>'TIR de Tenencia'!G171,E171,CALCULADORA!$C$33)) -> 30033227560 | L171: 28 | M171: 1 | N171: 2038
A172: =+Flujos!A172 -> 2038-01-28 | B172: =+Flujos!L172 -> -5.930662155e-06 | C172: =+Flujos!M172 -> 0 | D172: =+Flujos!N172 -> -6.947770715e-08 | E172: =+Flujos!O172 -> -6.947770715e-08 | G172: 2038-01-28 | H172: =IF(G172<CALCULADORA!$C$23,0,IF(CALCULADORA!$C$27>'TIR de Tenencia'!G172,E172,CALCULADORA!$C$33)) -> 30033227560 | L172: 28 | M172: 2 | N172: 2038
A173: =+Flujos!A173 -> 2038-02-28 | B173: =+Flujos!L173 -> -5.930662155e-06 | C173: =+Flujos!M173 -> 0 | D173: =+Flujos!N173 -> -6.947770715e-08 | E173: =+Flujos!O173 -> -6.947770715e-08 | G173: 2038-02-28 | H173: =IF(G173<CALCULADORA!$C$23,0,IF(CALCULADORA!$C$27>'TIR de Tenencia'!G173,E173,CALCULADORA!$C$33)) -> 30033227560 | L173: 28 | M173: 3 | N173: 2038
A174: =+Flujos!A174 -> 2038-03-28 | B174: =+Flujos!L174 -> -5.930662155e-06 | C174: =+Flujos!M174 -> 0 | D174: =+Flujos!N174 -> -6.947770715e-08 | E174: =+Flujos!O174 -> -6.947770715e-08 | G174: 2038-03-28 | H174: =IF(G174<CALCULADORA!$C$23,0,IF(CALCULADORA!$C$27>'TIR de Tenencia'!G174,E174,CALCULADORA!$C$33)) -> 30033227560 | L174: 28 | M174: 4 | N174: 2038
A175: =+Flujos!A175 -> 2038-04-28 | B175: =+Flujos!L175 -> -5.930662155e-06 | C175: =+Flujos!M175 -> 0 | D175: =+Flujos!N175 -> -6.947770715e-08 | E175: =+Flujos!O175 -> -6.947770715e-08 | G175: 2038-04-28 | H175: =IF(G175<CALCULADORA!$C$23,0,IF(CALCULADORA!$C$27>'TIR de Tenencia'!G175,E175,CALCULADORA!$C$33)) -> 30033227560 | L175: 28 | M175: 5 | N175: 2038
A176: =+Flujos!A176 -> 2038-05-28 | B176: =+Flujos!L176 -> -5.930662155e-06 | C176: =+Flujos!M176 -> 0 | D176: =+Flujos!N176 -> -6.947770715e-08 | E176: =+Flujos!O176 -> -6.947770715e-08 | G176: 2038-05-28 | H176: =IF(G176<CALCULADORA!$C$23,0,IF(CALCULADORA!$C$27>'TIR de Tenencia'!G176,E176,CALCULADORA!$C$33)) -> 30033227560 | L176: 28 | M176: 6 | N176: 2038
A177: =+Flujos!A177 -> 2038-06-28 | B177: =+Flujos!L177 -> -5.930662155e-06 | C177: =+Flujos!M177 -> 0 | D177: =+Flujos!N177 -> -6.947770715e-08 | E177: =+Flujos!O177 -> -6.947770715e-08 | G177: 2038-06-28 | H177: =IF(G177<CALCULADORA!$C$23,0,IF(CALCULADORA!$C$27>'TIR de Tenencia'!G177,E177,CALCULADORA!$C$33)) -> 30033227560 | L177: 28 | M177: 7 | N177: 2038
A178: =+Flujos!A178 -> 2038-07-28 | B178: =+Flujos!L178 -> -5.930662155e-06 | C178: =+Flujos!M178 -> 0 | D178: =+Flujos!N178 -> -6.947770715e-08 | E178: =+Flujos!O178 -> -6.947770715e-08 | G178: 2038-07-28 | H178: =IF(G178<CALCULADORA!$C$23,0,IF(CALCULADORA!$C$27>'TIR de Tenencia'!G178,E178,CALCULADORA!$C$33)) -> 30033227560 | L178: 28 | M178: 8 | N178: 2038
A179: =+Flujos!A179 -> 2038-08-28 | B179: =+Flujos!L179 -> -5.930662155e-06 | C179: =+Flujos!M179 -> 0 | D179: =+Flujos!N179 -> -6.947770715e-08 | E179: =+Flujos!O179 -> -6.947770715e-08 | G179: 2038-08-28 | H179: =IF(G179<CALCULADORA!$C$23,0,IF(CALCULADORA!$C$27>'TIR de Tenencia'!G179,E179,CALCULADORA!$C$33)) -> 30033227560 | L179: 28 | M179: 9 | N179: 2038
A180: =+Flujos!A180 -> 2038-09-28 | B180: =+Flujos!L180 -> -5.930662155e-06 | C180: =+Flujos!M180 -> 0 | D180: =+Flujos!N180 -> -6.947770715e-08 | E180: =+Flujos!O180 -> -6.947770715e-08 | G180: 2038-09-28 | H180: =IF(G180<CALCULADORA!$C$23,0,IF(CALCULADORA!$C$27>'TIR de Tenencia'!G180,E180,CALCULADORA!$C$33)) -> 30033227560 | L180: 28 | M180: 10 | N180: 2038
A181: =+Flujos!A181 -> 2038-10-28 | B181: =+Flujos!L181 -> -5.930662155e-06 | C181: =+Flujos!M181 -> 0 | D181: =+Flujos!N181 -> -6.947770715e-08 | E181: =+Flujos!O181 -> -6.947770715e-08 | G181: 2038-10-28 | H181: =IF(G181<CALCULADORA!$C$23,0,IF(CALCULADORA!$C$27>'TIR de Tenencia'!G181,E181,CALCULADORA!$C$33)) -> 30033227560 | L181: 28 | M181: 11 | N181: 2038
A182: =+Flujos!A182 -> 2038-11-28 | B182: =+Flujos!L182 -> -5.930662155e-06 | C182: =+Flujos!M182 -> 0 | D182: =+Flujos!N182 -> -6.947770715e-08 | E182: =+Flujos!O182 -> -6.947770715e-08 | G182: 2038-11-28 | H182: =IF(G182<CALCULADORA!$C$23,0,IF(CALCULADORA!$C$27>'TIR de Tenencia'!G182,E182,CALCULADORA!$C$33)) -> 30033227560 | L182: 28 | M182: 12 | N182: 2038
B183: Totales | C183: =SUM(C2:C182) -> 32692900000 | D183: 3716865504 | E183: 3.64097655e+10
I184: =+IF(H184=H183," ",H184) ->  | K184: =+MONTH(A184) -> 1 | L184: =+YEAR(A184) -> 1900
K185: 1 | L185: 1900
K186: 1 | L186: 1900
K187: 1 | L187: 1900
K188: 1 | L188: 1900
K189: 1 | L189: 1900
K190: 1 | L190: 1900
K191: 1 | L191: 1900
K192: 1 | L192: 1900
K193: 1 | L193: 1900
K194: 1 | L194: 1900
K195: 1 | L195: 1900
K196: 1 | L196: 1900
K197: 1 | L197: 1900
K198: 1 | L198: 1900
K199: 1 | L199: 1900
K200: 1 | L200: 1900
... 4300 more rows

Sheet Tabla de Amortizacion
A1: FECHA | B1: Tabla de Amortización Valoración | E1: Tabla de Amortización Valoración | F1: Tabla de Amortización Valoración | G1: Tabla de Amortización Valoración | H1: Tabla de Amortización Valoración | I1: Tabla de Amortización Valoración | J1: Tabla de Amortización Valoración | K1: Tabla de Amortización Valoración | L1: Tabla de Amortización Valoración | M1: Tabla de Amortización Valoración
B2: =+CALCULADORA!C9 -> TIV V-6 A | E2: =+Características!$B$1 -> TIV V-2 A | F2: =+Características!$C$1 -> TIV V-3 A | G2: =+Características!$D$1 -> TIV V-4 A | H2: =+Características!$E$1 -> TIV V-5 A | I2: =+Características!$F$1 -> TIV V-6 A | J2: =+Características!$G$1 -> 0 | K2: =+Características!$H$1 -> 0 | L2: =+Características!$I$1 -> 0 | M2: =+Características!$J$1 -> 0
A3: =+Flujos!A3 -> 2023-12-28 | B3: =+VLOOKUP(A3,$D$2:$M$182,MATCH($B$2,$D$2:$M$2,0),FALSE) -> 0.03975884 | D3: =+A3 -> 2023-12-28 | E3: 0.0225 | F3: 0.02 | G3: 0.03062049 | H3: 0.04642655 | I3: 0.03975884
A4: =+Flujos!A4 -> 2024-01-28 | B4: =+VLOOKUP(A4,$D$2:$M$182,MATCH($B$2,$D$2:$M$2,0),FALSE) -> 0.05171535 | D4: =+A4 -> 2024-01-28 | E4: 0.0225 | F4: 0.02 | G4: 0.05799865 | H4: 0.03933795 | I4: 0.05171535
A5: =+Flujos!A5 -> 2024-02-28 | B5: 0.065 | D5: 2024-02-28 | E5: 0.0225 | F5: 0.02 | G5: 0.05726544 | H5: 0.0405207 | I5: 0.065
A6: =+Flujos!A6 -> 2024-03-28 | B6: 0.065 | D6: 2024-03-28 | E6: 0.0225 | F6: 0.02 | G6: 0.05581276 | H6: 0.03963045 | I6: 0.065
A7: =+Flujos!A7 -> 2024-04-28 | B7: 0.06 | D7: 2024-04-28 | E7: 0.0225 | F7: 0.02 | G7: 0.03887577 | H7: 0.03875726 | I7: 0.06
A8: =+Flujos!A8 -> 2024-05-28 | B8: 0.06 | D8: 2024-05-28 | E8: 0.0225 | F8: 0.02 | G8: 0.0452819 | H8: 0.03790076 | I8: 0.06
A9: =+Flujos!A9 -> 2024-06-28 | B9: 0.06 | D9: 2024-06-28 | E9: 0.0225 | F9: 0.02 | G9: 0.03918684 | H9: 0.03696481 | I9: 0.06
A10: =+Flujos!A10 -> 2024-07-28 | B10: 0.06 | D10: 2024-07-28 | E10: 0.0225 | F10: 0.02 | G10: 0.04058143 | H10: 0.03607445 | I10: 0.06
A11: =+Flujos!A11 -> 2024-08-28 | B11: 0.0576913 | D11: 2024-08-28 | E11: 0.0225 | F11: 0.02 | G11: 0.05045191 | H11: 0.03521231 | I11: 0.0576913
A12: =+Flujos!A12 -> 2024-09-28 | B12: 0.05 | D12: 2024-09-28 | E12: 0.0225 | F12: 0.02 | G12: 0.03887283 | H12: 0.0344242 | I12: 0.05
A13: =+Flujos!A13 -> 2024-10-28 | B13: 0.04939581 | D13: 2024-10-28 | E13: 0.0225 | F13: 0.02 | G13: 0.0401247 | H13: 0.0335984 | I13: 0.04939581
A14: =+Flujos!A14 -> 2024-11-28 | B14: 0.04707646 | D14: 2024-11-28 | E14: 0.0225 | F14: 0.0481799 | G14: 0.03658245 | H14: 0.03218748 | I14: 0.04707646
A15: =+Flujos!A15 -> 2024-12-28 | B15: 0.05 | D15: 2024-12-28 | E15: 0.0225 | F15: 0.06519731 | G15: 0.03264992 | H15: 0.03547163 | I15: 0.05
A16: =+Flujos!A16 -> 2025-01-28 | B16: 0.04946154 | D16: 2025-01-28 | E16: 0.0225 | F16: 0.05404855 | G16: 0.04022858 | H16: 0.03475165 | I16: 0.04946154
A17: =+Flujos!A17 -> 2025-02-28 | B17: 0.04773024 | D17: 2025-02-28 | E17: 0.0225 | F17: 0.05552384 | G17: 0.02 | H17: 0.03385536 | I17: 0.04773024
A18: =+Flujos!A18 -> 2025-03-28 | B18: 0.04 | D18: 2025-03-28 | E18: 0.0225 | F18: 0.04560578 | G18: 0.03700401 | H18: 0.03294704 | I18: 0.04
A19: =+Flujos!A19 -> 2025-04-28 | B19: 0.04 | D19: 2025-04-28 | E19: 0.0225 | F19: 0.05110572 | G19: 0.03697255 | H19: 0.03223106 | I19: 0.04
A20: =+Flujos!A20 -> 2025-05-28 | B20: 0.04 | D20: 2025-05-28 | E20: 0.0225 | F20: 0.05441911 | G20: 0.03573767 | H20: 0.03135094 | I20: 0.04
A21: =+Flujos!A21 -> 2025-06-28 | B21: 0.03 | D21: 2025-06-28 | E21: 0.0225 | F21: 0.04932755 | G21: 0.0344842 | H21: 0.03048086 | I21: 0.03
A22: =+Flujos!A22 -> 2025-07-28 | B22: 0.03 | D22: 2025-07-28 | E22: 0.0225 | F22: 0.03828694 | G22: 0.03347343 | H22: 0.02969398 | I22: 0.03
A23: =+Flujos!A23 -> 2025-08-28 | B23: 0.00717046 | D23: 2025-08-28 | E23: 0.0225 | F23: 0.04780214 | G23: 0.03227641 | H23: 0.02899448 | I23: 0.00717046
A24: =+Flujos!A24 -> 2025-09-28 | B24: 0 | D24: 2025-09-28 | E24: 0.0225 | F24: 0.04073006 | G24: 0.0311957 | H24: 0.0283583 | I24: 0
A25: =+Flujos!A25 -> 2025-10-28 | B25: 0 | D25: 2025-10-28 | E25: 0.0225 | F25: 0.03698741 | G25: 0.03018905 | H25: 0.02768718 | I25: 0
A26: =+Flujos!A26 -> 2025-11-28 | B26: 0 | D26: 2025-11-28 | E26: 0.0225 | F26: 0.04560651 | G26: 0.02851099 | H26: 0.02627252 | I26: 0
A27: =+Flujos!A27 -> 2025-12-28 | B27: 0 | D27: 2025-12-28 | E27: 0.0225 | F27: 0.0444526 | G27: 0.02808031 | H27: 0.02644326 | I27: 0
A28: =+Flujos!A28 -> 2026-01-28 | B28: 0 | D28: 2026-01-28 | E28: 0.0225 | F28: 0.0424999 | G28: 0.02719454 | H28: 0.02596366 | I28: 0
A29: =+Flujos!A29 -> 2026-02-28 | B29: 0 | D29: 2026-02-28 | E29: 0.0225 | F29: 0.04062959 | G29: 0.02034747 | H29: 0.02529136 | I29: 0
A30: =+Flujos!A30 -> 2026-03-28 | B30: 0 | D30: 2026-03-28 | E30: 0.0225 | F30: 0.01959709 | G30: 0 | H30: 0.02471879 | I30: 0
A31: =+Flujos!A31 -> 2026-04-28 | B31: 0 | D31: 2026-04-28 | E31: 0.0225 | F31: 0 | G31: 0 | H31: 0.02412413 | I31: 0
A32: =+Flujos!A32 -> 2026-05-28 | B32: 0 | D32: 2026-05-28 | E32: 0.0225 | F32: 0 | G32: 0 | H32: 0.02345249 | I32: 0
A33: =+Flujos!A33 -> 2026-06-28 | B33: 0 | D33: 2026-06-28 | E33: 0.0225 | F33: 0 | G33: 0 | H33: 0.02282981 | I33: 0
A34: =+Flujos!A34 -> 2026-07-28 | B34: 0 | D34: 2026-07-28 | E34: 0.0225 | F34: 0 | G34: 0 | H34: 0.00404618 | I34: 0
A35: =+Flujos!A35 -> 2026-08-28 | B35: 0 | D35: 2026-08-28 | E35: 0.0225 | F35: 0 | G35: 0 | H35: 0 | I35: 0
A36: =+Flujos!A36 -> 2026-09-28 | B36: 0 | D36: 2026-09-28 | E36: 0.0225 | F36: 0 | G36: 0 | H36: 0 | I36: 0
A37: =+Flujos!A37 -> 2026-10-28 | B37: 0 | D37: 2026-10-28 | E37: 0.0225 | F37: 0 | G37: 0 | H37: 0 | I37: 0
A38: =+Flujos!A38 -> 2026-11-28 | B38: 0 | D38: 2026-11-28 | E38: 0.0225 | F38: 0 | G38: 0 | H38: 0 | I38: 0
A39: =+Flujos!A39 -> 2026-12-28 | B39: 0 | D39: 2026-12-28 | E39: 0.09946517 | F39: 0 | G39: 0 | H39: 0 | I39: 0
A40: =+Flujos!A40 -> 2027-01-28 | B40: 0 | D40: 2027-01-28 | E40: 0.09053483 | F40: 0 | G40: 0 | H40: 0 | I40: 0
A41: =+Flujos!A41 -> 2027-02-28 | B41: 0 | D41: 2027-02-28 | E41: 0 | F41: 0 | G41: 0 | H41: 0 | I41: 0
A42: =+Flujos!A42 -> 2027-03-28 | B42: 0 | D42: 2027-03-28 | E42: 0 | F42: 0 | G42: 0 | H42: 0 | I42: 0
A43: =+Flujos!A43 -> 2027-04-28 | B43: 0 | D43: 2027-04-28 | E43: 0 | F43: 0 | G43: 0 | H43: 0 | I43: 0
A44: =+Flujos!A44 -> 2027-05-28 | B44: 0 | D44: 2027-05-28 | E44: 0 | F44: 0 | G44: 0 | H44: 0 | I44: 0
A45: =+Flujos!A45 -> 2027-06-28 | B45: 0 | D45: 2027-06-28 | E45: 0 | F45: 0 | G45: 0 | H45: 0 | I45: 0
A46: =+Flujos!A46 -> 2027-07-28 | B46: 0 | D46: 2027-07-28 | E46: 0 | F46: 0 | G46: 0 | H46: 0 | I46: 0
A47: =+Flujos!A47 -> 2027-08-28 | B47: 0 | D47: 2027-08-28 | E47: 0 | F47: 0 | G47: 0 | H47: 0 | I47: 0
A48: =+Flujos!A48 -> 2027-09-28 | B48: 0 | D48: 2027-09-28 | E48: 0 | F48: 0 | G48: 0 | H48: 0 | I48: 0
A49: =+Flujos!A49 -> 2027-10-28 | B49: 0 | D49: 2027-10-28 | E49: 0 | F49: 0 | G49: 0 | H49: 0 | I49: 0
A50: =+Flujos!A50 -> 2027-11-28 | B50: 0 | D50: 2027-11-28 | E50: 0 | F50: 0 | G50: 0 | H50: 0 | I50: 0
A51: =+Flujos!A51 -> 2027-12-28 | B51: 0 | D51: 2027-12-28 | E51: 0 | F51: 0 | G51: 0 | H51: 0 | I51: 0
A52: =+Flujos!A52 -> 2028-01-28 | B52: 0 | D52: 2028-01-28 | E52: 0 | F52: 0 | G52: 0 | H52: 0 | I52: 0
A53: =+Flujos!A53 -> 2028-02-28 | B53: 0 | D53: 2028-02-28 | E53: 0 | F53: 0 | G53: 0 | H53: 0 | I53: 0
A54: =+Flujos!A54 -> 2028-03-28 | B54: 0 | D54: 2028-03-28 | E54: 0 | F54: 0 | G54: 0 | H54: 0 | I54: 0
A55: =+Flujos!A55 -> 2028-04-28 | B55: 0 | D55: 2028-04-28 | E55: 0 | F55: 0 | G55: 0 | H55: 0 | I55: 0
A56: =+Flujos!A56 -> 2028-05-28 | B56: 0 | D56: 2028-05-28 | E56: 0 | F56: 0 | G56: 0 | H56: 0 | I56: 0
A57: =+Flujos!A57 -> 2028-06-28 | B57: 0 | D57: 2028-06-28 | E57: 0 | F57: 0 | G57: 0 | H57: 0 | I57: 0
A58: =+Flujos!A58 -> 2028-07-28 | B58: 0 | D58: 2028-07-28 | E58: 0 | F58: 0 | G58: 0 | H58: 0 | I58: 0
A59: =+Flujos!A59 -> 2028-08-28 | B59: 0 | D59: 2028-08-28 | E59: 0 | F59: 0 | G59: 0 | H59: 0 | I59: 0
A60: =+Flujos!A60 -> 2028-09-28 | B60: 0 | D60: 2028-09-28 | E60: 0 | F60: 0 | G60: 0 | H60: 0 | I60: 0
A61: =+Flujos!A61 -> 2028-10-28 | B61: 0 | D61: 2028-10-28 | E61: 0 | F61: 0 | G61: 0 | H61: 0 | I61: 0
A62: =+Flujos!A62 -> 2028-11-28 | B62: 0 | D62: 2028-11-28 | E62: 0 | F62: 0 | G62: 0 | H62: 0 | I62: 0
A63: =+Flujos!A63 -> 2028-12-28 | B63: 0 | D63: 2028-12-28 | E63: 0 | F63: 0 | G63: 0 | H63: 0 | I63: 0
A64: =+Flujos!A64 -> 2029-01-28 | B64: 0 | D64: 2029-01-28 | E64: 0 | F64: 0 | G64: 0 | H64: 0 | I64: 0
A65: =+Flujos!A65 -> 2029-02-28 | B65: 0 | D65: 2029-02-28 | E65: 0 | F65: 0 | G65: 0 | H65: 0 | I65: 0
A66: =+Flujos!A66 -> 2029-03-28 | B66: 0 | D66: 2029-03-28 | E66: 0 | F66: 0 | G66: 0 | H66: 0 | I66: 0
A67: =+Flujos!A67 -> 2029-04-28 | B67: 0 | D67: 2029-04-28 | E67: 0 | F67: 0 | G67: 0 | H67: 0 | I67: 0
A68: =+Flujos!A68 -> 2029-05-28 | B68: =+VLOOKUP(A68,$D$2:$M$182,MATCH($B$2,$D$2:$M$2,0),FALSE) -> 0 | D68: =+A68 -> 2029-05-28 | E68: 0 | F68: 0 | G68: 0 | H68: 0 | I68: 0
A69: =+Flujos!A69 -> 2029-06-28 | B69: 0 | D69: 2029-06-28 | E69: 0 | F69: 0 | G69: 0 | H69: 0 | I69: 0
A70: =+Flujos!A70 -> 2029-07-28 | B70: 0 | D70: 2029-07-28 | E70: 0 | F70: 0 | G70: 0 | H70: 0 | I70: 0
A71: =+Flujos!A71 -> 2029-08-28 | B71: 0 | D71: 2029-08-28 | E71: 0 | F71: 0 | G71: 0 | H71: 0 | I71: 0
A72: =+Flujos!A72 -> 2029-09-28 | B72: 0 | D72: 2029-09-28 | E72: 0 | F72: 0 | G72: 0 | H72: 0 | I72: 0
A73: =+Flujos!A73 -> 2029-10-28 | B73: 0 | D73: 2029-10-28 | E73: 0 | F73: 0 | G73: 0 | H73: 0 | I73: 0
A74: =+Flujos!A74 -> 2029-11-28 | B74: 0 | D74: 2029-11-28 | E74: 0 | F74: 0 | G74: 0 | H74: 0 | I74: 0
A75: =+Flujos!A75 -> 2029-12-28 | B75: 0 | D75: 2029-12-28 | E75: 0 | F75: 0 | G75: 0 | H75: 0 | I75: 0
A76: =+Flujos!A76 -> 2030-01-28 | B76: 0 | D76: 2030-01-28 | E76: 0 | F76: 0 | G76: 0 | H76: 0 | I76: 0
A77: =+Flujos!A77 -> 2030-02-28 | B77: 0 | D77: 2030-02-28 | E77: 0 | F77: 0 | G77: 0 | H77: 0 | I77: 0
A78: =+Flujos!A78 -> 2030-03-28 | B78: 0 | D78: 2030-03-28 | E78: 0 | F78: 0 | G78: 0 | H78: 0 | I78: 0
A79: =+Flujos!A79 -> 2030-04-28 | B79: 0 | D79: 2030-04-28 | E79: 0 | F79: 0 | G79: 0 | H79: 0 | I79: 0
A80: =+Flujos!A80 -> 2030-05-28 | B80: 0 | D80: 2030-05-28 | E80: 0 | F80: 0 | G80: 0 | H80: 0 | I80: 0
A81: =+Flujos!A81 -> 2030-06-28 | B81: 0 | D81: 2030-06-28 | E81: 0 | F81: 0 | G81: 0 | H81: 0 | I81: 0
A82: =+Flujos!A82 -> 2030-07-28 | B82: 0 | D82: 2030-07-28 | E82: 0 | F82: 0 | G82: 0 | H82: 0 | I82: 0
A83: =+Flujos!A83 -> 2030-08-28 | B83: 0 | D83: 2030-08-28 | E83: 0 | F83: 0 | G83: 0 | H83: 0 | I83: 0
A84: =+Flujos!A84 -> 2030-09-28 | B84: 0 | D84: 2030-09-28 | E84: 0 | F84: 0 | G84: 0 | H84: 0 | I84: 0
A85: =+Flujos!A85 -> 2030-10-28 | B85: 0 | D85: 2030-10-28 | E85: 0 | F85: 0 | G85: 0 | H85: 0 | I85: 0
A86: =+Flujos!A86 -> 2030-11-28 | B86: 0 | D86: 2030-11-28 | E86: 0 | F86: 0 | G86: 0 | H86: 0 | I86: 0
A87: =+Flujos!A87 -> 2030-12-28 | B87: 0 | D87: 2030-12-28 | E87: 0 | F87: 0 | G87: 0 | H87: 0 | I87: 0
A88: =+Flujos!A88 -> 2031-01-28 | B88: 0 | D88: 2031-01-28 | E88: 0 | F88: 0 | G88: 0 | H88: 0 | I88: 0
A89: =+Flujos!A89 -> 2031-02-28 | B89: 0 | D89: 2031-02-28 | E89: 0 | F89: 0 | G89: 0 | H89: 0 | I89: 0
A90: =+Flujos!A90 -> 2031-03-28 | B90: 0 | D90: 2031-03-28 | E90: 0 | F90: 0 | G90: 0 | H90: 0 | I90: 0
A91: =+Flujos!A91 -> 2031-04-28 | B91: 0 | D91: 2031-04-28 | E91: 0 | F91: 0 | G91: 0 | H91: 0 | I91: 0
A92: =+Flujos!A92 -> 2031-05-28 | B92: 0 | D92: 2031-05-28 | E92: 0 | F92: 0 | G92: 0 | H92: 0 | I92: 0
A93: =+Flujos!A93 -> 2031-06-28 | B93: 0 | D93: 2031-06-28 | E93: 0 | F93: 0 | G93: 0 | H93: 0 | I93: 0
A94: =+Flujos!A94 -> 2031-07-28 | B94: 0 | D94: 2031-07-28 | E94: 0 | F94: 0 | G94: 0 | H94: 0 | I94: 0
A95: =+Flujos!A95 -> 2031-08-28 | B95: 0 | D95: 2031-08-28 | E95: 0 | F95: 0 | G95: 0 | H95: 0 | I95: 0
A96: =+Flujos!A96 -> 2031-09-28 | B96: 0 | D96: 2031-09-28 | E96: 0 | F96: 0 | G96: 0 | H96: 0 | I96: 0
A97: =+Flujos!A97 -> 2031-10-28 | B97: 0 | D97: 2031-10-28 | E97: 0 | F97: 0 | G97: 0 | H97: 0 | I97: 0
A98: =+Flujos!A98 -> 2031-11-28 | B98: 0 | D98: 2031-11-28 | E98: 0 | F98: 0 | G98: 0 | H98: 0 | I98: 0
A99: =+Flujos!A99 -> 2031-12-28 | B99: 0 | D99: 2031-12-28 | E99: 0 | F99: 0 | G99: 0 | H99: 0 | I99: 0
A100: =+Flujos!A100 -> 2032-01-28 | B100: 0 | D100: 2032-01-28 | E100: 0 | F100: 0 | G100: 0 | H100: 0 | I100: 0
A101: =+Flujos!A101 -> 2032-02-28 | B101: 0 | D101: 2032-02-28 | E101: 0 | F101: 0 | G101: 0 | H101: 0 | I101: 0
A102: =+Flujos!A102 -> 2032-03-28 | B102: 0 | D102: 2032-03-28 | E102: 0 | F102: 0 | G102: 0 | H102: 0 | I102: 0
A103: =+Flujos!A103 -> 2032-04-28 | B103: 0 | D103: 2032-04-28 | E103: 0 | F103: 0 | G103: 0 | H103: 0 | I103: 0
A104: =+Flujos!A104 -> 2032-05-28 | B104: 0 | D104: 2032-05-28 | E104: 0 | F104: 0 | G104: 0 | H104: 0 | I104: 0
A105: =+Flujos!A105 -> 2032-06-28 | B105: 0 | D105: 2032-06-28 | E105: 0 | F105: 0 | G105: 0 | H105: 0 | I105: 0
A106: =+Flujos!A106 -> 2032-07-28 | B106: 0 | D106: 2032-07-28 | E106: 0 | F106: 0 | G106: 0 | H106: 0 | I106: 0
A107: =+Flujos!A107 -> 2032-08-28 | B107: 0 | D107: 2032-08-28 | E107: 0 | F107: 0 | G107: 0 | H107: 0 | I107: 0
A108: =+Flujos!A108 -> 2032-09-28 | B108: 0 | D108: 2032-09-28 | E108: 0 | F108: 0 | G108: 0 | H108: 0 | I108: 0
A109: =+Flujos!A109 -> 2032-10-28 | B109: 0 | D109: 2032-10-28 | E109: 0 | F109: 0 | G109: 0 | H109: 0 | I109: 0
A110: =+Flujos!A110 -> 2032-11-28 | B110: 0 | D110: 2032-11-28 | E110: 0 | F110: 0 | G110: 0 | H110: 0 | I110: 0
A111: =+Flujos!A111 -> 2032-12-28 | B111: 0 | D111: 2032-12-28 | E111: 0 | F111: 0 | G111: 0 | H111: 0 | I111: 0
A112: =+Flujos!A112 -> 2033-01-28 | B112: 0 | D112: 2033-01-28 | E112: 0 | F112: 0 | G112: 0 | H112: 0 | I112: 0
A113: =+Flujos!A113 -> 2033-02-28 | B113: 0 | D113: 2033-02-28 | E113: 0 | F113: 0 | G113: 0 | H113: 0 | I113: 0
A114: =+Flujos!A114 -> 2033-03-28 | B114: 0 | D114: 2033-03-28 | E114: 0 | F114: 0 | G114: 0 | H114: 0 | I114: 0
A115: =+Flujos!A115 -> 2033-04-28 | B115: 0 | D115: 2033-04-28 | E115: 0 | F115: 0 | G115: 0 | H115: 0 | I115: 0
A116: =+Flujos!A116 -> 2033-05-28 | B116: 0 | D116: 2033-05-28 | E116: 0 | F116: 0 | G116: 0 | H116: 0 | I116: 0
A117: =+Flujos!A117 -> 2033-06-28 | B117: 0 | D117: 2033-06-28 | E117: 0 | F117: 0 | G117: 0 | H117: 0 | I117: 0
A118: =+Flujos!A118 -> 2033-07-28 | B118: 0 | D118: 2033-07-28 | E118: 0 | F118: 0 | G118: 0 | H118: 0 | I118: 0
A119: =+Flujos!A119 -> 2033-08-28 | B119: 0 | D119: 2033-08-28 | E119: 0 | F119: 0 | G119: 0 | H119: 0 | I119: 0
A120: =+Flujos!A120 -> 2033-09-28 | B120: 0 | D120: 2033-09-28 | E120: 0 | F120: 0 | G120: 0 | H120: 0 | I120: 0
A121: =+Flujos!A121 -> 2033-10-28 | B121: 0 | D121: 2033-10-28 | E121: 0 | F121: 0 | G121: 0 | H121: 0 | I121: 0
A122: =+Flujos!A122 -> 2033-11-28 | B122: 0 | D122: 2033-11-28 | E122: 0 | F122: 0 | G122: 0 | H122: 0 | I122: 0
A123: =+Flujos!A123 -> 2033-12-28 | B123: 0 | D123: 2033-12-28 | E123: 0 | F123: 0 | G123: 0 | H123: 0 | I123: 0
A124: =+Flujos!A124 -> 2034-01-28 | B124: 0 | D124: 2034-01-28 | E124: 0 | F124: 0 | G124: 0 | H124: 0 | I124: 0
A125: =+Flujos!A125 -> 2034-02-28 | B125: 0 | D125: 2034-02-28 | E125: 0 | F125: 0 | G125: 0 | H125: 0 | I125: 0
A126: =+Flujos!A126 -> 2034-03-28 | B126: 0 | D126: 2034-03-28 | E126: 0 | F126: 0 | G126: 0 | H126: 0 | I126: 0
A127: =+Flujos!A127 -> 2034-04-28 | B127: 0 | D127: 2034-04-28 | E127: 0 | F127: 0 | G127: 0 | H127: 0 | I127: 0
A128: =+Flujos!A128 -> 2034-05-28 | B128: 0 | D128: 2034-05-28 | E128: 0 | F128: 0 | G128: 0 | H128: 0 | I128: 0
A129: =+Flujos!A129 -> 2034-06-28 | B129: 0 | D129: 2034-06-28 | E129: 0 | F129: 0 | G129: 0 | H129: 0 | I129: 0
A130: =+Flujos!A130 -> 2034-07-28 | B130: 0 | D130: 2034-07-28 | E130: 0 | F130: 0 | G130: 0 | H130: 0 | I130: 0
A131: =+Flujos!A131 -> 2034-08-28 | B131: 0 | D131: 2034-08-28 | E131: 0 | F131: 0 | G131: 0 | H131: 0 | I131: 0
A132: =+Flujos!A132 -> 2034-09-28 | B132: =+VLOOKUP(A132,$D$2:$M$182,MATCH($B$2,$D$2:$M$2,0),FALSE) -> 0 | D132: =+A132 -> 2034-09-28 | E132: 0 | F132: 0 | G132: 0 | H132: 0 | I132: 0
A133: =+Flujos!A133 -> 2034-10-28 | B133: 0 | D133: 2034-10-28 | E133: 0 | F133: 0 | G133: 0 | H133: 0 | I133: 0
A134: =+Flujos!A134 -> 2034-11-28 | B134: 0 | D134: 2034-11-28 | E134: 0 | F134: 0 | G134: 0 | H134: 0 | I134: 0
A135: =+Flujos!A135 -> 2034-12-28 | B135: 0 | D135: 2034-12-28 | E135: 0 | F135: 0 | G135: 0 | H135: 0 | I135: 0
A136: =+Flujos!A136 -> 2035-01-28 | B136: 0 | D136: 2035-01-28 | E136: 0 | F136: 0 | G136: 0 | H136: 0 | I136: 0
A137: =+Flujos!A137 -> 2035-02-28 | B137: 0 | D137: 2035-02-28 | E137: 0 | F137: 0 | G137: 0 | H137: 0 | I137: 0
A138: =+Flujos!A138 -> 2035-03-28 | B138: 0 | D138: 2035-03-28 | E138: 0 | F138: 0 | G138: 0 | H138: 0 | I138: 0
A139: =+Flujos!A139 -> 2035-04-28 | B139: 0 | D139: 2035-04-28 | E139: 0 | F139: 0 | G139: 0 | H139: 0 | I139: 0
A140: =+Flujos!A140 -> 2035-05-28 | B140: 0 | D140: 2035-05-28 | E140: 0 | F140: 0 | G140: 0 | H140: 0 | I140: 0
A141: =+Flujos!A141 -> 2035-06-28 | B141: 0 | D141: 2035-06-28 | E141: 0 | F141: 0 | G141: 0 | H141: 0 | I141: 0
A142: =+Flujos!A142 -> 2035-07-28 | B142: 0 | D142: 2035-07-28 | E142: 0 | F142: 0 | G142: 0 | H142: 0 | I142: 0
A143: =+Flujos!A143 -> 2035-08-28 | B143: 0 | D143: 2035-08-28 | E143: 0 | F143: 0 | G143: 0 | H143: 0 | I143: 0
A144: =+Flujos!A144 -> 2035-09-28 | B144: 0 | D144: 2035-09-28 | E144: 0 | F144: 0 | G144: 0 | H144: 0 | I144: 0
A145: =+Flujos!A145 -> 2035-10-28 | B145: 0 | D145: 2035-10-28 | E145: 0 | F145: 0 | G145: 0 | H145: 0 | I145: 0
A146: =+Flujos!A146 -> 2035-11-28 | B146: 0 | D146: 2035-11-28 | E146: 0 | F146: 0 | G146: 0 | H146: 0 | I146: 0
A147: =+Flujos!A147 -> 2035-12-28 | B147: 0 | D147: 2035-12-28 | E147: 0 | F147: 0 | G147: 0 | H147: 0 | I147: 0
A148: =+Flujos!A148 -> 2036-01-28 | B148: 0 | D148: 2036-01-28 | E148: 0 | F148: 0 | G148: 0 | H148: 0 | I148: 0
A149: =+Flujos!A149 -> 2036-02-28 | B149: 0 | D149: 2036-02-28 | E149: 0 | F149: 0 | G149: 0 | H149: 0 | I149: 0
A150: =+Flujos!A150 -> 2036-03-28 | B150: 0 | D150: 2036-03-28 | E150: 0 | F150: 0 | G150: 0 | H150: 0 | I150: 0
A151: =+Flujos!A151 -> 2036-04-28 | B151: 0 | D151: 2036-04-28 | E151: 0 | F151: 0 | G151: 0 | H151: 0 | I151: 0
A152: =+Flujos!A152 -> 2036-05-28 | B152: 0 | D152: 2036-05-28 | E152: 0 | F152: 0 | G152: 0 | H152: 0 | I152: 0
A153: =+Flujos!A153 -> 2036-06-28 | B153: 0 | D153: 2036-06-28 | E153: 0 | F153: 0 | G153: 0 | H153: 0 | I153: 0
A154: =+Flujos!A154 -> 2036-07-28 | B154: 0 | D154: 2036-07-28 | E154: 0 | F154: 0 | G154: 0 | H154: 0 | I154: 0
A155: =+Flujos!A155 -> 2036-08-28 | B155: 0 | D155: 2036-08-28 | E155: 0 | F155: 0 | G155: 0 | H155: 0 | I155: 0
A156: =+Flujos!A156 -> 2036-09-28 | B156: 0 | D156: 2036-09-28 | E156: 0 | F156: 0 | G156: 0 | H156: 0 | I156: 0
A157: =+Flujos!A157 -> 2036-10-28 | B157: 0 | D157: 2036-10-28 | E157: 0 | F157: 0 | G157: 0 | H157: 0 | I157: 0
A158: =+Flujos!A158 -> 2036-11-28 | B158: 0 | D158: 2036-11-28 | E158: 0 | F158: 0 | G158: 0 | H158: 0 | I158: 0
A159: =+Flujos!A159 -> 2036-12-28 | B159: 0 | D159: 2036-12-28 | E159: 0 | F159: 0 | G159: 0 | H159: 0 | I159: 0
A160: =+Flujos!A160 -> 2037-01-28 | B160: 0 | D160: 2037-01-28 | E160: 0 | F160: 0 | G160: 0 | H160: 0 | I160: 0
A161: =+Flujos!A161 -> 2037-02-28 | B161: 0 | D161: 2037-02-28 | E161: 0 | F161: 0 | G161: 0 | H161: 0 | I161: 0
A162: =+Flujos!A162 -> 2037-03-28 | B162: 0 | D162: 2037-03-28 | E162: 0 | F162: 0 | G162: 0 | H162: 0 | I162: 0
A163: =+Flujos!A163 -> 2037-04-28 | B163: 0 | D163: 2037-04-28 | E163: 0 | F163: 0 | G163: 0 | H163: 0 | I163: 0
A164: =+Flujos!A164 -> 2037-05-28 | B164: 0 | D164: 2037-05-28 | E164: 0 | F164: 0 | G164: 0 | H164: 0 | I164: 0
A165: =+Flujos!A165 -> 2037-06-28 | B165: 0 | D165: 2037-06-28 | E165: 0 | F165: 0 | G165: 0 | H165: 0 | I165: 0
A166: =+Flujos!A166 -> 2037-07-28 | B166: 0 | D166: 2037-07-28 | E166: 0 | F166: 0 | G166: 0 | H166: 0 | I166: 0
A167: =+Flujos!A167 -> 2037-08-28 | B167: 0 | D167: 2037-08-28 | E167: 0 | F167: 0 | G167: 0 | H167: 0 | I167: 0
A168: =+Flujos!A168 -> 2037-09-28 | B168: 0 | D168: 2037-09-28 | E168: 0 | F168: 0 | G168: 0 | H168: 0 | I168: 0
A169: =+Flujos!A169 -> 2037-10-28 | B169: 0 | D169: 2037-10-28 | E169: 0 | F169: 0 | G169: 0 | H169: 0 | I169: 0
A170: =+Flujos!A170 -> 2037-11-28 | B170: 0 | D170: 2037-11-28 | E170: 0 | F170: 0 | G170: 0 | H170: 0 | I170: 0
A171: =+Flujos!A171 -> 2037-12-28 | B171: 0 | D171: 2037-12-28 | E171: 0 | F171: 0 | G171: 0 | H171: 0 | I171: 0
A172: =+Flujos!A172 -> 2038-01-28 | B172: 0 | D172: 2038-01-28 | E172: 0 | F172: 0 | G172: 0 | H172: 0 | I172: 0
A173: =+Flujos!A173 -> 2038-02-28 | B173: 0 | D173: 2038-02-28 | E173: 0 | F173: 0 | G173: 0 | H173: 0 | I173: 0
A174: =+Flujos!A174 -> 2038-03-28 | B174: 0 | D174: 2038-03-28 | E174: 0 | F174: 0 | G174: 0 | H174: 0 | I174: 0
A175: =+Flujos!A175 -> 2038-04-28 | B175: 0 | D175: 2038-04-28 | E175: 0 | F175: 0 | G175: 0 | H175: 0 | I175: 0
A176: =+Flujos!A176 -> 2038-05-28 | B176: 0 | D176: 2038-05-28 | E176: 0 | F176: 0 | G176: 0 | H176: 0 | I176: 0
A177: =+Flujos!A177 -> 2038-06-28 | B177: 0 | D177: 2038-06-28 | E177: 0 | F177: 0 | G177: 0 | H177: 0 | I177: 0
A178: =+Flujos!A178 -> 2038-07-28 | B178: 0 | D178: 2038-07-28 | E178: 0 | F178: 0 | G178: 0 | H178: 0 | I178: 0
A179: =+Flujos!A179 -> 2038-08-28 | B179: 0 | D179: 2038-08-28 | E179: 0 | F179: 0 | G179: 0 | H179: 0 | I179: 0
A180: =+Flujos!A180 -> 2038-09-28 | B180: 0 | D180: 2038-09-28 | E180: 0 | F180: 0 | G180: 0 | H180: 0 | I180: 0
A181: =+Flujos!A181 -> 2038-10-28 | B181: 0 | D181: 2038-10-28 | E181: 0 | F181: 0 | G181: 0 | H181: 0 | I181: 0
A182: =+Flujos!A182 -> 2038-11-28 | B182: 0 | D182: 2038-11-28 | E182: 0 | F182: 0 | G182: 0 | H182: 0 | I182: 0
E183: =SUM(E3:E182) -> 1 | F183: 1 | G183: 1 | H183: 1 | I183: 1 | J183: 0 | K183: 0 | L183: 0 | M183: =SUM(M3:M182) -> 0
E184: =1-E183 -> 0 | F184: 0 | G184: 0 | H184: 0 | I184: 0 | J184: 1 | K184: 1 | L184: 1 | M184: =1-M183 -> 1

Sheet Tablas
A1: FECHA | B1: =+CALCULADORA!C9 -> TIV V-6 A | C1: Valoración
A2: =+'Tabla de Amortizacion'!A3 -> 2023-12-28 | B2: =+ROUND(C2,8) -> 0.03975884 | C2: =+VLOOKUP(A2,'Tabla de Amortizacion'!$D$2:$M$182,MATCH(Tablas!$B$1,'Tabla de Amortizacion'!$D$2:$M$2,0)) -> 0.03975884 | E2: 0
A3: =EDATE(A2,1) -> 2024-01-28 | B3: =+ROUND(C3,8) -> 0.05171535 | C3: =+VLOOKUP(A3,'Tabla de Amortizacion'!$D$2:$M$182,MATCH(Tablas!$B$1,'Tabla de Amortizacion'!$D$2:$M$2,0)) -> 0.05171535 | E3: 0
A4: 2024-02-28 | B4: 0.065 | C4: =+VLOOKUP(A4,'Tabla de Amortizacion'!$D$2:$M$182,MATCH(Tablas!$B$1,'Tabla de Amortizacion'!$D$2:$M$2,0)) -> 0.065 | E4: 0
A5: 2024-03-28 | B5: 0.065 | C5: =+VLOOKUP(A5,'Tabla de Amortizacion'!$D$2:$M$182,MATCH(Tablas!$B$1,'Tabla de Amortizacion'!$D$2:$M$2,0)) -> 0.065 | E5: 0
A6: 2024-04-28 | B6: 0.06 | C6: =+VLOOKUP(A6,'Tabla de Amortizacion'!$D$2:$M$182,MATCH(Tablas!$B$1,'Tabla de Amortizacion'!$D$2:$M$2,0)) -> 0.06 | E6: 0
A7: 2024-05-28 | B7: 0.06 | C7: =+VLOOKUP(A7,'Tabla de Amortizacion'!$D$2:$M$182,MATCH(Tablas!$B$1,'Tabla de Amortizacion'!$D$2:$M$2,0)) -> 0.06 | E7: 0
A8: 2024-06-28 | B8: 0.06 | C8: =+VLOOKUP(A8,'Tabla de Amortizacion'!$D$2:$M$182,MATCH(Tablas!$B$1,'Tabla de Amortizacion'!$D$2:$M$2,0)) -> 0.06 | E8: 0
A9: 2024-07-28 | B9: 0.06 | C9: =+VLOOKUP(A9,'Tabla de Amortizacion'!$D$2:$M$182,MATCH(Tablas!$B$1,'Tabla de Amortizacion'!$D$2:$M$2,0)) -> 0.06 | E9: 0
A10: 2024-08-28 | B10: 0.0576913 | C10: =+VLOOKUP(A10,'Tabla de Amortizacion'!$D$2:$M$182,MATCH(Tablas!$B$1,'Tabla de Amortizacion'!$D$2:$M$2,0)) -> 0.0576913 | E10: 0
A11: 2024-09-28 | B11: 0.05 | C11: =+VLOOKUP(A11,'Tabla de Amortizacion'!$D$2:$M$182,MATCH(Tablas!$B$1,'Tabla de Amortizacion'!$D$2:$M$2,0)) -> 0.05 | E11: 0
A12: 2024-10-28 | B12: 0.04939581 | C12: =+VLOOKUP(A12,'Tabla de Amortizacion'!$D$2:$M$182,MATCH(Tablas!$B$1,'Tabla de Amortizacion'!$D$2:$M$2,0)) -> 0.04939581 | E12: 0
A13: 2024-11-28 | B13: 0.04707646 | C13: =+VLOOKUP(A13,'Tabla de Amortizacion'!$D$2:$M$182,MATCH(Tablas!$B$1,'Tabla de Amortizacion'!$D$2:$M$2,0)) -> 0.04707646 | E13: 0
A14: 2024-12-28 | B14: 0.05 | C14: =+VLOOKUP(A14,'Tabla de Amortizacion'!$D$2:$M$182,MATCH(Tablas!$B$1,'Tabla de Amortizacion'!$D$2:$M$2,0)) -> 0.05 | E14: 0
A15: 2025-01-28 | B15: 0.04946154 | C15: =+VLOOKUP(A15,'Tabla de Amortizacion'!$D$2:$M$182,MATCH(Tablas!$B$1,'Tabla de Amortizacion'!$D$2:$M$2,0)) -> 0.04946154 | E15: 0
A16: 2025-02-28 | B16: 0.04773024 | C16: =+VLOOKUP(A16,'Tabla de Amortizacion'!$D$2:$M$182,MATCH(Tablas!$B$1,'Tabla de Amortizacion'!$D$2:$M$2,0)) -> 0.04773024 | E16: 0
A17: 2025-03-28 | B17: 0.04 | C17: =+VLOOKUP(A17,'Tabla de Amortizacion'!$D$2:$M$182,MATCH(Tablas!$B$1,'Tabla de Amortizacion'!$D$2:$M$2,0)) -> 0.04 | E17: 0
A18: 2025-04-28 | B18: 0.04 | C18: =+VLOOKUP(A18,'Tabla de Amortizacion'!$D$2:$M$182,MATCH(Tablas!$B$1,'Tabla de Amortizacion'!$D$2:$M$2,0)) -> 0.04 | E18: 0
A19: 2025-05-28 | B19: 0.04 | C19: =+VLOOKUP(A19,'Tabla de Amortizacion'!$D$2:$M$182,MATCH(Tablas!$B$1,'Tabla de Amortizacion'!$D$2:$M$2,0)) -> 0.04 | E19: 0
A20: 2025-06-28 | B20: 0.03 | C20: =+VLOOKUP(A20,'Tabla de Amortizacion'!$D$2:$M$182,MATCH(Tablas!$B$1,'Tabla de Amortizacion'!$D$2:$M$2,0)) -> 0.03 | E20: 0
A21: 2025-07-28 | B21: 0.03 | C21: =+VLOOKUP(A21,'Tabla de Amortizacion'!$D$2:$M$182,MATCH(Tablas!$B$1,'Tabla de Amortizacion'!$D$2:$M$2,0)) -> 0.03 | E21: 0
A22: 2025-08-28 | B22: 0.00717046 | C22: =+VLOOKUP(A22,'Tabla de Amortizacion'!$D$2:$M$182,MATCH(Tablas!$B$1,'Tabla de Amortizacion'!$D$2:$M$2,0)) -> 0.00717046 | E22: 0
A23: 2025-09-28 | B23: 0 | C23: =+VLOOKUP(A23,'Tabla de Amortizacion'!$D$2:$M$182,MATCH(Tablas!$B$1,'Tabla de Amortizacion'!$D$2:$M$2,0)) -> 0 | E23: 0
A24: 2025-10-28 | B24: 0 | C24: =+VLOOKUP(A24,'Tabla de Amortizacion'!$D$2:$M$182,MATCH(Tablas!$B$1,'Tabla de Amortizacion'!$D$2:$M$2,0)) -> 0 | E24: 0
A25: 2025-11-28 | B25: 0 | C25: =+VLOOKUP(A25,'Tabla de Amortizacion'!$D$2:$M$182,MATCH(Tablas!$B$1,'Tabla de Amortizacion'!$D$2:$M$2,0)) -> 0 | E25: 0
A26: 2025-12-28 | B26: 0 | C26: =+VLOOKUP(A26,'Tabla de Amortizacion'!$D$2:$M$182,MATCH(Tablas!$B$1,'Tabla de Amortizacion'!$D$2:$M$2,0)) -> 0 | E26: 0
A27: 2026-01-28 | B27: 0 | C27: =+VLOOKUP(A27,'Tabla de Amortizacion'!$D$2:$M$182,MATCH(Tablas!$B$1,'Tabla de Amortizacion'!$D$2:$M$2,0)) -> 0 | E27: 0
A28: 2026-02-28 | B28: 0 | C28: =+VLOOKUP(A28,'Tabla de Amortizacion'!$D$2:$M$182,MATCH(Tablas!$B$1,'Tabla de Amortizacion'!$D$2:$M$2,0)) -> 0 | E28: 0
A29: 2026-03-28 | B29: 0 | C29: =+VLOOKUP(A29,'Tabla de Amortizacion'!$D$2:$M$182,MATCH(Tablas!$B$1,'Tabla de Amortizacion'!$D$2:$M$2,0)) -> 0 | E29: 0
A30: 2026-04-28 | B30: 0 | C30: =+VLOOKUP(A30,'Tabla de Amortizacion'!$D$2:$M$182,MATCH(Tablas!$B$1,'Tabla de Amortizacion'!$D$2:$M$2,0)) -> 0 | E30: 0
A31: 2026-05-28 | B31: 0 | C31: =+VLOOKUP(A31,'Tabla de Amortizacion'!$D$2:$M$182,MATCH(Tablas!$B$1,'Tabla de Amortizacion'!$D$2:$M$2,0)) -> 0 | E31: 0
A32: 2026-06-28 | B32: 0 | C32: =+VLOOKUP(A32,'Tabla de Amortizacion'!$D$2:$M$182,MATCH(Tablas!$B$1,'Tabla de Amortizacion'!$D$2:$M$2,0)) -> 0 | E32: 0
A33: 2026-07-28 | B33: 0 | C33: =+VLOOKUP(A33,'Tabla de Amortizacion'!$D$2:$M$182,MATCH(Tablas!$B$1,'Tabla de Amortizacion'!$D$2:$M$2,0)) -> 0 | E33: 0
A34: 2026-08-28 | B34: 0 | C34: =+VLOOKUP(A34,'Tabla de Amortizacion'!$D$2:$M$182,MATCH(Tablas!$B$1,'Tabla de Amortizacion'!$D$2:$M$2,0)) -> 0 | E34: 0
A35: 2026-09-28 | B35: 0 | C35: =+VLOOKUP(A35,'Tabla de Amortizacion'!$D$2:$M$182,MATCH(Tablas!$B$1,'Tabla de Amortizacion'!$D$2:$M$2,0)) -> 0 | E35: 0
A36: 2026-10-28 | B36: 0 | C36: =+VLOOKUP(A36,'Tabla de Amortizacion'!$D$2:$M$182,MATCH(Tablas!$B$1,'Tabla de Amortizacion'!$D$2:$M$2,0)) -> 0 | E36: 0
A37: 2026-11-28 | B37: 0 | C37: =+VLOOKUP(A37,'Tabla de Amortizacion'!$D$2:$M$182,MATCH(Tablas!$B$1,'Tabla de Amortizacion'!$D$2:$M$2,0)) -> 0 | E37: 0
A38: 2026-12-28 | B38: 0 | C38: =+VLOOKUP(A38,'Tabla de Amortizacion'!$D$2:$M$182,MATCH(Tablas!$B$1,'Tabla de Amortizacion'!$D$2:$M$2,0)) -> 0 | E38: 0
A39: 2027-01-28 | B39: 0 | C39: =+VLOOKUP(A39,'Tabla de Amortizacion'!$D$2:$M$182,MATCH(Tablas!$B$1,'Tabla de Amortizacion'!$D$2:$M$2,0)) -> 0 | E39: 0
A40: 2027-02-28 | B40: 0 | C40: =+VLOOKUP(A40,'Tabla de Amortizacion'!$D$2:$M$182,MATCH(Tablas!$B$1,'Tabla de Amortizacion'!$D$2:$M$2,0)) -> 0 | E40: 0
A41: 2027-03-28 | B41: 0 | C41: =+VLOOKUP(A41,'Tabla de Amortizacion'!$D$2:$M$182,MATCH(Tablas!$B$1,'Tabla de Amortizacion'!$D$2:$M$2,0)) -> 0 | E41: 0
A42: 2027-04-28 | B42: 0 | C42: =+VLOOKUP(A42,'Tabla de Amortizacion'!$D$2:$M$182,MATCH(Tablas!$B$1,'Tabla de Amortizacion'!$D$2:$M$2,0)) -> 0 | E42: 0
A43: 2027-05-28 | B43: 0 | C43: =+VLOOKUP(A43,'Tabla de Amortizacion'!$D$2:$M$182,MATCH(Tablas!$B$1,'Tabla de Amortizacion'!$D$2:$M$2,0)) -> 0 | E43: 0
A44: 2027-06-28 | B44: 0 | C44: =+VLOOKUP(A44,'Tabla de Amortizacion'!$D$2:$M$182,MATCH(Tablas!$B$1,'Tabla de Amortizacion'!$D$2:$M$2,0)) -> 0 | E44: 0
A45: 2027-07-28 | B45: 0 | C45: =+VLOOKUP(A45,'Tabla de Amortizacion'!$D$2:$M$182,MATCH(Tablas!$B$1,'Tabla de Amortizacion'!$D$2:$M$2,0)) -> 0 | E45: 0
A46: 2027-08-28 | B46: 0 | C46: =+VLOOKUP(A46,'Tabla de Amortizacion'!$D$2:$M$182,MATCH(Tablas!$B$1,'Tabla de Amortizacion'!$D$2:$M$2,0)) -> 0 | E46: 0
A47: 2027-09-28 | B47: 0 | C47: =+VLOOKUP(A47,'Tabla de Amortizacion'!$D$2:$M$182,MATCH(Tablas!$B$1,'Tabla de Amortizacion'!$D$2:$M$2,0)) -> 0 | E47: 0
A48: 2027-10-28 | B48: 0 | C48: =+VLOOKUP(A48,'Tabla de Amortizacion'!$D$2:$M$182,MATCH(Tablas!$B$1,'Tabla de Amortizacion'!$D$2:$M$2,0)) -> 0 | E48: 0
A49: 2027-11-28 | B49: 0 | C49: =+VLOOKUP(A49,'Tabla de Amortizacion'!$D$2:$M$182,MATCH(Tablas!$B$1,'Tabla de Amortizacion'!$D$2:$M$2,0)) -> 0 | E49: 0
A50: 2027-12-28 | B50: 0 | C50: =+VLOOKUP(A50,'Tabla de Amortizacion'!$D$2:$M$182,MATCH(Tablas!$B$1,'Tabla de Amortizacion'!$D$2:$M$2,0)) -> 0 | E50: 0
A51: 2028-01-28 | B51: 0 | C51: =+VLOOKUP(A51,'Tabla de Amortizacion'!$D$2:$M$182,MATCH(Tablas!$B$1,'Tabla de Amortizacion'!$D$2:$M$2,0)) -> 0 | E51: 0
A52: 2028-02-28 | B52: 0 | C52: =+VLOOKUP(A52,'Tabla de Amortizacion'!$D$2:$M$182,MATCH(Tablas!$B$1,'Tabla de Amortizacion'!$D$2:$M$2,0)) -> 0 | E52: 0
A53: 2028-03-28 | B53: 0 | C53: =+VLOOKUP(A53,'Tabla de Amortizacion'!$D$2:$M$182,MATCH(Tablas!$B$1,'Tabla de Amortizacion'!$D$2:$M$2,0)) -> 0 | E53: 0
A54: 2028-04-28 | B54: 0 | C54: =+VLOOKUP(A54,'Tabla de Amortizacion'!$D$2:$M$182,MATCH(Tablas!$B$1,'Tabla de Amortizacion'!$D$2:$M$2,0)) -> 0 | E54: 0
A55: 2028-05-28 | B55: 0 | C55: =+VLOOKUP(A55,'Tabla de Amortizacion'!$D$2:$M$182,MATCH(Tablas!$B$1,'Tabla de Amortizacion'!$D$2:$M$2,0)) -> 0 | E55: 0
A56: 2028-06-28 | B56: 0 | C56: =+VLOOKUP(A56,'Tabla de Amortizacion'!$D$2:$M$182,MATCH(Tablas!$B$1,'Tabla de Amortizacion'!$D$2:$M$2,0)) -> 0 | E56: 0
A57: 2028-07-28 | B57: 0 | C57: =+VLOOKUP(A57,'Tabla de Amortizacion'!$D$2:$M$182,MATCH(Tablas!$B$1,'Tabla de Amortizacion'!$D$2:$M$2,0)) -> 0 | E57: 0
A58: 2028-08-28 | B58: 0 | C58: =+VLOOKUP(A58,'Tabla de Amortizacion'!$D$2:$M$182,MATCH(Tablas!$B$1,'Tabla de Amortizacion'!$D$2:$M$2,0)) -> 0 | E58: 0
A59: 2028-09-28 | B59: 0 | C59: =+VLOOKUP(A59,'Tabla de Amortizacion'!$D$2:$M$182,MATCH(Tablas!$B$1,'Tabla de Amortizacion'!$D$2:$M$2,0)) -> 0 | E59: 0
A60: 2028-10-28 | B60: 0 | C60: =+VLOOKUP(A60,'Tabla de Amortizacion'!$D$2:$M$182,MATCH(Tablas!$B$1,'Tabla de Amortizacion'!$D$2:$M$2,0)) -> 0 | E60: 0
A61: 2028-11-28 | B61: 0 | C61: =+VLOOKUP(A61,'Tabla de Amortizacion'!$D$2:$M$182,MATCH(Tablas!$B$1,'Tabla de Amortizacion'!$D$2:$M$2,0)) -> 0 | E61: 0
A62: 2028-12-28 | B62: 0 | C62: =+VLOOKUP(A62,'Tabla de Amortizacion'!$D$2:$M$182,MATCH(Tablas!$B$1,'Tabla de Amortizacion'!$D$2:$M$2,0)) -> 0 | E62: 0
A63: 2029-01-28 | B63: 0 | C63: =+VLOOKUP(A63,'Tabla de Amortizacion'!$D$2:$M$182,MATCH(Tablas!$B$1,'Tabla de Amortizacion'!$D$2:$M$2,0)) -> 0 | E63: 0
A64: 2029-02-28 | B64: 0 | C64: =+VLOOKUP(A64,'Tabla de Amortizacion'!$D$2:$M$182,MATCH(Tablas!$B$1,'Tabla de Amortizacion'!$D$2:$M$2,0)) -> 0 | E64: 0
A65: 2029-03-28 | B65: 0 | C65: =+VLOOKUP(A65,'Tabla de Amortizacion'!$D$2:$M$182,MATCH(Tablas!$B$1,'Tabla de Amortizacion'!$D$2:$M$2,0)) -> 0 | E65: 0
A66: 2029-04-28 | B66: 0 | C66: =+VLOOKUP(A66,'Tabla de Amortizacion'!$D$2:$M$182,MATCH(Tablas!$B$1,'Tabla de Amortizacion'!$D$2:$M$2,0)) -> 0 | E66: 0
A67: =EDATE(A66,1) -> 2029-05-28 | B67: =+ROUND(C67,8) -> 0 | C67: =+VLOOKUP(A67,'Tabla de Amortizacion'!$D$2:$M$182,MATCH(Tablas!$B$1,'Tabla de Amortizacion'!$D$2:$M$2,0)) -> 0 | E67: 0
A68: 2029-06-28 | B68: 0 | C68: =+VLOOKUP(A68,'Tabla de Amortizacion'!$D$2:$M$182,MATCH(Tablas!$B$1,'Tabla de Amortizacion'!$D$2:$M$2,0)) -> 0 | E68: 0
A69: 2029-07-28 | B69: 0 | C69: =+VLOOKUP(A69,'Tabla de Amortizacion'!$D$2:$M$182,MATCH(Tablas!$B$1,'Tabla de Amortizacion'!$D$2:$M$2,0)) -> 0 | E69: 0
A70: 2029-08-28 | B70: 0 | C70: =+VLOOKUP(A70,'Tabla de Amortizacion'!$D$2:$M$182,MATCH(Tablas!$B$1,'Tabla de Amortizacion'!$D$2:$M$2,0)) -> 0 | E70: 0
A71: 2029-09-28 | B71: 0 | C71: =+VLOOKUP(A71,'Tabla de Amortizacion'!$D$2:$M$182,MATCH(Tablas!$B$1,'Tabla de Amortizacion'!$D$2:$M$2,0)) -> 0 | E71: 0
A72: 2029-10-28 | B72: 0 | C72: =+VLOOKUP(A72,'Tabla de Amortizacion'!$D$2:$M$182,MATCH(Tablas!$B$1,'Tabla de Amortizacion'!$D$2:$M$2,0)) -> 0 | E72: 0
A73: 2029-11-28 | B73: 0 | C73: =+VLOOKUP(A73,'Tabla de Amortizacion'!$D$2:$M$182,MATCH(Tablas!$B$1,'Tabla de Amortizacion'!$D$2:$M$2,0)) -> 0 | E73: 0
A74: 2029-12-28 | B74: 0 | C74: =+VLOOKUP(A74,'Tabla de Amortizacion'!$D$2:$M$182,MATCH(Tablas!$B$1,'Tabla de Amortizacion'!$D$2:$M$2,0)) -> 0 | E74: 0
A75: 2030-01-28 | B75: 0 | C75: =+VLOOKUP(A75,'Tabla de Amortizacion'!$D$2:$M$182,MATCH(Tablas!$B$1,'Tabla de Amortizacion'!$D$2:$M$2,0)) -> 0 | E75: 0
A76: 2030-02-28 | B76: 0 | C76: =+VLOOKUP(A76,'Tabla de Amortizacion'!$D$2:$M$182,MATCH(Tablas!$B$1,'Tabla de Amortizacion'!$D$2:$M$2,0)) -> 0 | E76: 0
A77: 2030-03-28 | B77: 0 | C77: =+VLOOKUP(A77,'Tabla de Amortizacion'!$D$2:$M$182,MATCH(Tablas!$B$1,'Tabla de Amortizacion'!$D$2:$M$2,0)) -> 0 | E77: 0
A78: 2030-04-28 | B78: 0 | C78: =+VLOOKUP(A78,'Tabla de Amortizacion'!$D$2:$M$182,MATCH(Tablas!$B$1,'Tabla de Amortizacion'!$D$2:$M$2,0)) -> 0 | E78: 0
A79: 2030-05-28 | B79: 0 | C79: =+VLOOKUP(A79,'Tabla de Amortizacion'!$D$2:$M$182,MATCH(Tablas!$B$1,'Tabla de Amortizacion'!$D$2:$M$2,0)) -> 0 | E79: 0
A80: 2030-06-28 | B80: 0 | C80: =+VLOOKUP(A80,'Tabla de Amortizacion'!$D$2:$M$182,MATCH(Tablas!$B$1,'Tabla de Amortizacion'!$D$2:$M$2,0)) -> 0 | E80: 0
A81: 2030-07-28 | B81: 0 | C81: =+VLOOKUP(A81,'Tabla de Amortizacion'!$D$2:$M$182,MATCH(Tablas!$B$1,'Tabla de Amortizacion'!$D$2:$M$2,0)) -> 0 | E81: 0
A82: 2030-08-28 | B82: 0 | C82: =+VLOOKUP(A82,'Tabla de Amortizacion'!$D$2:$M$182,MATCH(Tablas!$B$1,'Tabla de Amortizacion'!$D$2:$M$2,0)) -> 0 | E82: 0
A83: 2030-09-28 | B83: 0 | C83: =+VLOOKUP(A83,'Tabla de Amortizacion'!$D$2:$M$182,MATCH(Tablas!$B$1,'Tabla de Amortizacion'!$D$2:$M$2,0)) -> 0 | E83: 0
A84: 2030-10-28 | B84: 0 | C84: =+VLOOKUP(A84,'Tabla de Amortizacion'!$D$2:$M$182,MATCH(Tablas!$B$1,'Tabla de Amortizacion'!$D$2:$M$2,0)) -> 0 | E84: 0
A85: 2030-11-28 | B85: 0 | C85: =+VLOOKUP(A85,'Tabla de Amortizacion'!$D$2:$M$182,MATCH(Tablas!$B$1,'Tabla de Amortizacion'!$D$2:$M$2,0)) -> 0 | E85: 0
A86: 2030-12-28 | B86: 0 | C86: =+VLOOKUP(A86,'Tabla de Amortizacion'!$D$2:$M$182,MATCH(Tablas!$B$1,'Tabla de Amortizacion'!$D$2:$M$2,0)) -> 0 | E86: 0
A87: 2031-01-28 | B87: 0 | C87: =+VLOOKUP(A87,'Tabla de Amortizacion'!$D$2:$M$182,MATCH(Tablas!$B$1,'Tabla de Amortizacion'!$D$2:$M$2,0)) -> 0 | E87: 0
A88: 2031-02-28 | B88: 0 | C88: =+VLOOKUP(A88,'Tabla de Amortizacion'!$D$2:$M$182,MATCH(Tablas!$B$1,'Tabla de Amortizacion'!$D$2:$M$2,0)) -> 0 | E88: 0
A89: 2031-03-28 | B89: 0 | C89: =+VLOOKUP(A89,'Tabla de Amortizacion'!$D$2:$M$182,MATCH(Tablas!$B$1,'Tabla de Amortizacion'!$D$2:$M$2,0)) -> 0 | E89: 0
A90: 2031-04-28 | B90: 0 | C90: =+VLOOKUP(A90,'Tabla de Amortizacion'!$D$2:$M$182,MATCH(Tablas!$B$1,'Tabla de Amortizacion'!$D$2:$M$2,0)) -> 0 | E90: 0
A91: 2031-05-28 | B91: 0 | C91: =+VLOOKUP(A91,'Tabla de Amortizacion'!$D$2:$M$182,MATCH(Tablas!$B$1,'Tabla de Amortizacion'!$D$2:$M$2,0)) -> 0 | E91: 0
A92: 2031-06-28 | B92: 0 | C92: =+VLOOKUP(A92,'Tabla de Amortizacion'!$D$2:$M$182,MATCH(Tablas!$B$1,'Tabla de Amortizacion'!$D$2:$M$2,0)) -> 0 | E92: 0
A93: 2031-07-28 | B93: 0 | C93: =+VLOOKUP(A93,'Tabla de Amortizacion'!$D$2:$M$182,MATCH(Tablas!$B$1,'Tabla de Amortizacion'!$D$2:$M$2,0)) -> 0 | E93: 0
A94: 2031-08-28 | B94: 0 | C94: =+VLOOKUP(A94,'Tabla de Amortizacion'!$D$2:$M$182,MATCH(Tablas!$B$1,'Tabla de Amortizacion'!$D$2:$M$2,0)) -> 0 | E94: 0
A95: 2031-09-28 | B95: 0 | C95: =+VLOOKUP(A95,'Tabla de Amortizacion'!$D$2:$M$182,MATCH(Tablas!$B$1,'Tabla de Amortizacion'!$D$2:$M$2,0)) -> 0 | E95: 0
A96: 2031-10-28 | B96: 0 | C96: =+VLOOKUP(A96,'Tabla de Amortizacion'!$D$2:$M$182,MATCH(Tablas!$B$1,'Tabla de Amortizacion'!$D$2:$M$2,0)) -> 0 | E96: 0
A97: 2031-11-28 | B97: 0 | C97: =+VLOOKUP(A97,'Tabla de Amortizacion'!$D$2:$M$182,MATCH(Tablas!$B$1,'Tabla de Amortizacion'!$D$2:$M$2,0)) -> 0 | E97: 0
A98: 2031-12-28 | B98: 0 | C98: =+VLOOKUP(A98,'Tabla de Amortizacion'!$D$2:$M$182,MATCH(Tablas!$B$1,'Tabla de Amortizacion'!$D$2:$M$2,0)) -> 0 | E98: 0
A99: 2032-01-28 | B99: 0 | C99: =+VLOOKUP(A99,'Tabla de Amortizacion'!$D$2:$M$182,MATCH(Tablas!$B$1,'Tabla de Amortizacion'!$D$2:$M$2,0)) -> 0 | E99: 0
A100: 2032-02-28 | B100: 0 | C100: =+VLOOKUP(A100,'Tabla de Amortizacion'!$D$2:$M$182,MATCH(Tablas!$B$1,'Tabla de Amortizacion'!$D$2:$M$2,0)) -> 0 | E100: 0
A101: 2032-03-28 | B101: 0 | C101: =+VLOOKUP(A101,'Tabla de Amortizacion'!$D$2:$M$182,MATCH(Tablas!$B$1,'Tabla de Amortizacion'!$D$2:$M$2,0)) -> 0 | E101: 0
A102: 2032-04-28 | B102: 0 | C102: =+VLOOKUP(A102,'Tabla de Amortizacion'!$D$2:$M$182,MATCH(Tablas!$B$1,'Tabla de Amortizacion'!$D$2:$M$2,0)) -> 0 | E102: 0
A103: 2032-05-28 | B103: 0 | C103: =+VLOOKUP(A103,'Tabla de Amortizacion'!$D$2:$M$182,MATCH(Tablas!$B$1,'Tabla de Amortizacion'!$D$2:$M$2,0)) -> 0 | E103: 0
A104: 2032-06-28 | B104: 0 | C104: =+VLOOKUP(A104,'Tabla de Amortizacion'!$D$2:$M$182,MATCH(Tablas!$B$1,'Tabla de Amortizacion'!$D$2:$M$2,0)) -> 0 | E104: 0
A105: 2032-07-28 | B105: 0 | C105: =+VLOOKUP(A105,'Tabla de Amortizacion'!$D$2:$M$182,MATCH(Tablas!$B$1,'Tabla de Amortizacion'!$D$2:$M$2,0)) -> 0 | E105: 0
A106: 2032-08-28 | B106: 0 | C106: =+VLOOKUP(A106,'Tabla de Amortizacion'!$D$2:$M$182,MATCH(Tablas!$B$1,'Tabla de Amortizacion'!$D$2:$M$2,0)) -> 0 | E106: 0
A107: 2032-09-28 | B107: 0 | C107: =+VLOOKUP(A107,'Tabla de Amortizacion'!$D$2:$M$182,MATCH(Tablas!$B$1,'Tabla de Amortizacion'!$D$2:$M$2,0)) -> 0 | E107: 0
A108: 2032-10-28 | B108: 0 | C108: =+VLOOKUP(A108,'Tabla de Amortizacion'!$D$2:$M$182,MATCH(Tablas!$B$1,'Tabla de Amortizacion'!$D$2:$M$2,0)) -> 0 | E108: 0
A109: 2032-11-28 | B109: 0 | C109: =+VLOOKUP(A109,'Tabla de Amortizacion'!$D$2:$M$182,MATCH(Tablas!$B$1,'Tabla de Amortizacion'!$D$2:$M$2,0)) -> 0 | E109: 0
A110: 2032-12-28 | B110: 0 | C110: =+VLOOKUP(A110,'Tabla de Amortizacion'!$D$2:$M$182,MATCH(Tablas!$B$1,'Tabla de Amortizacion'!$D$2:$M$2,0)) -> 0 | E110: 0
A111: 2033-01-28 | B111: 0 | C111: =+VLOOKUP(A111,'Tabla de Amortizacion'!$D$2:$M$182,MATCH(Tablas!$B$1,'Tabla de Amortizacion'!$D$2:$M$2,0)) -> 0 | E111: 0
A112: 2033-02-28 | B112: 0 | C112: =+VLOOKUP(A112,'Tabla de Amortizacion'!$D$2:$M$182,MATCH(Tablas!$B$1,'Tabla de Amortizacion'!$D$2:$M$2,0)) -> 0 | E112: 0
A113: 2033-03-28 | B113: 0 | C113: =+VLOOKUP(A113,'Tabla de Amortizacion'!$D$2:$M$182,MATCH(Tablas!$B$1,'Tabla de Amortizacion'!$D$2:$M$2,0)) -> 0 | E113: 0
A114: 2033-04-28 | B114: 0 | C114: =+VLOOKUP(A114,'Tabla de Amortizacion'!$D$2:$M$182,MATCH(Tablas!$B$1,'Tabla de Amortizacion'!$D$2:$M$2,0)) -> 0 | E114: 0
A115: 2033-05-28 | B115: 0 | C115: =+VLOOKUP(A115,'Tabla de Amortizacion'!$D$2:$M$182,MATCH(Tablas!$B$1,'Tabla de Amortizacion'!$D$2:$M$2,0)) -> 0 | E115: 0
A116: 2033-06-28 | B116: 0 | C116: =+VLOOKUP(A116,'Tabla de Amortizacion'!$D$2:$M$182,MATCH(Tablas!$B$1,'Tabla de Amortizacion'!$D$2:$M$2,0)) -> 0 | E116: 0
A117: 2033-07-28 | B117: 0 | C117: =+VLOOKUP(A117,'Tabla de Amortizacion'!$D$2:$M$182,MATCH(Tablas!$B$1,'Tabla de Amortizacion'!$D$2:$M$2,0)) -> 0 | E117: 0
A118: 2033-08-28 | B118: 0 | C118: =+VLOOKUP(A118,'Tabla de Amortizacion'!$D$2:$M$182,MATCH(Tablas!$B$1,'Tabla de Amortizacion'!$D$2:$M$2,0)) -> 0 | E118: 0
A119: 2033-09-28 | B119: 0 | C119: =+VLOOKUP(A119,'Tabla de Amortizacion'!$D$2:$M$182,MATCH(Tablas!$B$1,'Tabla de Amortizacion'!$D$2:$M$2,0)) -> 0 | E119: 0
A120: 2033-10-28 | B120: 0 | C120: =+VLOOKUP(A120,'Tabla de Amortizacion'!$D$2:$M$182,MATCH(Tablas!$B$1,'Tabla de Amortizacion'!$D$2:$M$2,0)) -> 0 | E120: 0
A121: 2033-11-28 | B121: 0 | C121: =+VLOOKUP(A121,'Tabla de Amortizacion'!$D$2:$M$182,MATCH(Tablas!$B$1,'Tabla de Amortizacion'!$D$2:$M$2,0)) -> 0 | E121: 0
A122: 2033-12-28 | B122: 0 | C122: =+VLOOKUP(A122,'Tabla de Amortizacion'!$D$2:$M$182,MATCH(Tablas!$B$1,'Tabla de Amortizacion'!$D$2:$M$2,0)) -> 0 | E122: 0
A123: 2034-01-28 | B123: 0 | C123: =+VLOOKUP(A123,'Tabla de Amortizacion'!$D$2:$M$182,MATCH(Tablas!$B$1,'Tabla de Amortizacion'!$D$2:$M$2,0)) -> 0 | E123: 0
A124: 2034-02-28 | B124: 0 | C124: =+VLOOKUP(A124,'Tabla de Amortizacion'!$D$2:$M$182,MATCH(Tablas!$B$1,'Tabla de Amortizacion'!$D$2:$M$2,0)) -> 0 | E124: 0
A125: 2034-03-28 | B125: 0 | C125: =+VLOOKUP(A125,'Tabla de Amortizacion'!$D$2:$M$182,MATCH(Tablas!$B$1,'Tabla de Amortizacion'!$D$2:$M$2,0)) -> 0 | E125: 0
A126: 2034-04-28 | B126: 0 | C126: =+VLOOKUP(A126,'Tabla de Amortizacion'!$D$2:$M$182,MATCH(Tablas!$B$1,'Tabla de Amortizacion'!$D$2:$M$2,0)) -> 0 | E126: 0
A127: 2034-05-28 | B127: 0 | C127: =+VLOOKUP(A127,'Tabla de Amortizacion'!$D$2:$M$182,MATCH(Tablas!$B$1,'Tabla de Amortizacion'!$D$2:$M$2,0)) -> 0 | E127: 0
A128: 2034-06-28 | B128: 0 | C128: =+VLOOKUP(A128,'Tabla de Amortizacion'!$D$2:$M$182,MATCH(Tablas!$B$1,'Tabla de Amortizacion'!$D$2:$M$2,0)) -> 0 | E128: 0
A129: 2034-07-28 | B129: 0 | C129: =+VLOOKUP(A129,'Tabla de Amortizacion'!$D$2:$M$182,MATCH(Tablas!$B$1,'Tabla de Amortizacion'!$D$2:$M$2,0)) -> 0 | E129: 0
A130: 2034-08-28 | B130: 0 | C130: =+VLOOKUP(A130,'Tabla de Amortizacion'!$D$2:$M$182,MATCH(Tablas!$B$1,'Tabla de Amortizacion'!$D$2:$M$2,0)) -> 0 | E130: 0
A131: =EDATE(A130,1) -> 2034-09-28 | B131: =+ROUND(C131,8) -> 0 | C131: =+VLOOKUP(A131,'Tabla de Amortizacion'!$D$2:$M$182,MATCH(Tablas!$B$1,'Tabla de Amortizacion'!$D$2:$M$2,0)) -> 0 | E131: 0
A132: 2034-10-28 | B132: 0 | C132: =+VLOOKUP(A132,'Tabla de Amortizacion'!$D$2:$M$182,MATCH(Tablas!$B$1,'Tabla de Amortizacion'!$D$2:$M$2,0)) -> 0 | E132: 0
A133: 2034-11-28 | B133: 0 | C133: =+VLOOKUP(A133,'Tabla de Amortizacion'!$D$2:$M$182,MATCH(Tablas!$B$1,'Tabla de Amortizacion'!$D$2:$M$2,0)) -> 0 | E133: 0
A134: 2034-12-28 | B134: 0 | C134: =+VLOOKUP(A134,'Tabla de Amortizacion'!$D$2:$M$182,MATCH(Tablas!$B$1,'Tabla de Amortizacion'!$D$2:$M$2,0)) -> 0 | E134: 0
A135: 2035-01-28 | B135: 0 | C135: =+VLOOKUP(A135,'Tabla de Amortizacion'!$D$2:$M$182,MATCH(Tablas!$B$1,'Tabla de Amortizacion'!$D$2:$M$2,0)) -> 0 | E135: 0
A136: 2035-02-28 | B136: 0 | C136: =+VLOOKUP(A136,'Tabla de Amortizacion'!$D$2:$M$182,MATCH(Tablas!$B$1,'Tabla de Amortizacion'!$D$2:$M$2,0)) -> 0 | E136: 0
A137: 2035-03-28 | B137: 0 | C137: =+VLOOKUP(A137,'Tabla de Amortizacion'!$D$2:$M$182,MATCH(Tablas!$B$1,'Tabla de Amortizacion'!$D$2:$M$2,0)) -> 0 | E137: 0
A138: 2035-04-28 | B138: 0 | C138: =+VLOOKUP(A138,'Tabla de Amortizacion'!$D$2:$M$182,MATCH(Tablas!$B$1,'Tabla de Amortizacion'!$D$2:$M$2,0)) -> 0 | E138: 0
A139: 2035-05-28 | B139: 0 | C139: =+VLOOKUP(A139,'Tabla de Amortizacion'!$D$2:$M$182,MATCH(Tablas!$B$1,'Tabla de Amortizacion'!$D$2:$M$2,0)) -> 0 | E139: 0
A140: 2035-06-28 | B140: 0 | C140: =+VLOOKUP(A140,'Tabla de Amortizacion'!$D$2:$M$182,MATCH(Tablas!$B$1,'Tabla de Amortizacion'!$D$2:$M$2,0)) -> 0 | E140: 0
A141: 2035-07-28 | B141: 0 | C141: =+VLOOKUP(A141,'Tabla de Amortizacion'!$D$2:$M$182,MATCH(Tablas!$B$1,'Tabla de Amortizacion'!$D$2:$M$2,0)) -> 0 | E141: 0
A142: 2035-08-28 | B142: 0 | C142: =+VLOOKUP(A142,'Tabla de Amortizacion'!$D$2:$M$182,MATCH(Tablas!$B$1,'Tabla de Amortizacion'!$D$2:$M$2,0)) -> 0 | E142: 0
A143: 2035-09-28 | B143: 0 | C143: =+VLOOKUP(A143,'Tabla de Amortizacion'!$D$2:$M$182,MATCH(Tablas!$B$1,'Tabla de Amortizacion'!$D$2:$M$2,0)) -> 0 | E143: 0
A144: 2035-10-28 | B144: 0 | C144: =+VLOOKUP(A144,'Tabla de Amortizacion'!$D$2:$M$182,MATCH(Tablas!$B$1,'Tabla de Amortizacion'!$D$2:$M$2,0)) -> 0 | E144: 0
A145: 2035-11-28 | B145: 0 | C145: =+VLOOKUP(A145,'Tabla de Amortizacion'!$D$2:$M$182,MATCH(Tablas!$B$1,'Tabla de Amortizacion'!$D$2:$M$2,0)) -> 0 | E145: 0
A146: 2035-12-28 | B146: 0 | C146: =+VLOOKUP(A146,'Tabla de Amortizacion'!$D$2:$M$182,MATCH(Tablas!$B$1,'Tabla de Amortizacion'!$D$2:$M$2,0)) -> 0 | E146: 0
A147: 2036-01-28 | B147: 0 | C147: =+VLOOKUP(A147,'Tabla de Amortizacion'!$D$2:$M$182,MATCH(Tablas!$B$1,'Tabla de Amortizacion'!$D$2:$M$2,0)) -> 0 | E147: 0
A148: 2036-02-28 | B148: 0 | C148: =+VLOOKUP(A148,'Tabla de Amortizacion'!$D$2:$M$182,MATCH(Tablas!$B$1,'Tabla de Amortizacion'!$D$2:$M$2,0)) -> 0 | E148: 0
A149: 2036-03-28 | B149: 0 | C149: =+VLOOKUP(A149,'Tabla de Amortizacion'!$D$2:$M$182,MATCH(Tablas!$B$1,'Tabla de Amortizacion'!$D$2:$M$2,0)) -> 0 | E149: 0
A150: 2036-04-28 | B150: 0 | C150: =+VLOOKUP(A150,'Tabla de Amortizacion'!$D$2:$M$182,MATCH(Tablas!$B$1,'Tabla de Amortizacion'!$D$2:$M$2,0)) -> 0 | E150: 0
A151: 2036-05-28 | B151: 0 | C151: =+VLOOKUP(A151,'Tabla de Amortizacion'!$D$2:$M$182,MATCH(Tablas!$B$1,'Tabla de Amortizacion'!$D$2:$M$2,0)) -> 0 | E151: 0
A152: 2036-06-28 | B152: 0 | C152: =+VLOOKUP(A152,'Tabla de Amortizacion'!$D$2:$M$182,MATCH(Tablas!$B$1,'Tabla de Amortizacion'!$D$2:$M$2,0)) -> 0 | E152: 0
A153: 2036-07-28 | B153: 0 | C153: =+VLOOKUP(A153,'Tabla de Amortizacion'!$D$2:$M$182,MATCH(Tablas!$B$1,'Tabla de Amortizacion'!$D$2:$M$2,0)) -> 0 | E153: 0
A154: 2036-08-28 | B154: 0 | C154: =+VLOOKUP(A154,'Tabla de Amortizacion'!$D$2:$M$182,MATCH(Tablas!$B$1,'Tabla de Amortizacion'!$D$2:$M$2,0)) -> 0 | E154: 0
A155: 2036-09-28 | B155: 0 | C155: =+VLOOKUP(A155,'Tabla de Amortizacion'!$D$2:$M$182,MATCH(Tablas!$B$1,'Tabla de Amortizacion'!$D$2:$M$2,0)) -> 0 | E155: 0
A156: 2036-10-28 | B156: 0 | C156: =+VLOOKUP(A156,'Tabla de Amortizacion'!$D$2:$M$182,MATCH(Tablas!$B$1,'Tabla de Amortizacion'!$D$2:$M$2,0)) -> 0 | E156: 0
A157: 2036-11-28 | B157: 0 | C157: =+VLOOKUP(A157,'Tabla de Amortizacion'!$D$2:$M$182,MATCH(Tablas!$B$1,'Tabla de Amortizacion'!$D$2:$M$2,0)) -> 0 | E157: 0
A158: 2036-12-28 | B158: 0 | C158: =+VLOOKUP(A158,'Tabla de Amortizacion'!$D$2:$M$182,MATCH(Tablas!$B$1,'Tabla de Amortizacion'!$D$2:$M$2,0)) -> 0 | E158: 0
A159: 2037-01-28 | B159: 0 | C159: =+VLOOKUP(A159,'Tabla de Amortizacion'!$D$2:$M$182,MATCH(Tablas!$B$1,'Tabla de Amortizacion'!$D$2:$M$2,0)) -> 0 | E159: 0
A160: 2037-02-28 | B160: 0 | C160: =+VLOOKUP(A160,'Tabla de Amortizacion'!$D$2:$M$182,MATCH(Tablas!$B$1,'Tabla de Amortizacion'!$D$2:$M$2,0)) -> 0 | E160: 0
A161: 2037-03-28 | B161: 0 | C161: =+VLOOKUP(A161,'Tabla de Amortizacion'!$D$2:$M$182,MATCH(Tablas!$B$1,'Tabla de Amortizacion'!$D$2:$M$2,0)) -> 0 | E161: 0
A162: 2037-04-28 | B162: 0 | C162: =+VLOOKUP(A162,'Tabla de Amortizacion'!$D$2:$M$182,MATCH(Tablas!$B$1,'Tabla de Amortizacion'!$D$2:$M$2,0)) -> 0 | E162: 0
A163: 2037-05-28 | B163: 0 | C163: =+VLOOKUP(A163,'Tabla de Amortizacion'!$D$2:$M$182,MATCH(Tablas!$B$1,'Tabla de Amortizacion'!$D$2:$M$2,0)) -> 0 | E163: 0
A164: 2037-06-28 | B164: 0 | C164: =+VLOOKUP(A164,'Tabla de Amortizacion'!$D$2:$M$182,MATCH(Tablas!$B$1,'Tabla de Amortizacion'!$D$2:$M$2,0)) -> 0 | E164: 0
A165: 2037-07-28 | B165: 0 | C165: =+VLOOKUP(A165,'Tabla de Amortizacion'!$D$2:$M$182,MATCH(Tablas!$B$1,'Tabla de Amortizacion'!$D$2:$M$2,0)) -> 0 | E165: 0
A166: 2037-08-28 | B166: 0 | C166: =+VLOOKUP(A166,'Tabla de Amortizacion'!$D$2:$M$182,MATCH(Tablas!$B$1,'Tabla de Amortizacion'!$D$2:$M$2,0)) -> 0 | E166: 0
A167: 2037-09-28 | B167: 0 | C167: =+VLOOKUP(A167,'Tabla de Amortizacion'!$D$2:$M$182,MATCH(Tablas!$B$1,'Tabla de Amortizacion'!$D$2:$M$2,0)) -> 0 | E167: 0
A168: 2037-10-28 | B168: 0 | C168: =+VLOOKUP(A168,'Tabla de Amortizacion'!$D$2:$M$182,MATCH(Tablas!$B$1,'Tabla de Amortizacion'!$D$2:$M$2,0)) -> 0 | E168: 0
A169: 2037-11-28 | B169: 0 | C169: =+VLOOKUP(A169,'Tabla de Amortizacion'!$D$2:$M$182,MATCH(Tablas!$B$1,'Tabla de Amortizacion'!$D$2:$M$2,0)) -> 0 | E169: 0
A170: 2037-12-28 | B170: 0 | C170: =+VLOOKUP(A170,'Tabla de Amortizacion'!$D$2:$M$182,MATCH(Tablas!$B$1,'Tabla de Amortizacion'!$D$2:$M$2,0)) -> 0 | E170: 0
A171: 2038-01-28 | B171: 0 | C171: =+VLOOKUP(A171,'Tabla de Amortizacion'!$D$2:$M$182,MATCH(Tablas!$B$1,'Tabla de Amortizacion'!$D$2:$M$2,0)) -> 0 | E171: 0
A172: 2038-02-28 | B172: 0 | C172: =+VLOOKUP(A172,'Tabla de Amortizacion'!$D$2:$M$182,MATCH(Tablas!$B$1,'Tabla de Amortizacion'!$D$2:$M$2,0)) -> 0 | E172: 0
A173: 2038-03-28 | B173: 0 | C173: =+VLOOKUP(A173,'Tabla de Amortizacion'!$D$2:$M$182,MATCH(Tablas!$B$1,'Tabla de Amortizacion'!$D$2:$M$2,0)) -> 0 | E173: 0
A174: 2038-04-28 | B174: 0 | C174: =+VLOOKUP(A174,'Tabla de Amortizacion'!$D$2:$M$182,MATCH(Tablas!$B$1,'Tabla de Amortizacion'!$D$2:$M$2,0)) -> 0 | E174: 0
A175: 2038-05-28 | B175: 0 | C175: =+VLOOKUP(A175,'Tabla de Amortizacion'!$D$2:$M$182,MATCH(Tablas!$B$1,'Tabla de Amortizacion'!$D$2:$M$2,0)) -> 0 | E175: 0
A176: 2038-06-28 | B176: 0 | C176: =+VLOOKUP(A176,'Tabla de Amortizacion'!$D$2:$M$182,MATCH(Tablas!$B$1,'Tabla de Amortizacion'!$D$2:$M$2,0)) -> 0 | E176: 0
A177: 2038-07-28 | B177: 0 | C177: =+VLOOKUP(A177,'Tabla de Amortizacion'!$D$2:$M$182,MATCH(Tablas!$B$1,'Tabla de Amortizacion'!$D$2:$M$2,0)) -> 0 | E177: 0
A178: 2038-08-28 | B178: 0 | C178: =+VLOOKUP(A178,'Tabla de Amortizacion'!$D$2:$M$182,MATCH(Tablas!$B$1,'Tabla de Amortizacion'!$D$2:$M$2,0)) -> 0 | E178: 0
A179: 2038-09-28 | B179: 0 | C179: =+VLOOKUP(A179,'Tabla de Amortizacion'!$D$2:$M$182,MATCH(Tablas!$B$1,'Tabla de Amortizacion'!$D$2:$M$2,0)) -> 0 | E179: 0
A180: 2038-10-28 | B180: 0 | C180: =+VLOOKUP(A180,'Tabla de Amortizacion'!$D$2:$M$182,MATCH(Tablas!$B$1,'Tabla de Amortizacion'!$D$2:$M$2,0)) -> 0 | E180: 0
A181: 2038-11-28 | B181: 0 | C181: =+VLOOKUP(A181,'Tabla de Amortizacion'!$D$2:$M$182,MATCH(Tablas!$B$1,'Tabla de Amortizacion'!$D$2:$M$2,0)) -> 0 | E181: 0

Sheet Exclusión
A1: “Titularizadora Colombiana S.A publica el presente documento con un carácter estrictamente informativo para los inversionistas. Aunque la información aquí contenida ha sido obtenida de fuentes que la compañía considera confiables, Titularizadora Colombiana S.A no garantiza su exactitud. En ningún caso su contenido se puede considerar como una opinión financiera o legal ni como una recomendación de negocios o de inversión por parte de nuestra compañía. Tampoco puede ser considerado como una invitación a realizar negocios ni como una oferta para comprar o vender ningún tipo de valor. En ningún caso Titularizadora Colombiana S.A asume responsabilidad por las decisiones de inversión que se tomen, o el resultado de cualquier operación que se efectúe por parte de los destinatarios o de terceras personas, sobre la información aquí contenida. Tal responsabilidad es exclusiva de los inversionistas que hagan uso de ella. Dicha información puede tener variaciones posteriores a la fecha de su publicación razón por la cual Titularizadora Colombiana S.A se reserva el derecho de modificarla o actualizarla en cualquier tiempo y sin previo aviso.”
